{"text_format":"2","workbook":"xlsx","n_sheets":33,"sheets":["PEACE","PERSEVERANCE","LOVE","LOYALTY","PATIENCE","DILIGENCE","WISDOM","HUMILITY","DIGNITY","CHARITY","INTEGRITY","HONESTY","HOPE","GENEROSITY","FAITH","7-SUMMARY PRE TEST","AQUAMARINE","ORANGE","YELLOW","BROWN","BLUE","WHITE","MAROON","VIOLET","IVORY","GRAY","GREEN","PEACH","PINK","RED","SUMMARY- 8","Sheet1","Sheet2"],"not_rendered":{"charts":0,"images":3,"macros":0,"external_links":0,"defined_names":18,"comments":0,"pivot_tables":0},"unopened":[],"bounds":{"document_bytes":16777216,"sheet_cells":100000,"run_cost":"one","rows_first":2000,"rows_last":500,"rows_between":2000,"halvings":0,"cell_chars":16384,"cell_head_chars":4096},"cells_cut":0,"cells_raw":0,"read":"whole","date_system":"1900"}

{"sheet":"PEACE","index":0,"n_rows":72,"n_cols":12,"rows_kept":72,"cut":false,"hidden":false,"merged":[[0,0,0,11],[1,0,1,11],[2,0,2,11],[3,0,3,11],[4,0,4,11],[5,0,5,11],[6,0,6,11],[7,0,7,11],[9,4,9,6],[9,7,9,9],[47,0,47,1],[10,1,11,1],[10,2,11,2],[10,4,11,4],[10,5,11,5],[10,6,11,6],[10,7,11,7],[10,8,11,8],[10,9,11,9],[10,10,11,10],[10,11,11,11]]}
["APPENDIX E"]
["Phil-IRI Form 4, Page 1"]
["Individual Summary Record (ISR)"]
["Talaan ng Indibidwal na Pagbabasa (TIP)"]
["SECTION    PEACE"]
["School: Sitero FranciscoMNHS   Teacher:   Bb. Abegail D. Grencio"]
["English: "]
["Filipino: "]
[]
[null,"Level Started","Level","Set","Word Reading",null,null,"Comprehension",null,null,"Date Taken"]
[null,"Mark with an *",null,"Indicate if A. B. ","Ind","Ins","Frus","Ind","Ins","Frus","July 18, 2019","READING PROFILE"]
[null,null,null,"C. or D"]
[1,"AGUSTIN, AARON JOHN",5,"A","/",null,null,null,"/",null,null,"INSTRUCTIONAL"]
[2,"ARIOLA, KENT MATTHEW",4,"A",null,"/",null,null,null,"/",null,"FRUSTRATION"]
[3,"BALANI,KENN",4,"A",null,"/",null,null,null,"/",null,"FRUSTRATION"]
[4,"BALDON, GERALDO",5,"A","/",null,null,null,"/",null,null,"INSTRUCTIONAL"]
[5,"BALICAT, TERENCE",5,"A","/",{"$nulls":4},"/",null,"FRUSTRATION"]
[6,"BALICAT,  WILLARD",4,"A","/",{"$nulls":4},"/",null,"FRUSTRATION"]
[7,"BALCUEVA, JOHN MARK",4,"A",null,"/",null,null,null,"/",null,"FRUSTRATION"]
[8,"BETE, GILBERT",5,"A",null,"/",null,"/",null,null,null,"INSTRUCTIONAL"]
[9,"CABIG, JARELLE RYLLE",4,"A",null,"/",null,null,"/",null,null,"INSTRUCTIONAL"]
[10,"CANAVERAS, ROY",4,"A",null,"/",null,null,"/",null,null,"INSTRUCTIONAL"]
[11,"CLORES,  JESUS E.",4,"A",null,null,"/",null,null,"/",null,"FRUSTRATION"]
[12,"CUADRA, BENNIDICT"]
[13,"DEMENTION, CLAUD AUSTIN",4,"A",null,"/",null,null,null,"/",null,"FRUSTRATION"]
[14,"ENCARGUEZ, KENT FRANCES"]
[15,"ICUSPIT, MIO CKENJI A.",4,"A",null,"/",null,null,null,"/",null,"FRUSTRATION"]
[16,"LABAJO, JHON REY",5,"A",null,"/",null,"/",null,null,null,"INSTRUCTIONAL"]
[17,"LAURON, REY",4,"A",null,"/",null,null,null,"/",null,"FRUSTRATION"]
[18,"MATUOG, ROY",4,"A",null,"/",null,"/",null,null,null,"INSTRUCTIONAL"]
[19,"MUNDA, ZANDO",4,"A","/",{"$nulls":4},"/",null,"FRUSTRATION"]
[20,"ORTEGA, ANGELO",4,"A",null,"/",{"$nulls":5},"INSTRUCTIONAL"]
[21,"PALAD, JUVANIE",4,"A","/",{"$nulls":4},"/",null,"FRUSTRATION"]
[22,"PEREA, MARVIN",4,"A",null,"/",null,null,null,"/",null,"FRUSTRATION"]
[23,"PONCE, JEFFREY",5,"A","/",null,null,"/",null,null,null,"INDEPENDENT"]
[24,"QUIZON, JOHN MARCO",4,"A",null,"/",null,null,null,"/",null,"FRUSTRATION"]
[25,"RAMIREZ, KARL",4,"A","/",{"$nulls":4},"/",null,"FRUSTRATION"]
[26,"RAMOS,HANNETH",4,"A",null,"/",null,"/",null,null,null,"INSTRUCTIONAL"]
[27,"RAMOS,JOHN CHRISTIAN",4,"A",null,"/",null,null,null,"/",null,"FRUSTRATION"]
[28,"REBLADO, BRYAN",4,"A","/",{"$nulls":4},"/",null,"FRUSTRATION"]
[29,"ROGAN, FRANCIS",5,"A","/",null,null,"/",null,null,null,"INDEPENDENT"]
[30,"SECRETARIA, JHON CARL",4,"A","/",{"$nulls":4},"/",null,"FRUSTRATION"]
[31,"SORIANO, JOSHUA MATTHEW",4,"A","/",{"$nulls":4},"/",null,"FRUSTRATION"]
[32,"TEJADA, DUSTIN DAKE",4,"A",null,"/",null,"/",null,null,null,"INSTRUCTIONAL"]
[33,"TEJERO, RAZEL",4,"A",null,"/",null,null,"/",null,null,"INSTRUCTIONAL"]
[34,"VALDON, GERALDO"]
[34,"BEDIO, OLIVER",4,"A",null,"/",null,null,"/",null,null,"INSTRUCTIONAL"]
["GIRLS"]
[1,"ALACON, MARICRIS",5,"A","/",null,null,"/",null,null,null,"INDEPENDENT"]
[2,"ALMOSARA, ANJELA",5,"A","/",null,null,null,"/",null,null,"INDEPENDENT"]
[3,"ARBIS, MARIAN",4,"A",null,"/",null,null,null,"/",null,"FRUSTRATION"]
[4,"CACAS, MA.  THERESA",4,"A",null,"/",null,null,null,"/",null,"FRUSTRATION"]
[5,"DELA CRUZ, RHOAN",4,"A",null,"/",null,null,null,"/",null,"FRUSTRATION"]
[6,"ENHYNES, SHYRA SHANE",5,"A","/",null,null,"/",null,null,null,"INDEPENDENT"]
[7,"ESPERANZA, MARIZ",4,"A","/",{"$nulls":4},"/",null,"FRUSTRATION"]
[8,"FERNANDEZ, PRECIOUS ERICKA",4,"A",null,"/",null,null,null,"/",null,"FRUSTRATION"]
[9,"HARO, PRECIOUS LARAQ",4,"A",null,"/",null,null,"/",null,null,"INSTRUCTIONAL"]
[10,"LAZERNA, LAZERNA",5,"A",null,"/",null,null,null,"/",null,"FRUSTRATION"]
[11,"LEGARA, KRISTINA ANDREA",4,"A",null,"/",null,"/",null,null,null,"INSTRUCTIONAL"]
[12,"LEYSON, NESHA NADINE",4,"A","/",null,null,null,"/",null,null,"INSTRUCTIONAL"]
[13,"LOBOS,  SHIELA MARIE",4,"A","/",null,null,null,"/",null,null,"INSTRUCTIONAL"]
[14,"MAISOG,LOVELY JAY",4,"A","/",{"$nulls":4},"/",null,"FRUSTRATION"]
[15,"PINEDA, PAULINE JOY",4,"A","/",null,null,null,"/",null,null,"INSTRUCTIONAL"]
[16,"PRONEVO, ELLAIZA",5,"A","/",null,null,"/",null,null,null,"INDEPENDENT"]
[17,"ROQUE,RODRILYN",5,"A","/",null,null,null,"/",null,null,"INSTRUCTIONAL"]
[18,"TUAZON, SHIELA MAY",4,"A","/",null,null,null,"/",null,null,"INSTRUCTIONAL"]
[]
[null,"INDEPENDENT",5]
[null,"INSTRUCTIONAL",20]
[null,"FRUSTRATION",25,null,null,null,"                                                                                                                                                                                                                                                                                                                                                                                                                                                                                                                                                                                                                                                                                                                                                                                                                                                                                                                                                                                                                                                                                                                                                                                                                                                                                                                                                                                                                                                                                                                                                                                                                                                                                                                                                                                                                                                                                                                                                                                                                                                                                                                                                                                                                                                                                                                                                                                                                                                                                                                                                                                                                                                                                                                                                                                                                                                                                                                                                                                                                                                                                                                                                                                                                                                                                                                                                                                                                                                                                                                                                                                                                                                              "]
[null,null,{"$f":"SUM(C68,C67,C69,C70)","v":50}]
[null,"GST PASSER",0]

{"sheet":"PERSEVERANCE","index":1,"n_rows":72,"n_cols":12,"rows_kept":72,"cut":false,"hidden":false,"merged":[[0,0,0,11],[1,0,1,11],[2,0,2,11],[3,0,3,11],[4,0,4,11],[5,0,5,11],[6,0,6,11],[7,0,7,11],[9,4,9,6],[9,7,9,9],[39,0,39,1],[10,1,11,1],[10,2,11,2],[10,4,11,4],[10,5,11,5],[10,6,11,6],[10,7,11,7],[10,8,11,8],[10,9,11,9],[10,10,11,10],[10,11,11,11]]}
["APPENDIX E"]
["Phil-IRI Form 4, Page 1"]
["Individual Summary Record (ISR)"]
["Talaan ng Indibidwal na Pagbabasa (TIP)"]
["SECTION    PERSEVERANCE"]
["School: Sitero FranciscoMNHS   Teacher:   Bb. Abegail D. Grencio"]
["English: "]
["Filipino: "]
[]
[null,"Level Started","Level","Set","Word Reading",null,null,"Comprehension",null,null,"Date Taken"]
[null,"Mark with an *",null,"Indicate if A. B. ","Ind","Ins","Frus","Ind","Ins","Frus","July 18, 2019","READING PROFILE"]
[null,null,null,"C. or D"]
[1,"ANDALIS, JAYSON CAING",4,"A",null,"/",null,"/",null,null,null,"INSTRUCTIONAL"]
[2,"ANDOYO, CHARLES DANIEL POTCHO",4,"A","/",{"$nulls":4},"/",null,"FRUSTRATION"]
[3,"ARANETA, JADE BALENDRES",4,"A","/",null,null,"/",null,null,null,"INDEPENDENT"]
[4,"ARATAN, JUSTIN",4,"A","/",null,null,null,"/",null,null,"INSTRUCTIONAL"]
[5,"BADION, RICHARD ARAYA",4,"A","/",{"$nulls":4},"/",null,"FRUSTRATION"]
[6,"BOLASOC, ERICSON JAY REBIDEN",4,"A","/",null,null,null,"/",null,null,"INSTRUCTIONAL"]
[7,"CAINOY, JOHN HAROLD MANICLANG"]
[8,"CAMBALIZA, ERIC JAMES C.",4,"A","/",{"$nulls":4},"/",null,"FRUSTRATION"]
[9,"CORREA, DENVER SAPINOSA",4,"A",null,null,"/",null,"/",null,null,"FRUSTRATION"]
[10,"DALANON, EZEKIEL CALUMPIANO",4,"A","/",{"$nulls":4},"/",null,"FRUSTRATION"]
[11,"ESPAÑOLA, MARK DAVID",null,"A"]
[12,"ESTRADA, RANDY NEVERIO",5,null,"/",null,null,null,"/",null,null,"INSTRUCTIONAL"]
[13,"KIPTE, JULIUS ROSALES",4,"A",null,null,"/",null,null,"/",null,"FRUSTRATION"]
[14,"LAZARO, ERISH CALAMANAN",4,null,null,"/",null,null,"/",null,null,"INSTRUCTIONAL"]
[15,"LOPEZ, KYLE KEVIN L.",4,"A",null,"/",null,"/",null,null,null,"INSTRUCTIONAL"]
[16,"MACABATA, CARL PHIMSON BALSE",5,"A","/",null,null,null,"/",null,null,"INSTRUCTIONAL"]
[17,"MANICANI, JOHN MARK",4,"A","/",null,null,null,"/",null,null,"INSTRUCTIONAL"]
[18,"NUÑEZ, SEBASTIAN PAUL REYES",4,"A",null,"/",null,"/",null,null,null,"INSTRUCTIONAL"]
[19,"RARANG, KENANIAH ROI CALISIN",4,"A","/",{"$nulls":4},"/",null,"FRUSTRATION"]
[20,"ROSALDO, ADRIAN GO",4,"A",null,"/",null,null,null,"/",null,"FRUSTRATION"]
[21,"ROSALES, TRISTAN DELVO",4,"A",null,"/",null,null,"/",null,null,"INSTRUCTIONAL"]
[22,"SANDOVAL, MICHAEL ANGELO",4,"A",null,"/",null,"/",null,null,null,"INSTRUCTIONAL"]
[23,"SANTIAGO, SHERWIN A.",4,"A",null,"/",null,null,"/",null,null,"INSTRUCTIONAL"]
[24,"TABUA, JOHN ED PALTENG",4,"A",null,"/",null,null,null,"/",null,"FRUSTRATION"]
[25,"VACARO, PATRICK CASEY ELEUTERIO",4,"A","/",{"$nulls":4},"/",null,"FRUSTRATION"]
[26,"VELASCO, JERRY MHIL B",4,"A",null,null,"/",null,"/",null,null,"FRUSTRATION"]
[27,"VENTURA, REXMAN T. ",4,"A","/",null,null,"/",null,null,null,"INDEPENDENT"]
["GIRLS"]
[1,"ALIMA, SELAH JEDIDIAH MOHAMETANO",5,"A","/",null,null,"/",null,null,null,"INDEPENDENT"]
[2,"AMIN, JERRYLYN",null,"A"]
[3,"ARANETA, AISY BALENDRES",4,"A","/",null,null,null,"/",null,null,"INSTRUCTIONAL"]
[4,"ARENAS, ROWENA MAHINAY",4,"A",null,"/",null,null,null,"/",null,"FRUSTRATION"]
[5,"ARINGO, RYSA ABELLO",4,"A",null,"/",null,null,"/",null,null,"INSTRUCTIONAL"]
[6,"CRUZADO, MIKAELLA MOLERA",4,null,null,"/",null,"/",null,null,null,"INSTRUCTIONAL"]
[7,"DACUMA, MARY ROSE O.",4,"A","/",{"$nulls":4},"/",null,"FRUSTRATION"]
[8,"ERA, IRISH DILOY",4,null,null,"/",null,null,null,"/",null,"FRUSTRATION"]
[9,"FERNANDEZ, ASHLEY NICOLE R.",5,"A","/",{"$nulls":4},"/",null,"FRUSTRATION"]
[10,"FLORES, JOLENE ARTICA",4,"A",null,"/",null,null,null,"/",null,"FRUSTRATION"]
[11,"GARBIN, PRINCESS ERICKA PANGILINAN",5,"A","/",null,null,"/",null,null,null,"INDEPENDENT"]
[12,"GOPIO, RACHEL ANN D.",4,"A",null,"/",null,null,null,"/",null,"FRUSTRATION"]
[13,"HAYAGAN, EUNICE ABEGAIL RAGO",5,"A",null,"/",null,null,null,"/",null,"FRUSTRATION"]
[14,"JACINTO, ALLEGRA FAITH",5,"A",null,"/",null,"/",null,null,null,"INSTRUCTIONAL"]
[15,"JORZA, JESSABEL B.",5,"A","/",null,null,"/",null,null,null,"INDEPENDENT"]
[16,"MAHUSAY, AILYN B.",5,"A","/",null,null,null,"/",null,null,"INSTRUCTIONAL"]
[17,"MANLAPIG, DAISYRE GABUYA",4,"A",null,"/",null,"/",null,null,null,"INSTRUCTIONAL"]
[18,"MORTEGA, ANNA LEA",5,"A","/",null,null,"/",null,null,null,"INDEPENDENT"]
[19,"PERALTA, JULIA ARIAN C.",4,"A",null,"/",null,null,"/",null,null,"INSTRUCTIONAL"]
[20,"RAMOS, FRANCHESCA SHANE CONCEPTION",4,"A",null,"/",null,null,null,"/",null,"FRUSTRATION"]
[21,"REYES, JAMEILA MAE CRUZ",4,"A",null,"/",null,"/",null,null,null,"INSTRUCTIONAL"]
[22,"SERDENA, ZAILA ANGELICA VELOSO",5,"A","/",null,null,"/",null,null,null,"INDEPENDENT"]
[23,"TAN, HANNA NICOLE DACLES",5,"A","/",null,null,null,"/",null,null,"INSTRUCTIONAL"]
[24,"VENEGAS, TRIZZA DEMETRIA",5,"A","/",null,null,"/",null,null,null,"INDEPENDENT"]
[]
[]
[]
[null,"INDEPENDENT",8]
[null,"INSTRUCTIONAL",21]
[null,"FRUSTRATION",19,null,null,null,"                                                                                                                                                                                                                                                                                                                                                                                                                                                                                                                                                                                                                                                                                                                                                                                                                                                                                                                                                                                                                                                                                                                                                                                                                                                                                                                                                                                                                                                                                                                                                                                                                                                                                                                                                                                                                                                                                                                                                                                                                                                                                                                                                                                                                                                                                                                                                                                                                                                                                                                                                                                                                                                                                                                                                                                                                                                                                                                                                                                                                                                                                                                                                                                                                                                                                                                                                                                                                                                                                                                                                                                                                                                              "]
[null,null,{"$f":"SUM(C68,C67,C69,C70)","v":48}]
[null,"GST PASSER",0]

{"sheet":"LOVE","index":2,"n_rows":72,"n_cols":12,"rows_kept":72,"cut":false,"hidden":false,"merged":[[0,0,0,11],[1,0,1,11],[2,0,2,11],[3,0,3,11],[4,0,4,11],[5,0,5,11],[6,0,6,11],[7,0,7,11],[9,4,9,6],[9,7,9,9],[44,0,44,1],[10,1,11,1],[10,2,11,2],[10,4,11,4],[10,5,11,5],[10,6,11,6],[10,7,11,7],[10,8,11,8],[10,9,11,9],[10,10,11,10],[10,11,11,11]]}
["APPENDIX E"]
["Phil-IRI Form 4, Page 1"]
["Individual Summary Record (ISR)"]
["Talaan ng Indibidwal na Pagbabasa (TIP)"]
["SECTION    LOVE"]
["School: Sitero FranciscoMNHS   Teacher:   G. EDUARDO CRUZ"]
["English: "]
["Filipino: "]
[]
[null,"Level Started","Level","Set","Word Reading",null,null,"Comprehension",null,null,"Date Taken"]
[null,"Mark with an *",null,"Indicate if A. B. ","Ind","Ins","Frus","Ind","Ins","Frus",null,"READING PROFILE"]
[null,null,null,"C. or D"]
[1,"ALANO, DARYLMON S.",null,"A"]
[2,"ALMOSARA, ARJAY DLC",5,"A","/",null,null,null,"/",null,null,"INSTRUCTIONAL"]
[3,"BALILING , SANVY",4,"A",null,null,"/",null,null,"/",null,"FRUSTRATION"]
[4,"BERNADRDINO, MARCO STEVEN D.",4,"A","/",null,null,null,"/",null,null,"INSTRUCTIONAL"]
[5,"BIERSO, JOSEPH EZEKIEL B.",4,"A","/",null,null,"/",null,null,null,"INDEPENDENT"]
[6,"CABRERA, CHARLES B.",4,"A",null,"/",null,null,null,"/",null,"FRUSTRATION"]
[7,"CAMPANA, JOHN MANUEL A.",null,"A"]
[8,"CAPINA, NICKO JAY P.",5,"A","/",null,null,"/",null,null,null,"INDEPENDENT"]
[9,"CORPUZ, WINDELL L.",4,"A",null,"/",null,"/",null,null,null,"INSTRUCTIONAL"]
[10,"CRAYO, DEEKHI JZEILRYQ O.",4,"A","/",null,null,"/",null,null,null,"INDEPENDENT"]
[11,"CURTINA, JHON MARK M.",5,"A",null,"/",null,"/",null,null,null,"INSTRUCTIONAL"]
[12,"DATU IMAM, ACARI Iii",5,"A","/",null,null,"/",null,null,null,"INDEPENDENT"]
[13,"DE GUZMAN, PATRICK M.",5,"A","/",null,null,"/",null,null,null,"INDEPENDENT"]
[14,"DELA CRUZ, JHON JAMES L.",4,"A",null,"/",null,null,"/",null,null,"INSTRUCTIONAL"]
[15,"ESTRAEL, JETRUD C.",4,"A","/",null,null,"/",null,null,null,"INDEPENDENT"]
[16,"FRANCISCO, FERRY JHON P.",4,"A","/",{"$nulls":4},"/",null,"FRUSTRATION"]
[17,"GARCIA , KURT C.",4,"A",null,"/",null,null,null,"/",null,"FRUSTRATION"]
[18,"GLORIA, RONNEL JR M.",4,"A",null,"/",null,null,null,"/",null,"FRUSTRATION"]
[19,"GURANG JR, ALEXANDER M.",4,"A","/",{"$nulls":4},"/",null,"FRUSTRATION"]
[20,"HAO HAO, RENZMAR R.",4,"A",null,"/",null,null,"/",null,null,"INSTRUCTIONAL"]
[21,"HENSON, WEESLIE M.",4,"A",null,"/",null,null,null,"/",null,"FRUSTRATION"]
[22,"MANALO, MAHRK VIEN L.",5,"A","/",null,null,"/",null,null,null,"INDEPENDENT"]
[23,"MIANO, DAILE ENZON T.",4,"A","/",null,null,null,"/",null,null,"INSTRUCTIONAL"]
[24,"MILLARES, JOSE GABRIEL A.",4,"A",null,"/",null,null,null,"/",null,"FRUSTRATION"]
[25,"MURING, JAME EDCEL L.",4,"A",null,null,"/",null,"/",null,null,"FRUSTRATION"]
[26,"OBIAS, DOMINIC G.",4,"A",null,"/",null,null,null,"/",null,"FRUSTRATION"]
[27,"RIVERA, KHIMHAR",5,"A",null,null,"/",null,"/",null,null,"FRUSTRATION"]
[28,"RODRIGUEZ, JHON CALEV Q.",5,"A",null,"/",null,null,"/",null,null,"INSTRUCTIONAL"]
[29,"SOBRETODO, TOM KENNEDY M.",null,"A"]
[30,"VALENZUELA, JERALD PAUL M.",5,"A","/",null,null,null,"/",null,null,"INSTRUCTIONAL"]
[31,"YANGYANG, MIKE DAVE E.",4,"A",null,"/",null,null,null,"/",null,"FRUSTRATION"]
[32,"YUBAL, RHYAN A.",4,"A",null,"/",null,null,null,"/",null,"FRUSTRATION"]
["GIRLS"]
[1,"CASQUEJO, LORNA A.",4,"A",null,"/",null,null,"/",null,null,"INSTRUCTIONAL"]
[2,"DARLUCIO, FRANCHESKA DARLYN L.",4,"A",null,"/",null,null,null,"/",null,"FRUSTRATION"]
[3,"DE BELEN, OSRUMAY C.",5,"A","/",null,null,"/",null,null,null,"INDEPENDENT"]
[4,"DEALCA, ARIANNE JOY A.",5,"A",null,"/",null,null,null,"/",null,"FRUSTRATION"]
[5,"DEOCAREZA, YASMIEN A.",4,"A",null,"/",null,null,null,"/",null,"FRUSTRATION"]
[6,"ESCO, LALAUNE",4,"A","/",null,null,null,"/",null,null,"INSTRUCTIONAL"]
[7,"FERNANDEZ, JONEL MICH V.",4,"A",null,"/",null,"/",null,null,null,"INSTRUCTIONAL"]
[8,"FRANCISCO, MARY GRACE M.",4,"A","/",null,null,null,"/",null,null,"INSTRUCTIONAL"]
[9,"LARESMA , TRISHA",4,"A","/",null,null,null,"/",null,null,"INSTRUCTIONAL"]
[10,"MANATAD, MONICA JOY",4,"A",null,"/",null,"/",null,null,null,"INSTRUCTIONAL"]
[11,"MANOLID, EDNA C.",4,"A",null,"/",null,"/",null,null,null,"INSTRUCTIONAL"]
[12,"MARIMON, JOSELYN L.",4,"A","/",null,null,"/",null,null,null,"INDEPENDENT"]
[13,"NOCIDAL, MARIANE V.",4,"A","/",null,null,null,"/",null,null,"INSTRUCTIONAL"]
[14,"OBORDO, GRECHELLE Q.",4,"A",null,"/",null,null,"/",null,null,"INSTRUCTIONAL"]
[15,"PARABAS, KEANNA JEAN G.",5,"A","/",null,null,null,"/",null,null,"INSTRUCTIONAL"]
[16,"PONTILA, KRISHA MAC L.",4,"A","/",null,null,null,"/",null,null,"INSTRUCTIONAL"]
[17,"RICARDO, PATRICIA S.",5,"A","/",null,null,"/",null,null,null,"INDEPENDENT"]
[18,"SAGANA, MARIANNE JOY L.",4,"A",null,"/",null,null,null,"/",null,"FRUSTRATION"]
[19,"TABINAS, RIO NICOLE L.",5,"A","/",null,null,"/",null,null,null,"INDEPENDENT"]
[20,"TENEDERO, JESSICA B.",4,"A",null,"/",null,null,null,"/",null,"FRUSTRATION"]
[21,"TOLENTINO, JOYCE P.",5,"A","/",{"$nulls":4},"/",null,"FRUSTRATION"]
[]
[null,"INDEPENDENT",11]
[null,"INSTRUCTIONAL",20]
[null,"FRUSTRATION",19,null,null,null,"                                                                                                                                                                                                                                                                                                                                                                                                                                                                                                                                                                                                                                                                                                                                                                                                                                                                                                                                                                                                                                                                                                                                                                                                                                                                                                                                                                                                                                                                                                                                                                                                                                                                                                                                                                                                                                                                                                                                                                                                                                                                                                                                                                                                                                                                                                                                                                                                                                                                                                                                                                                                                                                                                                                                                                                                                                                                                                                                                                                                                                                                                                                                                                                                                                                                                                                                                                                                                                                                                                                                                                                                                                                              "]
[null,null,{"$f":"SUM(C68,C67,C69,C70)","v":50}]
[null,"GST PASSER",0]

{"sheet":"LOYALTY","index":3,"n_rows":75,"n_cols":12,"rows_kept":75,"cut":false,"hidden":false,"merged":[[0,0,0,11],[1,0,1,11],[2,0,2,11],[3,0,3,11],[4,0,4,11],[5,0,5,11],[6,0,6,11],[7,0,7,11],[9,4,9,6],[9,7,9,9],[48,0,48,1],[10,1,11,1],[10,2,11,2],[10,4,11,4],[10,5,11,5],[10,6,11,6],[10,7,11,7],[10,8,11,8],[10,9,11,9],[10,10,11,10],[10,11,11,11]]}
["APPENDIX E"]
["Phil-IRI Form 4, Page 1"]
["Individual Summary Record (ISR)"]
["Talaan ng Indibidwal na Pagbabasa (TIP)"]
["SECTION    LOYALTY"]
["School: Sitero FranciscoMNHS   Teacher:   G. EDUARDO CRUZ"]
["English: "]
["Filipino: "]
[]
[null,"Level Started","Level","Set","Word Reading",null,null,"Comprehension",null,null,"Date Taken"]
[null,"Mark with an *",null,"Indicate if A. B. ","Ind","Ins","Frus","Ind","Ins","Frus",null,"READING PROFILE"]
[null,null,null,"C. or D"]
[1,"ANGELES, JOBERT M.",null,"A"]
[2,"BALANG, AARON JOHN R.",4,"A","/",null,null,null,"/",null,null,"INSTRUCTIONAL"]
[3,"BAUTISTA, MARION DERECK L.",5,"A","/",null,null,null,"/",null,null,"INSTRUCTIONAL"]
[4,"BIARES, KENN C.",null,"A"]
[5,"BRIOSO, JAYSON D.T.",4,"A","/",{"$nulls":4},"/",null,"FRUSTRATION"]
[6,"CALO-OY ADAMSON M.",4,"A","/",null,null,"/",null,null,null,"INDEPENDENT"]
[7,"Claro , Kyle",4,"A","/",{"$nulls":4},"/",null,"INDEPENDENT"]
[8,"COL, JULIAN B.",null,"A"]
[9,"CONMIGO, ARMAND G.",4,"A","/",null,null,null,"/",null,null,"INSTRUCTIONAL"]
[10,"CONMIGO, FRANCIS G.",4,"A","/",null,null,"/",null,null,null,"INDEPENDENT"]
[11,"CORTEZ, KARL JHAN B.",4,"A","/",null,null,"/",null,null,null,"INDEPENDENT"]
[12,"CRUZ, NATHANIEL JAMES B.",5,"A","/",{"$nulls":4},"/",null,"FRUSTRATION"]
[13,"DEANG, JOAQUIN BRIAN ANGELO C.",4,"A","/",null,null,"/",null,null,null,"INDEPENDENT"]
[14,"DELOS SANTOS, JOHN CARLO A.",4,"A","/",null,null,"/",null,null,null,"INDEPENDENT"]
[15,"DELUPIO, ZORDRIK KANE C.",null,"A"]
[16,"DOLDOLIA, MIGSLOWE A.",5,"A","/",null,null,null,"/",null,null,"INSTRUCTIONAL"]
[17,"DOMALAON, RUSSELL P.",4,"A","/",null,null,"/",null,null,null,"INDEPENDENT"]
[18,"ESCOBAL, AJ IAN P.",5,"A","/",{"$nulls":4},"/",null,"FRUSTRATION"]
[19,"EUGENIO, RHIAN JAMES D.",4,"A","/",null,null,"/",null,null,null,"INDEPENDENT"]
[20,"FIESTADA, MARK HANSLEY C.",null,"A"]
[21,"GERVACIO, JOLO C.",4,"A","/",{"$nulls":4},"/",null,"FRUSTRATION"]
[22,"GONZAGA, JOSHUA N.",5,"A","/",null,null,"/",null,null,null,"INDEPENDENT"]
[23,"IGNO, CENDRIK V.",4,"A","/",{"$nulls":4},"/",null,"FRUSTRATION"]
[24,"LAO, JEFF SEVASTIAN A.",4,"A","/",null,null,"/",null,null,null,"INDEPENDENT"]
[25,"MAGBOO, SYMON D.",4,"A","/",null,null,null,"/",null,null,"INSTRUCTIONAL"]
[26,"Mendoza, Ronald Achilles Troy G.",4,"A","/",null,null,"/",null,null,null,"INDEPENDENT"]
[27,"MORCUSO, ARME JAY J.",4,"A","/",null,null,null,"/",null,null,"INSTRUCTIONAL"]
[28,"NOVIO, JULIUS C.",5,"A","/",null,null,"/",null,null,null,"INDEPENDENT"]
[29,"OCFEMIA, ACE VINCENT B.",null,"A"]
[30,"OFENDA, JUSTINE REY A.",5,"A","/",null,null,null,"/",null,null,"INSTRUCTIONAL"]
[31,"OLMEDO, DWAYNE PAUL M.",4,"A","/",null,null,"/",null,null,null,"INDEPENDENT"]
[32,"OMBOY, LARRY M.",null,"A"]
[33,"OPRIDO, ALWIN A.",4,"A","/",null,null,"/",null,null,null,"INDEPENDENT"]
[34,"RATILLA, ARCEL S.",4,"A","/",null,null,"/",null,null,null,"INDEPENDENT"]
[35,"SOGUILON, JHON JOSEPH R.",4,"A",null,"/",null,"/",null,null,null,"INSTRUCTIONAL"]
[36,"TOUQUERO, ANDREW A.",4,"A","/",{"$nulls":4},"/",null,"FRUSTRATION"]
["GIRLS",null,null,"A"]
[1,"AMOROSO, SHANNIAH J.",5,"A",null,"/",null,null,null,"/",null,"FRUSTRATION"]
[2,"ANDING, ALTHEA B.",4,"A","/",null,null,"/",null,null,null,"INDEPENDENT"]
[3,"BAJARDO, MA. KRISTEL D.R.R",5,"A","/",null,null,null,"/",null,null,"INSTRUCTIONAL"]
[4,"CABAG, ELAIZA MAE",4,"A","/",null,null,null,"/",null,null,"INSTRUCTIONAL"]
[5,"CASTIN, LOVELY JOY ANN B.",4,"A","/",null,null,null,"/",null,null,"INSTRUCTIONAL"]
[6,"CRISTOBAL, JUSTINE P.",4,"A","/",null,null,null,"/",null,null,"INSTRUCTIONAL"]
[7,"DANTES, NOREEN D.",4,"A","/",null,null,"/",null,null,null,"INDEPENDENT"]
[8,"DE LEON, ABIGAIL ASTRID J.",4,"A","/",null,null,"/",null,null,null,"INDEPENDENT"]
[9,"ESCALA, AIRA MAE R.",4,"A","/",null,null,"/",null,null,null,"INDEPENDENT"]
[10,"Esperanza ,Armea m.",4,"A","/",null,null,null,"/",null,null,"INSTRUCTIONAL"]
[11,"LAUREL, JESUFEIZEN C.",null,"A"]
[12,"LAWAS, BIANCA R.",null,"A"]
[13,"Lucero, Donnalyn",4,"A","/",{"$nulls":4},"/",null,"FRUSTRATION"]
[14,"LUGTU JAZMINE MAE G.",null,"A"]
[15,"MANAYA, BEATRIZ P.",5,"A","/",null,null,null,"/",null,null,"INSTRUCTIONAL"]
[16,"PALAD, JECELL ANN S.",4,"A","/",null,null,null,"/",null,null,"INSTRUCTIONAL"]
[17,"POSELIRO, JULIANA T.",4,"A","/",null,null,null,"/",null,null,"INSTRUCTIONAL"]
[18,"SABADO, KATE CAMILLE C.",4,"A","/",{"$nulls":4},"/",null,"FRUSTRATION"]
[19,"UBANA, ESMERALDA D.",5,"A","/",null,null,null,"/",null,null,"INSTRUCTIONAL"]
[]
[{"$nulls":6},"                                                                                                                                                                                                                                                                                                                                                                                                                                                                                                                                                                                                                                                                                                                                                                                                                                                                                                                                                                                                                                                                                                                                                                                                                                                                                                                                                                                                                                                                                                                                                                                                                                                                                                                                                                                                                                                                                                                                                                                                                                                                                                                                                                                                                                                                                                                                                                                                                                                                                                                                                                                                                                                                                                                                                                                                                                                                                                                                                                                                                                                                                                                                                                                                                                                                                                                                                                                                                                                                                                                                                                                                                                                              "]
[null,"INDEPENDENT",19]
[null,"INSTRUCTIONAL",17]
[null,"FRUSTRATION",9]
[null,null,{"$f":"SUM(C71,C70,C72,C73)","v":45}]
[null,"GST PASSER",0]

{"sheet":"PATIENCE","index":4,"n_rows":75,"n_cols":12,"rows_kept":75,"cut":false,"hidden":false,"merged":[[0,0,0,11],[1,0,1,11],[2,0,2,11],[3,0,3,11],[4,0,4,11],[5,0,5,11],[6,0,6,11],[7,0,7,11],[9,4,9,6],[9,7,9,9],[43,0,43,1],[10,1,11,1],[10,2,11,2],[10,4,11,4],[10,5,11,5],[10,6,11,6],[10,7,11,7],[10,8,11,8],[10,9,11,9],[10,10,11,10],[10,11,11,11]]}
["APPENDIX E"]
["Phil-IRI Form 4, Page 1"]
["Individual Summary Record (ISR)"]
["Talaan ng Indibidwal na Pagbabasa (TIP)"]
["SECTION    PATIENCE"]
["School: Sitero FranciscoMNHS   Teacher:   G. EDUARDO CRUZ"]
["English: "]
["Filipino: "]
[]
[null,"Level Started","Level","Set","Word Reading",null,null,"Comprehension",null,null,"Date Taken"]
[null,"Mark with an *",null,"Indicate if A. B. ","Ind","Ins","Frus","Ind","Ins","Frus",null,"READING PROFILE"]
[null,null,null,"C. or D"]
[1,"ALAYON, ALJON P.",4,"A","/",{"$nulls":4},"/",null,"FRUSTRATION"]
[2,"ALCANTARA, JOHN MARC C.",4,"A","/",{"$nulls":4},"/",null,"FRUSTRATION"]
[3,"ARBIS, MARK JOSEPH Dr.",4,"A","/",null,null,null,"/",null,null,"INSTRUCTIONAL"]
[4,"AUJERO, CLEODARN YVANIC F.",4,"A","/",null,null,"/",null,null,null,"INDEPENDENT"]
[5,"AZORES, KYLE JHANUA G.",5,"A","/",{"$nulls":4},"/",null,"FRUSTRATION"]
[6,"BACANI, MARK AJ B.",4,"A",null,"/",null,null,null,"/",null,"FRUSTRATION"]
[7,"BEJO, PAUL SAMSON G.",5,"A","/",null,null,"/",null,null,null,"INDEPENDENT"]
[8,"BERNADINO, JORDAN T.",4,"A","/",{"$nulls":4},"/",null,"FRUSTRATION"]
[9,"COFUENTES, NATAHANIEL A.",4,"A","/",null,null,"/",null,null,null,"INDEPENDENT"]
[10,"DALID, NINO BRIEN L.",4,"A","/",null,null,"/",null,null,null,"INDEPENDENT"]
[11,"DARLUCIO, DANIEL WAYNE I.",4,"A",null,"/",null,null,"/",null,null,"INSTRUCTIONAL"]
[12,"DE JESUS, JHON BENEDICT B.",4,"A","/",null,null,"/",null,null,null,"INDEPENDENT"]
[13,"DUMAGUIN, REYMARK V.",4,"A",null,"/",null,"/",null,null,null,"INSTRUCTIONAL"]
[14,"ESCARIAGA, MARK",4,"A","/",null,null,"/",null,null,null,"INDEPENDENT"]
[15,"ESPIRITU, CHRISTIAN JAY M.",4,"A",null,"/",null,null,"/",null,null,"INSTRUCTIONAL"]
[16,"FALLER, JUSTIN JAMES B.",5,"A","/",null,null,"/",null,null,null,"INDEPENDENT"]
[17,"GABAC, NESTOR JR  G.",4,"A","/",null,null,null,"/",null,null,"INSTRUCTIONAL"]
[18,"GARCIA, JHON MARK D.",null,"A"]
[19,"GARCIA, JOMAR T.",4,"A","/",null,null,"/",null,null,null,"INDEPENDENT"]
[20,"GAREJO, JYSONRIE L.",4,"A","/",{"$nulls":4},"/",null,"FRUSTRATION"]
[21,"GOZO, JEAN KIEFER P.",5,"A","/",null,null,null,"/",null,null,"INSTRUCTIONAL"]
[22,"JAUM, BILLY JERALD D.",null,"A"]
[23,"LAZARO , JENNESIS G.",null,"A"]
[24,"LLANITA , LORENCE",null,"A"]
[25,"MACADAY, REYMARK J.",4,"A","/",null,null,"/",null,null,null,"INDEPENDENT"]
[26,"PACQUIAO, JOHN STEVEN R.",null,"A"]
[27,"RIVERA, JERICHO A.",5,"A","/",null,null,null,"/",null,null,"INSTRUCTIONAL"]
[28,"SANIEL, MARCO ADRIANE R.",4,"A","/",{"$nulls":4},"/",null,"FRUSTRATION"]
[29,"SCARELLA, NICHOLAS ANDREI T.",4,"A","/",null,null,"/",null,null,null,"INDEPENDENT"]
[30,"TAPEL, GIO T.",4,"A","/",null,null,"/",null,null,null,"INDEPENDENT"]
[31,"TUSCANO, JHON CHRISTIAN M.",4,"A","/",null,null,"/",null,null,null,"INDEPENDENT"]
["GIRLS",null,null,"A"]
[1,"ABRIO, CINDY GRACE U.",4,"A","/",null,null,"/",null,null,null,"INDEPENDENT"]
[2,"ALFORNON, APPLE A.",4,"A","/",null,null,"/",null,null,null,"INDEPENDENT"]
[3,"ANDRES, ARABELLE POULYN C.",null,"A"]
[4,"ANTONIO, JAHNICA JHEX M.",4,"A","/",null,null,"/",null,null,null,"INDEPENDENT"]
[5,"AROPO, JULIAN NICOLE D.",null,"A"]
[6,"BARRA, CHYNNA M.",4,"A","/",null,null,"/",null,null,null,"INDEPENDENT"]
[7,"BERNABE, DANNA MARIE B.",null,"A"]
[8,"BUENO, EMILYN C.",5,"A","/",null,null,null,"/",null,null,"INSTRUCTIONAL"]
[9,"BULAWAN, PRINCESS A.",4,"A","/",{"$nulls":4},"/",null,"FRUSTRATION"]
[10,"CANETE, JULIANA",null,"A"]
[11,"CASTOR, ZAIRA S.",5,"A","/",null,null,null,"/",null,null,"INSTRUCTIONAL"]
[12,"EDULSORA, CASSANDRA JANE F.",4,"A","/",null,null,"/",null,null,null,"INDEPENDENT"]
[13,"LABAJO, JENNIFER C.",5,"A","/",null,null,"/",null,null,null,"INDEPENDENT"]
[14,"MANALO, ALLAYSA CLAIRE K.",4,"A",null,"/",null,null,"/",null,null,"INSTRUCTIONAL"]
[15,"MILLARES, CRISTENA BOBILA",5,"A","/",null,null,"/"]
[16,"MORENO, RICHEL URIARTE",4,"A","/",null,null,"/",null,null,null,"INDEPENDENT"]
[17,"PASIA, LEA H.",4,"A",null,"/",null,"/",null,null,null,"INSTRUCTIONAL"]
[18,"SAMSON, KRYSTEL ANNE G.",5,"A","/",null,null,"/",null,null,null,"INDEPENDENT"]
[19,"TORRALBA, LADY MARGERETH B.",4,"A",null,null,"/",null,null,"/",null,"INSTRUCTIONAL"]
[20,"VALE, CHLOE NICOLE A.",4,"A","/",null,null,null,"/",null,null,"INSTRUCTIONAL"]
[21,"VALENCE, ALTHEA MONICA P.",4,"A","/",null,null,null,"/",null,null,"INSTRUCTIONAL"]
[22,"VICTORIANO, ANGEL A.",4,"A",null,"/",null,null,null,"/",null,"FRUSTRATION"]
[23,"ZAMBAS, ARABELA A.",5,"A","/",null,null,"/",null,null,null,"INDEPENDENT"]
[]
[]
[{"$nulls":6},"                                                                                                                                                                                                                                                                                                                                                                                                                                                                                                                                                                                                                                                                                                                                                                                                                                                                                                                                                                                                                                                                                                                                                                                                                                                                                                                                                                                                                                                                                                                                                                                                                                                                                                                                                                                                                                                                                                                                                                                                                                                                                                                                                                                                                                                                                                                                                                                                                                                                                                                                                                                                                                                                                                                                                                                                                                                                                                                                                                                                                                                                                                                                                                                                                                                                                                                                                                                                                                                                                                                                                                                                                                                              "]
[null,"INDEPENDENT",21]
[null,"INSTRUCTIONAL",14]
[null,"FRUSTRATION",9]
[null,null,{"$f":"SUM(C72,C71,C73)","v":44}]
[null,"GST PASSER",0]

{"sheet":"DILIGENCE","index":5,"n_rows":72,"n_cols":12,"rows_kept":72,"cut":false,"hidden":false,"merged":[[0,0,0,11],[1,0,1,11],[2,0,2,11],[3,0,3,11],[4,0,4,11],[5,0,5,11],[6,0,6,11],[7,0,7,11],[9,4,9,6],[9,7,9,9],[10,1,11,1],[10,2,11,2],[10,4,11,4],[10,5,11,5],[10,6,11,6],[10,7,11,7],[10,8,11,8],[10,9,11,9],[10,10,11,10],[10,11,11,11]]}
["APPENDIX E"]
["Phil-IRI Form 4, Page 1"]
["Individual Summary Record (ISR)"]
["Talaan ng Indibidwal na Pagbabasa (TIP)"]
["SECTION    DILIGENCE"]
["School: Sitero FranciscoMNHS   Teacher:   Bb. Priscilla B.Raymundo  "]
["English: "]
["Filipino: "]
[]
[null,"Level Started","Level","Set","Word Reading",null,null,"Comprehension",null,null,"Date Taken"]
[null,"Mark with an *",null,"Indicate if A. B. ","Ind","Ins","Frus","Ind","Ins","Frus",null,"READING PROFILE"]
[null,null,null,"C. or D"]
[1,"ABELLO, JHONATHAN ARSODO",null,"A",null," /",null,null," /",null,null,"INSTRUCTIONAL"]
[2,"AMBUANG, ROBERT LOSPOC",5,"A",null," /",null,null," /",null,null,"INSTRUCTIONAL"]
[3,"AWI, JULIE ANDREW",5,"A",null,null," /",null," /",null,null,"FRUSTRATION"]
[4,"BESCA, KERT STEVEN CUMALING",4,"A"," /",null,null," /",null,null,null,"INDEPENDENT"]
[5,"COLINARES, MELVIN AQUINO",5,"A"," /",null,null," /",null,null,null,"INDEPENDENT"]
[6,"CRUZ, CHRISTOPHER JR ESPIRITU SANTO",4,"A",null," /",null,null," /",null,null,"INSTRUCTIONAL"]
[7,"DE GUZMAN, JAYPEE JIMENEZ",4,"A"," /",null,null," /",null,null,null,"INDEPENDENT"]
[8,"DOMAGOSO, PRINCE FARLEY P.",4,"A"]
[9,"DOMANDON JR, MANUEL MILANES",4,"A",null,null," /"," /",null,null,null,"INSTRUCTIONAL"]
[10,"ESTORNINOS JR, FRANKLIN ERVAS ",5,"A",null," /",null," /",null,null,null,"INSTRUCTIONAL"]
[11,"FRANCISCO, CHARLES B.",4,"A"," /",null,null," /",null,null,null,"INDEPENDENT"]
[12,"GACIS, REX JR DELACRUZ",5,"A",null," /",null," /",null,null,null,"INSTRUCTIONAL"]
[13,"GARGANTE, HARRY CERVANTES ",5,"A",null,null," /",null,null,"/",null,"FRUSTRATION"]
[14,"HERRERA, KYLE LORENCE GALOSO",null,"A",null," /",null,null," /",null,null,"INSTRUCTIONAL"]
[15,"HERTEZ, MARK ADRIAN PERALTA",4,"A"," /",null,null," /",null,null,null,"INSTRUCTIONAL"]
[16,"ISAIG, ROGER JAMES DELOS REYES ",5,"A",null," /",null," /",null,null,null,"INSTRUCTIONAL"]
[17,"LETADA, CARRLE EXEQUIEL JOSHUA ",5,"A"," /",{"$nulls":4}," /",null,"INSTRUCTIONAL"]
[18,"MACALINAO, JOHN EDWARD S.",4,"A",null,null," /",null," /",null,null,"INSTRUCTIONAL"]
[19,"MALLA, MARK DANIELLA PICO",4,"A",null," /",null,null,"   /",null,null,"INSTRUCTIONAL"]
[20,"MANALO, ROSAURO JR ALCANTARA",4,"A",null," /",null," /",null,null,null,"INSTRUCTIONAL"]
[21,"MANDANE, IAN JEOFFREY CALUSER",4,"A",null," /",null,null," /",null,null,"INSTRUCTIONAL"]
[22,"MANDANE, JUSTINE JOSHUA CALUSER",4,"A",null," /",null," /",null,null,null,"INSTRUCTIONAL"]
[23,"MODESTO, ALDRIN GROYAL ",4,"A"]
[24,"MOTIN, JERRY AMANTE ",4,"A",null," /",null," /",null,null,null,"INSTRUCTIONAL"]
[25,"PACHECO, SHAME V.",4,"A",null,null," /",null,null," /",null,"FRUSTRATION"]
[26,"PADILLA, CLARENCE PANILA",4,"A"]
[27,"RAFAEL, EZEKIEL JAY MERCADER",4,"A",null," /",null,"       /",null,null,null,"INSTRUCTIONAL"]
[28,"RAMOS, JOHN LLOYD MARCARRIO",4,"A"," /",null,null," /",null,null,null,"INDEPENDENT"]
[29,"RISCO, KRENCE CARL MARTIN",4,"A"]
[30,"ROMANGAYA, CHRISTOPHER REBALDE",4,"A",null," /",null," /",null,null,null,"INSTRUCTIONAL"]
[null,"GIRLS"]
[1,"ALASTRA, GERALDINE CASPE",4,"A"," /",null,null," /",null,null,null,"INDEPENDENT"]
[2,"ANTIPAS, SHARLA MAY DIMALALUAN ",5,"A"," /",null,null," /"," ",null,null,"INDEPENDENT"]
[3,"ARCA, SOPHIA ",5,"A","/",null,null," /",null,null,null,"INDEPENDENT"]
[4,"BALTAZAR, CHANZYL KYLE BURDIOS ",4,"A"," /",null,null," /",null,null,null,"INDEPENDENT"]
[5,"CADORNIGARA, LESLIE GASCON",5,"A",null," /",null," /",null,null,null,"INSTRUCTIONAL"]
[6,"CANAVERAS, RYZZA MAE CASANARE",5,"A"," /",null,null," /",null,null,null,"INDEPENDENT"]
[7,"CARPIO, RECHELLE ANN CORTINA",4,"A",null," /",null," /",null,null,null,"INSTRUCTIONAL"]
[8,"CATAYONG, KRISTINE L.",4,"A"]
[9,"ECALNE, RUBY ROSE EUGENIO",4,"A",null," /",null,null," /",null,null,"INSTRUCTIONAL"]
[10,"FLORES, MICHELLE ANN MANERO",5,"A",null," /",null," /",null,null,null,"INSTRUCTIONAL"]
[11,"GOCO, KATHLEEN P.",5,"A"]
[12,"GONZALES, RHIANNE ASHLEY P.",4,"A"," /",null,null," /",null,null,null,"INDEPENDENT"]
[13,"JEROSALEM, REJELYN FAITH L.",4,"A","/",null,null,"/",null,null,null,"INDEPENDENT"]
[14,"JOHNSON, LEKEZHIA WAY M.",4,"A",null," /",null," /",null,null,null,"INSTRUCTIONAL"]
[15,"MENDOZA, JANUARY HANAH ",5,"A"," /",null,null," /",null,null,null,"INSTRUCTIONAL"]
[16,"OBANA, AJANETTE RAMIREZ",4,"A"]
[17,"SALONG, PATRICIA CAMILLE VILLAMOR",4,"A"," /",null,null,null," /",null,null,"INSTRUCTIONAL"]
[18,"TAYROS, MARY ROSE BAGOOD",4,"A",null," /",null,null," /",null,null,"INSTRUCTIONAL"]
[19,"ZAMBAS, JENYLEN ARSADO",null,"A"]
[20,"Diaz, Cindy",5,"A","   /",null,null,"  /",null,null,null,"INDEPENDENT"]
[21,"Corcino, Janiza",5,"A"," /",{"$nulls":4}," /",null,"INSTRUCTIONAL"]
[22,"Lavina, Jeamelyn",5,"A"," /",null,null," /",null,null,null,"INDEPENDENT"]
[23,"Cosme, Lorenz",5,"A",null," /",null,null," /",null,null,"INSTRUCTIONAL"]
[{"$nulls":6},"                                                                                                                                                                                                                                                                                                                                                                                                                                                                                                                                                                                                                                                                                                                                                                                                                                                                                                                                                                                                                                                                                                                                                                                                                                                                                                                                                                                                                                                                                                                                                                                                                                                                                                                                                                                                                                                                                                                                                                                                                                                                                                                                                                                                                                                                                                                                                                                                                                                                                                                                                                                                                                                                                                                                                                                                                                                                                                                                                                                                                                                                                                                                                                                                                                                                                                                                                                                                                                                                                                                                                                                                                                                              "]
[null,"INDEPENDENT",14]
[null,"INSTRUCTIONAL",28]
[null,"FRUSTRATION",3]
[null,null,{"$f":"SUM(C69,C68,C70)","v":45}]
[null,"GST PASSER",0]

{"sheet":"WISDOM","index":6,"n_rows":74,"n_cols":12,"rows_kept":74,"cut":false,"hidden":false,"merged":[[0,0,0,11],[1,0,1,11],[2,0,2,11],[3,0,3,11],[4,0,4,11],[5,0,5,11],[6,0,6,9],[7,0,7,9],[9,4,9,6],[9,7,9,9],[10,1,11,1],[10,2,11,2],[10,4,11,4],[10,5,11,5],[10,6,11,6],[10,7,11,7],[10,8,11,8],[10,9,11,9],[10,10,11,10],[10,11,11,11]]}
["APPENDIX E"]
["Phil-IRI Form 4, Page 1"]
["Individual Summary Record (ISR)"]
["Talaan ng Indibidwal na Pagbabasa (TIP)"]
["SECTION     WISDOM"]
["School: Sitero FranciscoMNHS                                               Teacher:   Ms. Priscilla B.Raymundo                                                    "]
["English: "]
["Filipino: "]
[]
[null,"Level Started","Level","Set","Word Reading",null,null,"Comprehension",null,null,"Date Taken"]
[null,"Mark with an *",null,"Indicate if A. B. ","Ind","Ins","Frus","Ind","Ins","Frus",null,"READING PROFILE"]
[null,null,null,"C. or D"]
[1,"BODO,JHON KENETH DACARA",4,"A"," /",null,null," /",null,null,null,"INDEPENDENT"]
[2,"DE GUZMAN, ANDREI MAR GIANN BAUTISTA",4,"A"," /",null,null," /",null,null,null,"INDEPENDENT"]
[3,"GA, ALDRIN AVILA",5,"A"," /",null,null," /",null,null,null,"INDEPENDENT"]
[4,"LOZADA, AZRIEL CHAN PENTIOR",4,"A"," /",null,null," /",null,null,null,"INDEPENDENT"]
[5,"MARTINEZ, DUNCAN ARGUTA",4,"A",null," /",null," /",null,null,null,"INSTRUCTIONAL"]
[6,"MORENTE, LEVI VERDERA",4,"A",null," /",null,"/",null,null,null,"INSTRUCTIONAL"]
[7,"NAMO, YTHAN OPORTO",5,"A"," /",null,null," /",null,null,null,"INDEPENDENT"]
[8,"NANQUIL, KENNETH CHESTER",5,"A"," /",null,null," /",null,null,null,"INDEPENDENT"]
[9,"PEPE, BRENT ADRIAN BASACA",5,"A","         /",null,null," /",null,null,null,"INDEPENDENT"]
[10,"POBLACION, RAYMARK DAROY",5,"A"," /",null,null," /",null,null,null,"INDEPENDENT"]
[11,"RAPON, MARK ANGELO TAMO",5,"A","        /",null,null," /",null,null,null,"INDEPENDENT"]
[12,"RECATO, JUSTIN AMIEL YABIS ",5,"A",null," /",null," /",null,null,null,"INSTRUCTIONAL"]
[13,"SACDALAN, JOHN ERICK DELA CRUZ",5,"A",null," /",null," /",null,null,null,"INSTRUCTIONAL"]
[14,"SANTIAGO, LUIS DANIEL ",5,"A","       /",null,null," /",null,null,null,"INDEPENDENT"]
[15,"VILLASENCIO, DANIEL BALBIRAN",5,"A"," /",null,null," /",null,null,null,"INDEPENDENT"]
[16,"VIOLATA JOSEPH CARL BETCHER",5,"A"," /",null,null," /",null,null,null,"INDEPENDENT"]
[null,"GIRLS"]
[1,"ALONZO, ABEGAIL NACION",5,"A"," /",null,null," /",null,null,null,"INDEPENDENT"]
[2,"ALVA, ELAIZA JANE M.",5,"A","/",null,null," /",null,null,null,"INDEPENDENT"]
[3,"AMPARADO, JOSELYN",5,"A"," /",null,null," /",null,null,null,"INDEPENDENT"]
[4,"BADION, SARAH TOLENTINO",4,"A",null," /",null," /",null,null,null,"INSTRUCTIONAL"]
[5,"BAYTA, JANNA MARIA LOJENA",5,"A"," /",null,null,null," /",null,null,"INSTRUCTIONAL"]
[6,"BERNARDINO, SHARLENE GAMANA",5,"A","/",null,null," /",null,null,null,"INDEPENDENT"]
[7,"BOYLES, JAYANN",5,"A",null," /",null," /",null,null,null,"INDEPENDENT"]
[8,"CAMPANILLA, JANELLE ALASTRA",4,"A"," /",null,null," /",null,null,null,"INDEPENDENT"]
[9,"CARLOS, JHEN SAY BRAVANTE",7]
[10,"CODERES, LADY LYN GONALES",4,"A",null," /",null," /",null,null,null,"INSTRUCTIONAL"]
[11,"CUADRA, CRISCHELLE RIZABAL",5,"A"," /",null,null," /",null,null,null,"INDEPENDENT"]
[12,"DALANON, JENELYN DEL ROSARIO",5,"A",null,"  /",null," /",null,null,null,"INSTRUCTIONAL"]
[13,"DELA CRUZ, JEANELLE RODRIGUEZ",4,"A"," /",null,null," /",null,null,null,"INDEPENDENT"]
[14,"FERNANDEZ, PRINCESS DOROTHY GALVEZ",4,"A"," /",null,null," /",null,null,null,"INDEPENDENT"]
[15,"FRANCISCO, ABYGAIL PAGUBAYAN",5,"A",null," /",null," /",null,null,null,"INSTRUCTIONAL"]
[16,"GARCIA, KATHLEEN JOY REODIQUE",5,"A",null," /",null,null," /",null,null,"FRUSTRATION"]
[17,"GARET, CRYSTAL TUBOG",4,"A"," /",null,null," /",null,null,null,"INDEPENDENT"]
[18,"GONZAGA, JANELLE NACION",4,"A"," /",null,null," /",null,null,null,"INDEPENDENT"]
[19,"GUMERA, JORDIN IGDALINO",4,"A",null,null," /"," /",null,null,null,"INSTRUCTIONAL"]
[20,"JOCSON, LARIZA KELLY BENICIO",5,"A"," /",null,null," /",null,null,null,"INDEPENDENT"]
[21,"MANIMTIM, EANSLY LUZON ",5,"A",null," /",null," /",null,null,null,"INSTRUCTIONAL"]
[22,"MONTERDE, ARAH ROSE PAGDAYUNAN",4,"A"," /",null,null," /",null,null,null,"INDEPENDENT"]
[23,"PAGALA, SHANE ANN CUADRA",5,"A"," /",null,null," /",null,null,null,"INDEPENDENT"]
[24,"PAGAPULANGAN, MARLYN TERRADO",5,"A"," /",null,null," /",null,null,null,"INDEPENDENT"]
[25,"QUINIO, SHANE IRA AMENIN",4,"A"," /",null,null," /",null,null,null,"INDEPENDENT"]
[26,"RABANES, MICAH ANGELINE ",5,"A","/",null,null,null," /",null,null,"INSTRUCTIONAL"]
[27,"RAVAGO, ANTONELA CUSTODIO",4,"A",null," /",null," /",null,null,null,"INSTRUCTIONAL"]
[28,"REMPILLO, YNJIE BARDILAS",5,"A","/",null,null," /",null,null,null,"INDEPENDENT"]
[29,"REYES, JERRICAH-",5,"A",null," /",null,null," /",null,null,"INSTRUCTIONAL"]
[30,"REYES, JULIEANNE",5,"A",null," /",null,null," /",null,null,"INSTRUCTIONAL"]
[31,"SANGATANAN, ALTHEA MAE MAMADES",5,"A"," /",null,null," /",null,null,null,"INDEPENDENT"]
[32,"SILAPAN, ERICKA BALINGIT",4,"A",null," /",null," /",null,null,null,"INSTRUCTIONAL"]
[33,"SISON, ALTHEA EUNICE PORCALLA",4,"A"," /",null,null," /",null,null,null,"INDEPENDENT"]
[34,"TINA, AKISHA LIM",4,"A",null," /",null," /",null,null,null,"INSTRUCTIONAL"]
[35,"Santiago, Juluius Daniel",5,"A"," /",null,null," /",null,null,null,"INDEPENDENT"]
[36,"Domincal, Jhon Michael",5,"A","    /",null,null," /",null,null,null,"INDEPENDENT"]
[37,"Saavedra, Alvin Dave",5,"A"," /",null,null," /",null,null,null,"INDEPENDENT"]
[38,"VALENCE, HYACINTH NOREEN",5,"A","/",null,null,null," /",null,null,"INSTRUCTIONAL"]
[39,"VALENCE, JANEL M.",5,"A"," /",null,null," /",null,null,null,"INDEPENDENT"]
[]
[null,"INDEPENDENT",35]
[null,"INSTRUCTIONAL",18]
[null,"FRUSTRATION",1]
[null,null,{"$f":"SUM(C71,C70,C72)","v":54}]
[null,"GST PASSER",1]

{"sheet":"HUMILITY","index":7,"n_rows":75,"n_cols":12,"rows_kept":75,"cut":false,"hidden":false,"merged":[[0,0,0,9],[1,0,1,9],[2,0,2,9],[3,0,3,9],[4,0,4,9],[5,0,5,9],[6,0,6,9],[7,0,7,9],[9,4,9,6],[9,7,9,9],[10,1,11,1],[10,2,11,2],[10,4,11,4],[10,5,11,5],[10,6,11,6],[10,7,11,7],[10,8,11,8],[10,9,11,9],[10,10,11,10],[10,11,11,11]]}
["APPENDIX E"]
["Phil-IRI Form 4, Page 1"]
["Individual Summary Record (ISR)"]
["Talaan ng Indibidwal na Pagbabasa (TIP)"]
["SECTION     HUMILITY"]
["School: Sitero FranciscoMNHS                                               Teacher:   Ms. Priscilla B.Raymundo                                                    "]
["English: "]
["Filipino: "]
[]
[null,"Level Started","Level","Set","Word Reading",null,null,"Comprehension",null,null,"Date Taken"]
[null,"Mark with an *",null,"Indicate if A. B. ","Ind","Ins","Frus","Ind","Ins","Frus",null,"READING PROFILE"]
[null,null,null,"C. or D"]
[1,"ALVAREZ, RO- ANN KIM DAVID",5," A"," /",null,null," /",null,null,null,"INDEPENDENT"]
[2,"AMBALADA, JHON RONALD BASILAN",4," A"," /",null,null," /",null,null,null,"INDEPENDENT"]
[3,"ANTALAN, GABRIEL MANUEL",4," A"," /",null,null," /",null,null,null,"INDEPENDENT"]
[4,"CAMBIL, JHON PAUL TAMANO",5," A"," /",null,null," /",null,null,null,"INDEPENDENT"]
[5,"DACANAY, JHAREN CATUBIG",5," A"," /",null,null," /",null,null,null,"INDEPENDENT"]
[6,"DAGUPAN, RALBIE SAJOL",5," A"," /",null,null," /",null,null,null,"INDEPENDENT"]
[7,"DAQUERA, JHON CARLO A.",5," A"," /",null,null," /",null,null,null,"INDEPENDENT"]
[8,"DAYAGDAG, JUSTINE F.",5," A"," /",null,null," /",null,null,null,"INDEPENDENT"]
[9,"DE GUZMAN, JHON PETER ALIASOT",5," A"," /",null,null," /",null,null,null,"INDEPENDENT"]
[10,"DULDULAO, KYLE EURE L.",5," A"," /",null,null," /",null,null,null,"INDEPENDENT"]
[11,"OSA, JAMES CARLO ERANA",4," A"," /",null,null," /",null,null,null,"INDEPENDENT"]
[12,"SANTILLANA, JOSEPH TACUD",5," A",null,"  /",null," /",null,null,null,"INSTRUCTIONAL"]
[13,"SANTOS, MARK LANZ VILLA CORTA",5," A"," /",null,null," /",null,null,null,"INDEPENDENT"]
[null,"GIRLS"]
[1,"ACUNA, JADE ALLISON",5," A"," /",null,null," /",null,null,null,"INDEPENDENT"]
[2,"AGUILAR, MARY GRACE PORE ",7]
[3,"ALFONSO, NINA ANGELIE UNGAB",7]
[4,"ANDRES, LOUREAH JEAN ROLLO",4," A"]
[5,"ARIOLA, MARRY ANN MAHIGUGMA-ON",7]
[6,"AYALA, SOFIA EMBIDO",5," A"]
[7,"BADILLA, SANTINA MEHAL -",5," A",null," /",null,"/",null,null,null,"INSTRUCTIONAL"]
[8,"BASCO, JANINE ARMENTIA",5," A"," /",null,null," /",null,null,null,"INDEPENDENT"]
[9,"CALMA, SHAKE RACAL",5," A"," /",null,null," /",null,null,null,"INDEPENDENT"]
[10,"CENA, ERICA RAMIL",5," A"," /",null,null," /",null,null,null,"INDEPENDENT"]
[11,"CUBILLAS, JHERECCCA KIEAH",5," A"," /  ",null,null," /",null,null,null,"INDEPENDENT"]
[12,"DE LEON, SHIELLA GAMENG",4," A"," /  ",null,null," /",null,null,null,"INDEPENDENT"]
[13,"DUNGAO, ARRIZHA JOYCE SAYSON",5," A"," /  ",null,null," /",null,null,null,"INDEPENDENT"]
[14,"GIGANTE, VIVIAN KIM DC.",5," A"," /  ",null,null," /",null,null,null,"INDEPENDENT"]
[15,"GUCO,  JULIANA MAE DELA CRUZ",4," A"," /  ",null,null," /",null,null,null,"INDEPENDENT"]
[16,"HABABAG, MITCH CHEZKA DEL MENDO",4," A"," /  ",null,null," /",null,null,null,"INDEPENDENT"]
[17,"JABUEN, ASHANTI GAIL PASCUAL",7]
[18,"JIMENA, ZAIRA LOU FOMBUENA",5," A"," /  ",null,null," /",null,null,null,"INDEPENDENT"]
[19,"LABAY, ASHANA ACEL SALAMAT",5," A"," /  ",null,null," /",null,null,null,"INDEPENDENT"]
[20,"LAURON, PRINCESS TRISHA ADVINCULA",7]
[21,"LOPEZ, JAZ SHAISHENE GASPAN",4," A"," /  ",null,null," /",null,null,null,"INDEPENDENT"]
[22,"LUMANOG, KIMBERLY SHANE A.",7]
[23,"MAGPOC, NAOMHIE INGRID",7]
[24,"MARTINEZ, GELLA ELAINE GARCIA",5," A"," /  ",null,null," /",null,null,null,"INDEPENDENT"]
[25,"MOSQUITO, GLYZA MONIQUE CATAYAS",7]
[26,"PABELONA, JOANA MARIE MANONGSONG",7]
[27,"PALMARIO, RIZZA FAYE REODIQUE",5,null," /  ",null,null," /",null,null,null,"INDEPENDENT"]
[28,"PENAMORA, CHRISIA MAY S.",5," A"," /  ",null,null," /",null,null,null,"INDEPENDENT"]
[29,"RIGOR, CERMAINE GEM REYNALDA",5," A"," /  ",null,null," /",null,null,null,"INDEPENDENT"]
[30,"SALONGA, NAOMI SOPHIA GUZMAN",7]
[31,"SAMONTE, EUNICE TIBURCIO",4," A"," /  ",null,null," /",null,null,null,"INDEPENDENT"]
[32,"SANCHEZ, PRINCESS SHANEL TORRES",5," A"," /  ",null,null," /",null,null,null,"INDEPENDENT"]
[33,"SANICO, MARY JOY CANSINO",5," A"," /  ",null,null," /",null,null,null,"INDEPENDENT"]
[34,"SISTER, JENNILYN CERBITO",5," A"," /  ",null,null," /",null,null,null,"INDEPENDENT"]
[35,"TAN, HERSHEY KISSES M.",5," A"," /  ",null,null," /",null,null,null,"INDEPENDENT"]
[36,"TARO, FAITH CLOUIE JOAQUIN",7]
[37,"VALDELLON, MIKAELA CHLOE ALVARAN",4," A"," /  ",null,null," /",null,null,null,"INDEPENDENT"]
[38,"VALEROS, JHANA MENISTERIO",5," A"," /  ",null,null," /",null,null,null,"INDEPENDENT"]
[39,"RETIZO, EDWIN P.",5,null," /  ",null,null," /",null,null,null,"INDEPENDENT"]
[40,"GARCIA, DANIEL LANCE",5,null," /  ",null,null," /",null,null,null,"INDEPENDENT"]
[41,"MERCOLITA, LOUISA A.",5,null," /  ",null,null," /",null,null,null,"INDEPENDENT"]
[]
[]
[]
[null,"INDEPENDENT",39]
[null,"INSTRUCTIONAL",2]
[null,"FRUSTRATION",0]
[null,null,{"$f":"SUM(C72,C71,C73)","v":41}]
[null,"GST PASSER",10]

{"sheet":"DIGNITY","index":8,"n_rows":71,"n_cols":12,"rows_kept":71,"cut":false,"hidden":false,"merged":[[0,0,0,11],[1,0,1,11],[2,0,2,11],[3,0,3,11],[4,0,4,11],[5,0,5,11],[6,0,6,9],[7,0,7,9],[9,4,9,6],[9,7,9,9],[10,1,11,1],[10,2,11,2],[10,4,11,4],[10,5,11,5],[10,6,11,6],[10,7,11,7],[10,8,11,8],[10,9,11,9],[10,10,11,10],[10,11,11,11]]}
["APPENDIX E"]
["Phil-IRI Form 4, Page 1"]
["Individual Summary Record (ISR)"]
["Talaan ng Indibidwal na Pagbabasa (TIP)"]
["SECTION     DIGNITY"]
["School: Sitero FranciscoMNHS                                               Teacher:   Ms. Priscilla B.Raymundo                                                    "]
["English: "]
["Filipino: "]
[]
[null,"Level Started","Level","Set","Word Reading",null,null,"Comprehension",null,null,"Date Taken"]
[null,"Mark with an *",null,"Indicate if A. B. ","Ind","Ins","Frus","Ind","Ins","Frus",null,"READING PROFILE"]
[null,null,null,"C. or D"]
[1,"ABRILLO, ELVERN JAY OXINA",4,"A",null," /",null,null," /",null,null,"INSTRUCTIONAL"]
[2,"AMIHAN, JHON PAUL MENDOZA",4,"A",null,null," /"," /",null,null,null,"INSTRUCTIONAL"]
[3,"BUSTAMANTE, MARK VINCENT C.",4,"A",null,null,"/",null," /",null,null,"FRUSTRATION"]
[4,"CUADRA, JBOY TARIPA",5,"A"," /",null,null,null," /",null,null,"INSTRUCTIONAL"]
[5,"CURAMMENG, JULIUS EXEKIEL",4,"A",null," /",null,null," /",null,null,"INSTRUCTIONAL"]
[6,"DANO, EDISON ADALAHAO",4,"A",null," /",null,null," /",null,null,"INSTRUCTIONAL"]
[7,"DOMALAON, RALPH PEREZ",4,"A"," /",null,null,null," /",null,null,"INSTRUCTIONAL"]
[8,"GARCIA, ARLON JOHN DURAS",4,"A",null," /",null,null," /",null,null,"INSTRUCTIONAL"]
[9,"HIJADA, KENT HARVEY NALLA ",4,"A"," /",null,null," /",null,null,null,"INDEPENDENT"]
[10,"HONRADO, VICENTE BERNALTE ",5,"A"," /",null,null," /",null,null,null,"INDEPENDENT"]
[11,"LAZALA, JOSHUA NICK ALMAZAN ",4,"A",null," /",null,null," /",null,null,"INSTRUCTIONAL"]
[12,"MACALINAO, ZOE JAYONA ",4,"A"," /",null,null,null," /",null,null,"INSTRUCTIONAL"]
[13,"MACARAEG, ARJUNE RAY PABUNAN "," ","A",null,null," /",null,null," /",null,"FRUSTRATION"]
[14,"MANALAC, PRINCE ARGIE BLASÉ",4,"A",null,null," /"," /",null,null,null,"INSTRUCTIONAL"]
[15,"MEJORADA, JEFFREY ",4,"A"," /",null,null," /",null,null,null,"INDEPENDENT"]
[16,"MONTELLO, JONATHAN FABON",5,"A",null," /",null,null," /",null,null,"INSTRUCTIONAL"]
[17,"PLANAS, JOIGENE SEPIO",4,"A"," /",null,null," /",null,null,null,"INDEPENDENT"]
[18,"PUNAY, JOBERT OSA ",4,"A",null,null," /"," /",null,null,null,"INSTRUCTIONAL"]
[19,"SALAO, MIKKO GARSULA",4,"A",null," /",null,null," /",null,null,"INSTRUCTIONAL"]
[20,"URMENITA, SYDNY LAUD",4,"A"," /",null,null,null," /",null,null,"INSTRUCTIONAL"]
[21,"VIAJE, KENNETH N.",4,"A"," /",null,null," /",null,null,null,"INSTRUCTIONAL"]
[22,"ZOMIL, JUSTINE CARPIO",4,"A"," "," /",null," /",null,null,null,"INSTRUCTIONAL"]
[23,"ALCANTARA, JULLIANA LOUISE DELOS SANTOS",4,"A"," /",null,null,null," /",null,null,"INSTRUCTIONAL"]
[24,"ARANTE, AJEHSSA LAGNASON",4,"A"," /",null,null,null," /",null,null,"INSTRUCTIONAL"]
[25,"BALDERAMA, ANA JEA MENDOZA",4,"A",null," /",null,null," /",null,null,"INSTRUCTIONAL"]
[26,"BORBE, LHEANNE KYLA PINEDA",4,"A",null," /",null,null," /",null,null,"INSTRUCTIONAL"]
[27,"BROBO, ELENA JEAN D.",5,"A",null," /",null,null," /",null,null,"INSTRUCTIONAL"]
[28,"CARANTO, LIAN JAYMEE MALLA",4,"A"," /",null,null,null," /",null,null,"INSTRUCTIONAL"]
[29,"CASQUEJO, LORENA ANCHETE",4,"A"," /"," /"," /"," /"," /"," /",null,"INSTRUCTIONAL"]
[30,"CURTINA, JULIE ANN MEGABON ",5,"A"," /",null,null," /",null,null,null,"INSTRUCTIONAL"]
[31,"DILLA, PRINCESS JELIAN M.",4,"A"," /",null,null,null," /",null,null,"INSTRUCTIONAL"]
[32,"ESPINO, IAN ASHLEY ODANG",4,"A"," /",null,null," /",null,null,null,"INDEPENDENT"]
[33,"GELBOLINGO, MARY GRACE ALMOSARA",4,"A"," /",null,null," /",null,null,null,"INDEPENDENT"]
[34,"LIBRES, JANELLE KIM DULAY ",4,"A"," /",null,null," /",null,null,null,"INSTRUCTIONAL"]
[35,"LISONDRA, RACQUEL B.",4,"A"," /",null,null," /",null,null,null,"INSTRUCTIONAL"]
[36,"LISONDRA, RENALYN B.",4,"A"," /",null,null," /",null,null,null,"INDEPENDENT"]
[37,"LUCHING, DANIELLA PASON",4,"A",null," /",null,null," /",null,null,"INSTRUCTIONAL"]
[38,"MACADAY, KENNETH JHANE D.",4,"A",null," /",null,null," /",null,null,"INSTRUCTIONAL"]
[39,"MACARAEG, HANNAH MAE LABTO",5,"A"," /",null,null," /",null,null,null,"INSTRUCTIONAL"]
[40,"NARCISO, CLARISH CAMINOS",4,"A",null," /",null,null," /",null,null,"INSTRUCTIONAL"]
[41,"NAVARRO, JIJAH B.",4,"A",null,null," /",null," /",null,null,"INSTRUCTIONAL"]
[42,"PARAHINOG, JANELA JOYCE TAFALLA",5,"A",null," /",null,null," /",null,null,"INSTRUCTIONAL"]
[43,"QUIETA, NECY CALICO ",4,"A",null," /",null," /",null,null,null,"INSTRUCTIONAL"]
[44,"SALVACON, KATRINA MAE NATIVIDAD",4,"A"," /",null,null,null," /",null,null,"INSTRUCTIONAL"]
[45,"SAN PASCUAL, LHIANNE JEAN DACULAN",4,"A",null," /",null,null," /",null,null,"INSTRUCTIONAL"]
[46,"SUENO, BURGE LIM",4,"A",null," /",null,null," /",null,null,"INSTRUCTIONAL"]
[47,"TANEZA, JENESIS PAULEEN FRANCISCO",4,"A"," /",null,null,null," /",null,null,"INSTRUCTIONAL"]
[48,"Paningbatan, Reymark",4,"A"," /",null,null," /",null,null,null,"INDEPENDENT"]
[49,"Requilman, Josh",4,"A"," /",null,null,null," /",null,null,"INSTRUCTIONAL"]
[50,"Egor, Anthonieth",4,"A"," /",null,null," /",null,null,null,"INSTRUCTIONAL"]
[51,"Laresma, Danica",4,"A"," /",null,null," /",null,null,null,"INDEPENDENT"]
[]
[]
[]
[null,"INDEPENDENT",9]
[null,"INSTRUCTIONAL",40]
[null,"FRUSTRATION",2]
[null,null,{"$f":"SUM(C68,C67,C69)","v":51}]
[null,"GST PASSER"]

{"sheet":"CHARITY","index":9,"n_rows":71,"n_cols":12,"rows_kept":71,"cut":false,"hidden":false,"merged":[[0,0,0,9],[1,0,1,9],[2,0,2,9],[3,0,3,9],[4,0,4,9],[5,0,5,9],[6,0,6,9],[7,0,7,9],[9,4,9,6],[9,7,9,9],[10,1,11,1],[10,2,11,2],[10,4,11,4],[10,5,11,5],[10,6,11,6],[10,7,11,7],[10,8,11,8],[10,9,11,9],[10,10,11,10],[10,11,11,11]]}
["APPENDIX E"]
["Phil-IRI Form 4, Page 1"]
["Individual Summary Record (ISR)"]
["Talaan ng Indibidwal na Pagbabasa (TIP)"]
["SECTION     CHARITY"]
["School: Sitero FranciscoMNHS                                               Teacher:   Ms. Priscilla B.Raymundo                                                    "]
["English: "]
["Filipino: "]
[]
[null,"Level Started","Level","Set","Word Reading",null,null,"Comprehension",null,null,"Date Taken"]
[null,"Mark with an *",null,"Indicate if A. B. ","Ind","Ins","Frus","Ind","Ins","Frus",null,"READING PROFILE"]
[null,null,null,"C. or D"]
[1,"AMIHAN, PAULO MENDOZA",5," A",null," /",null," /",null,null,null,"INSTRUCTIONAL"]
[2,"RESUELLO, ARJAY AMARO",4," A",null,null," /"," /",null,null,null,"INSTRUCTIONAL"]
[3,"BALITE,RAYMOND JR. NATY",4," A",null,null," /"," /",null,null,null,"INSTRUCTIONAL"]
[4,"DIAMPUAN, KIAN ANGELO OFELAS",4," A"," /",null,null,null," /",null,null,"INSTRUCTIONAL"]
[5,"FARATERO, MARKY AQUIRON",4," A"]
[6,"FLORES, JOHN JEDEIL ANTONIO FORTUNO",4," A",null,null," /",null," /",null,null,"INSTRUCTIONAL"]
[7,"GALVES, VICTOR VELLASQUEZ",5," A"," /",null,null,null," /",null,null,"INSTRUCTIONAL"]
[8,"GARCIA, VICTORINO JR. AQUINO",4," A",null,null," /",null," /",null,null,"INSTRUCTIONAL"]
[9,"JARDENIL, LAURENCE CASIANO",5," A"," /",null,null," /",null,null,null,"INDEPENDENT"]
[10,"LAURENCE, NICANOR",4," A",null," /",null,null," /",null,null,"INSTRUCTIONAL"]
[11,"LEQUIN, LEAN LEE POSELIRO",4," A",null,null," /"," /",null,null,null,"INSTRUCTIONAL"]
[12,"MACAYANG, JOHN LEXTER D.",5," A",null,null," /"," /",null,null,null,"INSTRUCTIONAL"]
[13,"MANLAPIG, MARK DAVID PUTOL",4," A",{"$nulls":5}," /"]
[14,"MENDOZA, CHESTER TUICO",null," A",null,null," /"," /",null,null,null,"INSTRUCTIONAL"]
[15,"MORALES, CHARLES JAY CHRISTOPHER",5," A"," /",null,null," /",null,null,null,"INDEPENDENT"]
[16,"ODCHIQUE, IVAN JAY DAYAL",4," A"," /",null,null," /",null,null,null,"INDEPENDENT"]
[17,"PAGULAYAN, VINCE LORENZ EBOL",4," A",null," /",null," /",null,null,null,"INSTRUCTIONAL"]
[18,"QUEBEC, OLIVER MARTOS",4," A"]
[19,"SABOTE, MARTIN JR. BELOLA",4," A",null," /",null," /",null,null,null,"INSTRUCTIONAL"]
[20,"SAROMINES, ABRAHAM MOTA",4," A",null,null," /",{"$nulls":4},"FRUSTRATION"]
[21,"SECRETARIA, TEEJAY MACADAY",5," A",null," /",null,null," /",null,null,"INSTRUCTIONAL"]
[22,"SIXON, CARL JANVIC C",4," A",null,null,null," /",null,null,null,"FRUSTRATION"]
[23,"SUAL, JAMES GABRIEL NILLAS",4," A"," /",null,null," /",null,null,null,"INDEPENDENT"]
[24,"TENASAS, CHRISTANE SAN ANDRES",4," A",null,null," /","  /",null,null,null,"INSTRUCTIONAL"]
[25,"TIMBAL, STEVEN CLARK REBULLO",4," A"]
[26,"TIZON, BRANDO DELA CRUZ",4," A"," /",null,null,"     /",null,null,null,"INDEPENDENT"]
[27,"ABUSION, DARLYN, MARAVILLA ",5," A"," /",null,null," /",null,null,null,"INDEPENDENT"]
[28,"ATON, CLARISSE ECHAVEZ",5," A",null," /",null," /",null,null,null,"INSTRUCTIONAL"]
[29,"AMORES, ALLYSON FERNANDEZ",4," A"," /",null,null," /",null," /",null,"INDEPENDENT"]
[30,"BENTING, YLLA QUIM DELA CRUZ",5," A"," /",null,null,null," /",null,null,"INSTRUCTIONAL"]
[31,"CASTILLANO, WILMA JOY PAJO",5," A"," /",null,null," /",null,null,null,"INDEPENDENT"]
[32,"DACULA, JHARAMELLA MAE BASAS",4," A"," /",null,null," /",null,null,null,"INDEPENDENT"]
[33,"DE GUZMAN, CLARISE T.",4," A"]
[34,"DENINA, JESIE MAE PERALTA",5," A"," /",null,null," /",null,null,null,"INDEPENDENT"]
[35,"GALLINERA, HIAN MAE SAMINDAO",4," A"]
[36,"GONJOARAN, GENEVA MAY MASONG",5," A"," /",null,null,null," /",null,null,"INSTRUCTIONAL"]
[37,"GOPIO, VIANCA M.",4," A"," /",null,null," /",null,null,null,"INDEPENDENT"]
[38,"LAPUZ, KRAYSSANTA FRANCISCO",5," A"," /",null,null," /",null,null,null,"INDEPENDENT"]
[39,"LIMUN, AISHLYN VENICE PASCUAL",4," A"," /",null,null,null," /",null,null,"INSTRUCTIONAL"]
[40,"LUPO, KRISTEL SHINE COMPETENTE",5," A"," /",null,null,null," /",null,null,"INSTRUCTIONAL"]
[41,"MORALES, RETCHELLE M.",4," A"," /",null,null," /",null,null,null,"INDEPENDENT"]
[42,"OCANA, HYACENT KAYE ACERON",5," A"]
[43,"OPRIDO, JOANA ARINGO",4," A"," /",null,null," /",null,null,null,"INDEPENDENT"]
[44,"SALACUP, SHARMINE JANE CABALBAG",5," A"," /",null,null,null,"         /",null,null,"INSTRUCTIONAL"]
[45,"SUDSUDAN, LYRA ISIDRO",4," A"," /",null,null,null,"/",null,null,"INSTRUCTIONAL"]
[46,"TORREGOZA, MARY CHRISTINE SANDAGON",4," A",null," /",null,null," /",null,null,"INSTRUCTIONAL"]
[47,"Pineda, Edison",5," A",null," /",null,null," /",null,null,"INSTRUCTIONAL"]
[48,"Laresma, John Paul",5," A"," /",null,null," /",null,null,null,"INDEPENDENT"]
[49,"Ulgasan, Jayruz",4," A"," /",null,null,null," /",null,null,"INSTRUCTIONAL"]
[50,"Campana, John Emman",5,"A",null,null,"   /",null,"    /",null,null,"FRUSTRATION"]
[51,"Veranque, James",5,"A"," /",null,null," /",null,null,null,"INDEPENDENT"]
[]
[]
[]
[null,"INDEPENDENT",16]
[null,"INSTRUCTIONAL",25]
[null,"FRUSTRATION",3]
[null,null,{"$f":"SUM(C68,C67,C69)","v":44}]
[null,"GST PASSER",0]

{"sheet":"INTEGRITY","index":10,"n_rows":69,"n_cols":12,"rows_kept":69,"cut":false,"hidden":false,"merged":[[0,0,0,11],[1,0,1,11],[2,0,2,11],[3,0,3,11],[4,0,4,11],[5,0,5,11],[6,0,6,11],[7,0,7,11],[9,4,9,6],[9,7,9,9],[10,1,11,1],[10,2,11,2],[10,4,11,4],[10,5,11,5],[10,6,11,6],[10,7,11,7],[10,8,11,8],[10,9,11,9],[10,10,11,10]]}
["APPENDIX E"]
["Phil-IRI Form 4, Page 1"]
["Individual Summary Record (ISR)"]
["Talaan ng Indibidwal na Pagbabasa (TIP)"]
["SECTION     INTEGRITY"]
["School: Sitero FranciscoMNHS     Teacher:   Ms. Hazel Anne J. Lopez"]
["English: "]
["Filipino: "]
[]
[null,"Level Started","Level","Set","Word Reading",null,null,"Comprehension",null,null,"Date Taken"]
[null,"Mark with an *",null,"Indicate if A. B. ","Ind","Ins","Frus","Ind","Ins","Frus",null,"READING PROFILE"]
[null,null,null,"C. or D"]
[1,"ACEDILLA, RENZ ZUNIEGA",4,"A","/",null,null,null,"/",null,null,"INSTRUCTIONAL"]
[2,"AGUNOD, KING RUSSEL LLANERA",4,"A","/",null,null,null,"/",null,null,"INSTRUCTIONAL"]
[3,"ALERA II LEO SALIPOT",4,"A","/",null,null,null,"/",null,null,"INSTRUCTIONAL"]
[4,"ADRIANO, AMANTE",4,"A","/",null,null,null,"/",null,null,"INSTRUCTIONAL"]
[5,"BAWINGAN, JHONISH CABANTAC",5,"A","/",null,null,"/",null,null,null,"INDEPENDENT"]
[6,"BOLIMA,MARTIN LEONARD ARIZA",4,"A","/",null,null,null,"/",null,null,"INSTRUCTIONAL"]
[7,"BOYONAS, JAMES GULANE",5,"A","/",null,null,null,"/",null,null,"INSTRUCTIONAL"]
[8,"BRONDIAL, SHERWIN OLOYA",4,"A","/",null,null,null,"/",null,null,"INSTRUCTIONAL"]
[9,"CANUTO, MARK ANTHONY DECEPIDA",4,"A","/",null,null,null,"/",null,null,"INSTRUCTIONAL"]
[11,"DELA CRUZ, LOUISE DENVER B.",4,"A","/",null,null,null,"/",null,null,"INSTRUCTIONAL"]
[12,"DILOY, ROMEL MAKILANG",5,"A","/",null,null,"/",null,null,null,"INDEPENDENT"]
[13,"DUQUE, LORETO BATISTIANA",4,"A","/",null,null,null,"/",null,null,"INSTRUCTIONAL"]
[14,"FRANCISCO, MARK JUSTINE G.",4,"A","/",null,null,null,"/",null,null,"INSTRUCTIONAL"]
[15,"FRESNIDO, ANGELO BORBE",4,"A","/",null,null,null,"/",null,null,"INSTRUCTIONAL"]
[16,"GIMENO, LANCE LAWRENCE JORDAN",4,"A",null,"/",null,null,"/",null,null,"INSTRUCTIONAL"]
[17,"GUMALLAWE, JOHN MARK URMRNTA",5,"A","/",null,null,null,"/",null,null,"INSTRUCTIONAL"]
[18,"JAMISOLA, RENZCEL VIPINOSA",5,"A","/",null,null,null,"/",null,null,"INSTRUCTIONAL"]
[19,"NOSIL, REYMUND GREG BERGONIO",5,"A","/",null,null,null,"/",null,null,"INSTRUCTIONAL"]
[20,"OSOTIO, JERICO REMPILLO",5,"A","/",null,null,"/",null,null,null,"INDEPENDENT"]
[21,"PAN, CHRISTER JAY ALMEN",4,"A","/",null,null,null,"/",null,null,"INSTRUCTIONAL"]
[23,"PATAYAN, MART DHENIEL GATPO",4,"A","/",null,null,"/",null,null,null,"INDEPENDENT"]
[24,"PINLAC, MARWIN BARTOLOME",5,"A","/",null,null,"/",null,null,null,"INDEPENDENT"]
[25,"REYES, JERALD JARDIN",4,"A","/",null,null,null,"/",null,null,"INDEPENDENT"]
[26,"SAGUN, SEBASTIAN ESPINO",5,"A","/",null,null,null,"/",null,null,"INSTRUCTIONAL"]
[27,"TRAZONA, JHON MATHEW ARCANGEL",4,"A","/",null,null,null,"/",null,null,"INSTRUCTIONAL"]
[29,"TULABING, KENT OPONG",4,"A","/",null,null,null,"/",null,null,"INSTRUCTIONAL"]
[30,"ABAY, NOREENE VIOJAN",4,"A","/",null,null,null,"/",null,null,"INSTRUCTIONAL"]
[31,"BADION, KRISTEL JANE T.",4,"A","/",null,null,"/",null,null,null,"INDEPENDENT"]
[32,"BUDLAT, SAIRAH ESPEROS",4,"A","/",null,null,null,"/",null,null,"INSTRUCTIONAL"]
[33,"CABALTERA, DANNAH ERICA CATIBAG",4,"A","/",null,null,null,"/",null,null,"INSTRUCTIONAL"]
[34,"DAWIS, FAITH ALLAINE ORDONIO",4,"A","/",null,null,"/",null,null,null,"INDEPENDENT"]
[35,"ESMILLO, LEXEL JADE D.",4,"A","/",null,null,null,"/",null,null,"INSTRUCTIONAL"]
[36,"GONZALES, AVRIL BARTOLOME",4,"A","/",null,null,"/",null,null,null,"INDEPENDENT"]
[37,"HERRERA, KATHRINA CASTRO",4,"A","/",null,null,null,"/",null,null,"INSTRUCTIONAL"]
[38,"LANA, JOCELYN S.","V","A","/",null,null,null,"/",null,null,"INSTRUCTIONAL"]
[39,"MALONZO, SHAIRA PALMA",4,"A","/",null,null,null,"/",null,null,"INSTRUCTIONAL"]
[40,"MANAOIS, STELLA ORAYON",5,"A","/",null,null,"/",null,null,null,"INDEPENDENT"]
[41,"MANIPON, KEITH ASHLEY FERNANDEZ",5,"A","/",null,null,null,"/",null,null,"INSTRUCTIONAL"]
[42,"MANLAPAZ JUDY ANN DON",4,"A","/",null,null,null,"/",null,null,"INSTRUCTIONAL"]
[43,"MARTINEZ, ROSALINDA C.",4,"A",null,"/",null,null,"/",null,null,"INSTRUCTIONAL"]
[44,"MATUOG RONIELYN PACULANANG",4,"A",null,"/",null,null,"/",null,null,"INSTRUCTIONAL"]
[45,"MENOSA, MAE-ANN VILLARUEL",4,"A","/",null,null,null,"/",null,null,"INSTRUCTIONAL"]
[46,"MONTEAGUDO, ANDREA JOY MENDEZ",5,"A","/",null,null,"/",null,null,null,"INDEPENDENT"]
[47,"PADILLA, RODELIA ALDEMITA",4,"A","/",null,null,null,"/",null,null,"INSTRUCTIONAL"]
[48,"PUNO, YAEL SARI",4,"A","/",null,null,"/",null,null,null,"INDEPENDENT"]
[49,"SANQUEZA, TRISHA MAE CODICIO",5,"A","/",null,null,"/",null,null,null,"INDEPENDENT"]
[50,"SIERRA, JONALYN SENADAN",4,"A","/",null,null,null,"/",null,null,"INSTRUCTIONAL"]
[51,"TAMPOC, BERNADETH ALMOSARA",4,"A","/",null,null,null,"/",null,null,"INSTRUCTIONAL"]
[52,"UBANE, EDELYN C.",4,"A","/",null,null,null,"/",null,null,"INSTRUCTIONAL"]
[53,"VENTURA, GLYANNE MAE BOCIO",4,"A",null,"/",null,null,"/",null,null,"INSTRUCTIONAL"]
[]
[]
[null,"INDEPENDENT",13]
[null,"INSTRUCTIONAL",42]
[null,"FRUSTRATION",0]
[null,null,{"$f":"SUM(C66,C65,C67)","v":55}]
[null,"GST PASSER",0]

{"sheet":"HONESTY","index":11,"n_rows":77,"n_cols":12,"rows_kept":77,"cut":false,"hidden":false,"merged":[[0,0,0,11],[1,0,1,11],[2,0,2,11],[3,0,3,11],[4,0,4,11],[5,0,5,11],[6,0,6,11],[7,0,7,11],[9,4,9,6],[9,7,9,9],[10,1,11,1],[10,2,11,2],[10,4,11,4],[10,5,11,5],[10,6,11,6],[10,7,11,7],[10,8,11,8],[10,9,11,9],[10,10,11,10]]}
["APPENDIX E"]
["Phil-IRI Form 4, Page 1"]
["Individual Summary Record (ISR)"]
["Talaan ng Indibidwal na Pagbabasa (TIP)"]
["SECTION     HONESTY"]
["School: Sitero FranciscoMNHS     Teacher:   Ms. Hazel Anne J. Lopez"]
["English: "]
["Filipino: "]
[]
[null,"Level Started","Level","Set","Word Reading",null,null,"Comprehension",null,null,"Date Taken"]
[null,"Mark with an *",null,"Indicate if A. B. ","Ind","Ins","Frus","Ind","Ins","Frus",null,"READING PROFILE"]
[null,null,null,"C. or D"]
[1,"ALAG, JOHN HARZEL GONZALES",4,"A","/",null,null,null,"/",null,null,"INSTRUCTIONAL"]
[2,"ARCENAL, JOMARI BARONDA ",5,"A","/",null,null,null,"/",null,null,"INSTRUCTIONAL"]
[3,"ARCIAGA, MARCO ANTONIO RESERVA",5,"A","/",null,null,null,"/",null,null,"INSTRUCTIONAL"]
[4,"CANUTO, MARLON DECEPIDA",4,"A","/",null,null,null,"/",null,null,"INSTRUCTIONAL"]
[5,"CARDONA, LOIMARC RADA",5,"A","/",null,null,null,"/",null,null,"INSTRUCTIONAL"]
[6,"CARMELOTES, JOHN MARK TERRADO",4,"A",null,null,"/",null,null,null,"/","FRUSTRATION"]
[7,"CASTRO, ANTHONY EGIPTO",4,"A","/",null,null,null,"/",null,null,"INSTRUCTIONAL"]
[8,"DELA CRUZ, JAYPEE MAGSINO",4,"A","/",null,null,null,"/",null,null,"INSTRUCTIONAL"]
[9,"DINEROS, DON III KRYSTOFFE",4,"A","/",{"$nulls":4},"/",null,"FRUSTRATION"]
[10,"DONATO, BRYAN LEGASPI",5,"A","/",null,null,null,"/",null,null,"INSTRUCTIONAL"]
[11,"ERLANO, JOHN MICHAEL DALUPERI",4,"A","/",{"$nulls":4},"/",null,"FRUSTRATION"]
[12,"FLORES, REYMARK LANSAROTE",4,"A",null,"/",null,null,"/",null,null,"INSTRUCTIONAL"]
[13,"HAYAGAN, JOHN MARK BIOCO",4,"A","/",null,null,null,"/",null,null,"INSTRUCTIONAL"]
[14,"LABRADOR, MICHAEL ANGELO COROD",4,"A","/",null,null,null,"/",null,null,"INSTRUCTIONAL"]
[15,"LEJARDE, ROBIE J.",4,"A","/",null,null,null,"/",null,null,"INSTRUCTIONAL"]
[16,"LOGRONO, GIAN NABOT",4,"A",null,"/",null,null,null,"/",null,"FRUSTRATION"]
[17,"MACARIO, ALLEN ALFORTE",4,"A","/",null,null,null,"/",null,null,"INSTRUCTIONAL"]
[18,"MALICDEM, JAZTIN KURT",5,"A","/",null,null,null,"/",null,null,"INSTRUCTIONAL"]
[19,"MALLA, LORENCE KEN",4,"A","/",{"$nulls":4},"/",null,"FRUSTRATION"]
[20,"MALLARI, RUDY BOY",4,"A","/",{"$nulls":4},"/",null,"FRUSTRATION"]
[21,"MEJIA, JOHN VERIQUE IMBAT",4,"A","/",null,null,null,"/",null,null,"INSTRUCTIONAL"]
[22,"NALDA, NATHANIEL GERSALIA",4,"A",null,"/",null,null,null,"/",null,"FRUSTRATION"]
[23,"RACAL, ROD ALDRICH CALZADO",4,"A","/",null,null,"/",null,null,null,"INDEPENDENT"]
[24,"RAMOS, MARK VINCENT B.",5,"A","/",null,null,null,"/",null,null,"INDEPENDENT"]
[25,"TIBAR, JOHN ANDREI YCO",4,"A","/",{"$nulls":4},"/",null,"FRUSTRATION"]
[26,"VIOLA, RICHARDSET BERNARDINO",4,"A","/",null,null,null,"/",null,null,"INSTRUCTIONAL"]
[27,"ABAGON, PRECIOUS VACUNAWA",4,"A","/",null,null,null,"/",null,null,"INSTRUCTIONAL"]
[28,"ABANIS, ABEGAIL GATCHALIAN",4,"A","/",null,null,null,"/",null,null,"INSTRUCTIONAL"]
[29,"ABARRE, LYZA P.",5,"A","/",null,null,null,"/",null,null,"INSTRUCTIONAL"]
[30,"AGONIAS, AISA TORIO",4,"A","/",null,null,null,"/",null,null,"INSTRUCTIONAL"]
[31,"ALLEGO, JOSEPHINE FLORES",4,"A","/",null,null,null,"/",null,null,"INSTRUCTIONAL"]
[32,"AQUINO, ALYSSA CARREON",4,"A","/",null,null,null,"/",null,null,"INSTRUCTIONAL"]
[33,"ARSOLON, MICKA BALICWAS",4,"A","/",null,null,null,"/",null,null,"INSTRUCTIONAL"]
[34,"BRUSAS, SARAH JEAN CONCEPTION",5,"A","/",null,null,null,"/",null,null,"INSTRUCTIONAL"]
[35,"CAJELO, MARIA BERNADETH CARDANO",5,"A","/",null,null,null,"/",null,null,"INSTRUCTIONAL"]
[36,"CAPOQUIAN, SHERYLYN J.",5,"A","/",null,null,null,"/",null,null,"INSTRUCTIONAL"]
[37,"CONJE, ROXANNA CHELSEA M.",4,"A","/",null,null,null,"/",null,null,"INSTRUCTIONAL"]
[38,"FUENTES, ASHLEY JAMIL",5,"A","/",null,null,null,"/",null,null,"INSTRUCTIONAL"]
[39,"HERUELA, ALYANNA MAE M.",4,"A","/",null,null,null,"/",null,null,"INSTRUCTIONAL"]
[40,"JIMENEZ, ANGEL WENDY REYES",4,"A","/",null,null,null,"/",null,null,"INSTRUCTIONAL"]
[41,"MACALINAO, RUTH EVELYN",4,"A",null,"/",null,null,"/",null,null,"INSTRUCTIONAL"]
[42,"PARCON, RODHELYN VILLANUEVA",4,"A",null,"/",null,null,"/",null,null,"INSTRUCTIONAL"]
[43,"PENARUBIA, JASMINE PASCUAL",4,"A","/",null,null,null,"/",null,null,"INSTRUCTIONAL"]
[44,"PEPITO, JOVELYN LUZON",4,"A","/",null,null,"/",null,null,null,"INDEPENDENT"]
[45,"PICARDAL, LEAH JOY P.",5,"A","/",null,null,null,"/",null,null,"INSTRUCTIONAL"]
[46,"ROSALES, KHEYA NICOLLE CARIDAD",4,"A","/",{"$nulls":4},"/",null,"FRUSTRATION"]
[47,"SAMOY, PRINCESS ROSE DICE",4,"A","/",{"$nulls":4},"/",null,"FRUSTRATION"]
[48,"SANCHEZ, ANGELINA ROMERO",5,"A","/",null,null,null,"/",null,null,"INSTRUCTIONAL"]
[49,"SUELLO, ANNA LORAINE RECIO",4,"A","/",null,null,null,"/",null,null,"INSTRUCTIONAL"]
[50,"SUMATRA, CHRISTINE ALPETCHE",4,"A","/",null,null,null,"/",null,null,"INSTRUCTIONAL"]
[51,"TACDERAS, ROSEMARIE DE VERA",4,"A",null,"/",null,null,null,"/",null,"FRUSTRATION"]
[52,"TAMONDONG, DAISY JEAN PINTOY",4,"A","/",null,null,null,"/",null,null,"INSTRUCTIONAL"]
[53,"TEJANO, ANGEL OMBAO",4,"A","/",null,null,null,"/",null,null,"INSTRUCTIONAL"]
[]
[]
[null,"INDEPENDENT",3]
[null,"INSTRUCTIONAL",39]
[null,"FRUSTRATION",11]
[null,null,{"$f":"SUM(C69,C68,C70)","v":53}]
[null,"GST PASSER",0]
[]
[]
[]
[]
[{"$nulls":6},"                                                                                                                                                                                                                                                                                                                                                                                                                                                                                                                                                                                                                                                                                                                                                                                                                                                                                                                                                                                                                                                                                                                                                                                                                                                                                                                                                                                                                                                                                                                                                                                                                                                                                                                                                                                                                                                                                                                                                                                                                                                                                                                                                                                                                                                                                                                                                                                                                                                                                                                                                                                                                                                                                                                                                                                                                                                                                                                                                                                                                                                                                                                                                                                                                                                                                                                                                                                                                                                                                                                                                                                                                                                              "]

{"sheet":"HOPE","index":12,"n_rows":79,"n_cols":12,"rows_kept":79,"cut":false,"hidden":false,"merged":[[0,0,0,11],[1,0,1,11],[2,0,2,11],[3,0,3,11],[4,0,4,11],[5,0,5,11],[6,0,6,11],[7,0,7,11],[9,4,9,6],[9,7,9,9],[10,1,11,1],[10,2,11,2],[10,4,11,4],[10,5,11,5],[10,6,11,6],[10,7,11,7],[10,8,11,8],[10,9,11,9],[10,10,11,10],[10,11,11,11]]}
["APPENDIX E"]
["Phil-IRI Form 4, Page 1"]
["Individual Summary Record (ISR)"]
["Talaan ng Indibidwal na Pagbabasa (TIP)"]
["SECTION     HOPE"]
["School: Sitero FranciscoMNHS   Teacher:   Ms. Hazel Anne J. Lopex"]
["English: "]
["Filipino: "]
[]
[null,"Level Started","Level","Set","Word Reading",null,null,"Comprehension",null,null,"Date Taken"]
[null,"Mark with an *",null,"Indicate if A. B. ","Ind","Ins","Frus","Ind","Ins","Frus",null,"READING PROFILE"]
[null,null,null,"C. or D"]
[1,"ALCAZAREN, RHECXES DIEL",4,"A",null,"/",null,null,null,"/",null,"FRUSTRATION"]
[2,"ANDO, CHARLES JONE DOMINGO",5,"A","/",null,null,"/",null,null,null,"INDEPENDENT"]
[3,"AQUINO, JOSEPH VINCENT NODORA",4,"A",null,"/",null,null,null,"/",null,"FRUSTRATION"]
[4,"ARSOLON, RUZZLE VIDALLO",4,"A","/",{"$nulls":4},"/",null,"FRUSTRATION"]
[5,"ATENDIDO, NATHANIEL P.",4,"A","/",null,null,null,"/",null,null,"INSTRUCTIONAL"]
[6,"BALOSA, ROBERT DREW",4,"A",null,"/",null,null,null,"/",null,"FRUSTRATION"]
[7,"BIER, JASPER C.",5,"A","/",null,null,null,"/",null,null,"INSTRUCTIONAL"]
[8,"CARCILLAR, JAMIER ARTIZUELA",4,"A",null,"/",null,null,"/",null,null,"INSTRUCTIONAL"]
[9,"CASTOR, RENZ LOZADA ",4,"A",null,"/",null,null,null,"/",null,"FRUSTRATION"]
[10,"CORRAL, RODGE CEDRICK CARINO",4,"A",null,"/",null,null,"/",null,null,"INSTRUCTIONAL"]
[11,"DANTES, HARRJEL LUCIO ISLES",4,"A",null,"/",null,null,"/",null,null,"INSTRUCTIONAL"]
[12,"DAVID, JHON DAVE YANILLA",4,"A",null,"/",null,null,"/",null,null,"INSTRUCTIONAL"]
[13,"DECEPIDA, JOEL HAGUPIT",4,"A",null,"/",null,null,"/",null,null,"INSTRUCTIONAL"]
[14,"DIENDO, JHAYMAR R.",4,"A",null,"/",null,null,null,"/",null,"FRUSTRATION"]
[15,"FEDELIN, DARWIN GATILOGO",4,"A","/",null,null,"/",null,null,null,"INSTRUCTIONAL"]
[16,"JUA, ANTHONY NIERRA",5,"A","/",null,null,"/",null,null,null,"INSTRUCTIONAL"]
[17,"LAURENTE, ELIZHER CAYABYAB",4,"A",null,"/",null,null,"/",null,null,"INSTRUCTIONAL"]
[18,"LLENARIZAS, DANDY A.",4,"A",null,"/",null,null,"/",null,null,"INSTRUCTIONAL"]
[19,"MANALO, JHAY CUI",4,"A",null,"/",null,null,null,"/",null,"FRUSTRATION"]
[20,"MENDEZ, SIMON M.",4,"A",null,"/",null,null,"/",null,null,"INSTRUCTIONAL"]
[21,"MILO, ELEXCIL JR MANDAO",4,"A",null,null,"/",null,null,"/",null,"FRUSTRATION"]
[22,"MORTEGA, JOSHUA SALE",5,"A","/",null,null,"/",null,null,null,"INSTRUCTIONAL"]
[23,"PANGILINAN, MIKKO BOLOY",5,"A","/",null,null,"/",null,null,null,"INSTRUCTIONAL"]
[24,"PEJORO, JHON REY Q.",5,"A","/",null,null,"/",null,null,null,"INSTRUCTIONAL"]
[25,"PENESO, GERONIE PALOMAR ",5,"A","/",null,null,"/",null,null,null,"INSTRUCTIONAL"]
[26,"RODRIGO, DENCEL BINGCO",5,"A",null,"/",null,null,"/",null,null,"INSTRUCTIONAL"]
[27,"SALIPOT, DAN DAVE ",4,"A",null,null,"/",null,"/",null,null,"FRUSTRATION"]
[28,"TALITA, JOHN LESTER T.",4,"A",null,"/",null,null,"/",null,null,"INSTRUCTIONAL"]
[29,"TEJERO, FLOYD BIMBO MANLAPIG",4,"A",null,null,"/",null,null,"/",null,"FRUSTRATION"]
[30,"ABORQUE, LEI-ANN S.",5,"A","/",null,null,"/",null,null,null,"INSTRUCTIONAL"]
[31,"ALONZO, MA.NICOLE ",4,"A",null,"/",null,null,"/",null,null,"INSTRUCTIONAL"]
[32,"ARINGO, RHEA JADE PAJE",4,"A",null,"/",null,null,"/",null,null,"INSTRUCTIONAL"]
[33,"BAGAY, EHRA LORRAINE MANLAPIG",4,"A",null,"/",null,null,null,"/",null,"FRUSTRATION"]
[34,"BARBON, CHARLOTTE JARADAL",4,"A",null,"/",null,null,null,"/",null,"FRUSTRATION"]
[35,"CARULLO, MA. JOLIANA LUPERIA",4,"A",null,"/",null,null,"/",null,null,"INSTRUCTIONAL"]
[36,"DELA CRUZ, MARY ANN  ANERE",4,"A",null,"/",null,null,null,"/",null,"FRUSTRATION"]
[37,"DELA CRUZ, ROSE ANGELICA MISTICA ",5,"A","/",null,null,"/",null,null,null,"INSTRUCTIONAL"]
[38,"DOMINGO, CRYSTAL AIRA ESPINO",4,"A",null,"/",null,null,"/",null,null,"INSTRUCTIONAL"]
[39,"ENOT, KRISTINE",4,"A",null,"/",null,null,"/",null,null,"INSTRUCTIONAL"]
[40,"GAGUI, REESE ELIZA LOPEZ",4,"A",null,"/",null,null,"/",null,null,"INSTRUCTIONAL"]
[41,"LEGASPI, YZZY CARREON",5,"A","/",null,null,"/",null,null,null,"INSTRUCTIONAL"]
[42,"MALICDEM, KIM Y.",4,"A",null,"/",null,null,"/",null,null,"INSTRUCTIONAL"]
[43,"MELANIO, ASHLYN J",4,"A",null,"/",null,null,"/",null,null,"INSTRUCTIONAL"]
[44,"MIRANDA, ALYSA MAE MATUTINA",4,"A",null,"/",null,null,null,"/",null,"FRUSTRATION"]
[45,"PANGYARIHAN, SOPHIA NADINE F.",4,"A",null,"/",null,null,null,"/",null,"FRUSTRATION"]
[46,"PASTIDIO, MARIA FLORDELUNA M.",4,"A",null,"/",null,null,"/",null,null,"INSTRUCTIONAL"]
[47,"REYES, TRIXXZY KHATE BARTOLOME",5,"A","/",null,null,"/",null,null,null,"INDEPENDENT"]
[48,"RODRIGUEZ, JULIANAH ANGELAH SILO",4,"A",null,"/",null,null,"/",null,null,"INSTRUCTIONAL"]
[49,"RONQUILLO, RICHELYN MAGPATOC",4,"A",null,"/",null,null,"/",null,null,"INSTRUCTIONAL"]
[50,"SEBLANO, ALAIZA JOY UMALI",5,"A","/",null,null,"/",null,null,null,"INDEPENDENT"]
[51,"SIBOCO, MARY JOY MONTE",4,"A",null,"/",null,null,null,"/",null,"FRUSTRATION"]
[52,"TANDOG, ARABELA FE C.",4,"A",null,null,"/",null,"/",null,null,"FRUSTRATION"]
[53,"TROPA, JITKA KAYE SALDE",4,"A",null,"/",null,null,null,"/",null,"FRUSTRATION"]
[]
[null,"INDEPENDENT",3]
[null,"INSTRUCTIONAL",32]
[null,"FRUSTRATION",18]
[null,null,{"$f":"SUM(C68,C67,C69)","v":53}]
[null,"GST PASSER",0]
{"$rows_empty":7}
[{"$nulls":6},"                                                                                                                                                                                                                                                                                                                                                                                                                                                                                                                                                                                                                                                                                                                                                                                                                                                                                                                                                                                                                                                                                                                                                                                                                                                                                                                                                                                                                                                                                                                                                                                                                                                                                                                                                                                                                                                                                                                                                                                                                                                                                                                                                                                                                                                                                                                                                                                                                                                                                                                                                                                                                                                                                                                                                                                                                                                                                                                                                                                                                                                                                                                                                                                                                                                                                                                                                                                                                                                                                                                                                                                                                                                              "]

{"sheet":"GENEROSITY","index":13,"n_rows":70,"n_cols":12,"rows_kept":70,"cut":false,"hidden":false,"merged":[[0,0,0,11],[1,0,1,11],[2,0,2,11],[3,0,3,11],[4,0,4,11],[5,0,5,11],[6,0,6,11],[7,0,7,11],[9,4,9,6],[9,7,9,9],[10,1,11,1],[10,2,11,2],[10,4,11,4],[10,5,11,5],[10,6,11,6],[10,7,11,7],[10,8,11,8],[10,9,11,9],[10,10,11,10]]}
["APPENDIX E"]
["Phil-IRI Form 4, Page 1"]
["Individual Summary Record (ISR)"]
["Talaan ng Indibidwal na Pagbabasa (TIP)"]
["SECTION    GENEROSITY"]
["School: Sitero FranciscoMNHS     Teacher:   Ms. Hazel Anne J. Lopez"]
["English: "]
["Filipino: "]
[]
[null,"Level Started","Level","Set","Word Reading",null,null,"Comprehension",null,null,"Date Taken"]
[null,"Mark with an *",null,"Indicate if A. B. ","Ind","Ins","Frus","Ind","Ins","Frus",null,"READING PROFILE"]
[null,null,null,"C. or D"]
[1,"BASA, KURT I.",5,"A","/",null,null,null,"/",null,null,"INSTRUCTIONAL"]
[2,"BALDORAZA, JR. PERCIVAL AUDIE",5,"A","/",null,null,null,"/",null,null,"INSTRUCTIONAL"]
[3,"CAMPILAN, EMMANUEL ZABDIEL D.C",5,"A","/",null,null,null,"/",null,null,"INSTRUCTIONAL"]
[4,"CAŇETE, JOHN ANGELO",4,"A",null,"/",null,null,null,"/",null,"FRUSTRATION"]
[5,"CARINAN, JOEY TUMOBOS",4,"A","/",null,null,"/",null,null,null,"INDEPENDENT"]
[6,"CORONACION, JHAY",4,"A","/",null,null,null,"/",null,null,"INSTRUCTIONAL"]
[7,"DELOS REYES, JOHN ANDREI FAJILAGMAGO",5,"A","/",null,null,null,"/",null,null,"INSTRUCTIONAL"]
[8,"DUQUE, ANGELO SAMSON",4,"A","/",null,null,null,"/",null,null,"INSTRUCTIONAL"]
[9,"GUNDAYAO, MARK ZANDER SALDIVAR",4,"A","/",null,null,null,"/",null,null,"INSTRUCTIONAL"]
[10,"JUAN, LORENZO REYES",4,"A","/",null,null,null,"/",null,null,"INSTRUCTIONAL"]
[11,"LAGUIDAO, GIAN NICOLETTE PATRICIO",5,"A","/",null,null,null,"/",null,null,"INSTRUCTIONAL"]
[12,"MANLAPIG,  JAMES MAPALAD",4,"A",null,"/",null,null,"/",null,null,"INSTRUCTIONAL"]
[13,"MELICAN, JASPER VILLAMOR",4,"A","/",null,null,null,"/",null,null,"INSTRUCTIONAL"]
[14,"MENDOZA, VINCE RAZEL VIRAY",5,"A","/",null,null,null,"/",null,null,"INSTRUCTIONAL"]
[15,"MUECA, JOHN MICHAEL JINIO",5,"A","/",null,null,null,"/",null,null,"INSTRUCTIONAL"]
[16,"ORCULLO, HELDUARD",4,"A",null,"/",null,null,"/",null,null,"INSTRUCTIONAL"]
[17,"PACIOS, PATRIC JAMES C.",4,"A","/",null,null,null,"/",null,null,"INSTRUCTIONAL"]
[18,"PALOMAR, ALLYZON MATIAS",4,"A","/",null,null,null,"/",null,null,"INSTRUCTIONAL"]
[19,"PEDROZA, HAINEL CLARENCE S.",4,"A","/",null,null,null,"/",null,null,"INSTRUCTIONAL"]
[20,"RETANAN, JURRIE ABIT ",4,"A","/",null,null,"/",null,null,null,"INDEPENDENT"]
[21,"REYES, DEIONLOYD BARCEBAL",4,"A","/",null,null,null,"/",null,null,"INSTRUCTIONAL"]
[23,"RICUDO, BENMAR BESCURO ",4,"A","/",null,null,"/",null,null,null,"INDEPENDENT"]
[24,"SALVE, JOHN MENARD PENAMANTE",4,"A","/",null,null,"/",null,null,null,"INDEPENDENT"]
[25,"TERAYTAY, KIAN BELLEZA",4,"A","/",null,null,null,"/",null,null,"INSTRUCTIONAL"]
[26,"VILLAFLOR, NOEH QUILIOPE ",4,"A","/",null,null,null,"/",null,null,"INSTRUCTIONAL"]
[27,"YAMBOT, JOHN CARL I.",4,"A","/",null,null,null,"/",null,null,"INSTRUCTIONAL"]
[29,"ACORDO, LUISA JANE E.",4,"A",null,"/",null,null,null,"/",null,"FRUSTRATION"]
[30,"AGALOOS, SAM MARY JOY PANGILINAN",4,"A","/",null,null,null,"/",null,null,"INSTRUCTIONAL"]
[31,"ANTONIO, ANGELIKA BONINA",4,"A","/",null,null,null,"/",null,null,"INSTRUCTIONAL"]
[32,"BACASMO, LUCKI GRACE POSELIRO",4,"A","/",null,null,null,"/",null,null,"INSTRUCTIONAL"]
[33,"BATACANDULO, GLAIZA QUIDAVER",4,"A","/",null,null,null,"/",null,null,"INSTRUCTIONAL"]
[34,"BETANA, ATHENNA IVERHAINGNE D.G",4,"A","/",null,null,null,"/",null,null,"INSTRUCTIONAL"]
[35,"BINASBAS, BENEHILDA CALAGO",4,"A","/",null,null,null,"/",null,null,"INSTRUCTIONAL"]
[36,"CALLO, BEATRICIA CASTOR",5,"A","/",null,null,"/",null,null,null,"INDEPENDENT"]
[37,"CRUZ, MARY JANE M.",4,"A",null,"/",null,null,null,"/",null,"FRUSTRATION"]
[38,"CASIPLE, MARIANNIE A.",5,"A","/",null,null,null,"/",null,null,"INSTRUCTIONAL"]
[39,"DEGUZMAN, KRIS ANN JOY ABANICA ",5,"A","/",null,null,null,"/",null,null,"INSTRUCTIONAL"]
[40,"FONACIER, DOMINIQUE LOUISE T.",4,"A","/",null,null,null,"/",null,null,"INSTRUCTIONAL"]
[41,"LUGASAN, DYLAN SHANE MENDROS ",4,"A","/",null,null,null,"/",null,null,"INSTRUCTIONAL"]
[42,"MAGLINTE, MERI-AAN R.",4,"A","/",null,null,null,"/",null,null,"INSTRUCTIONAL"]
[43,"MARANAN, MARY LOU TABASA",4,"A",null,"/",null,null,"/",null,null,"INSTRUCTIONAL"]
[44,"MENDEZ, MEANE GERMINO",4,"A",null,"/",null,null,"/",null,null,"INSTRUCTIONAL"]
[45,"MUTIA, LYKA JOY ANAM-ANAM",5,"A","/",null,null,null,"/",null,null,"INSTRUCTIONAL"]
[46,"NATORES, JOVIA GRACE PANCHO",5,"A","/",null,null,"/",null,null,null,"INDEPENDENT"]
[47,"OMPOY, AICELMIE ROSTATA",4,"A","/",null,null,null,"/",null,null,"INSTRUCTIONAL"]
[48,"POJARAS, MECAILA NICHOLE M.",5,"A","/",null,null,"/",null,null,null,"INDEPENDENT"]
[49,"ROMAN, CHYNNA AGANG",4,"A","/",null,null,"/",null,null,null,"INDEPENDENT"]
[50,"SEVILLA, JUDY ANN BALDERAMA",4,"A","/",null,null,null,"/",null,null,"INSTRUCTIONAL"]
[51,"TAGOLINO, MERLINE VEVANA",4,"A","/",null,null,null,"/",null,null,"INSTRUCTIONAL"]
[52,"TOMIAS, PATRICIA ANNE BELGICA",4,"A","/",null,null,null,"/",null,null,"INSTRUCTIONAL"]
[53,"VEGA, ANGEL MAE MORALES",4,"A",null,"/",null,null,"/",null,null,"INSTRUCTIONAL"]
[]
[]
[null,"INDEPENDENT",8]
[null,"INSTRUCTIONAL",42]
[null,"FRUSTRATION",3]
[null,null,{"$f":"SUM(C67,C66,C68)","v":53}]
[null,"GST PASSER",0]

{"sheet":"FAITH","index":14,"n_rows":72,"n_cols":12,"rows_kept":72,"cut":false,"hidden":false,"merged":[[0,0,0,11],[1,0,1,11],[2,0,2,11],[3,0,3,11],[4,0,4,11],[5,0,5,11],[6,0,6,11],[7,0,7,11],[9,4,9,6],[9,7,9,9],[10,1,11,1],[10,2,11,2],[10,4,11,4],[10,5,11,5],[10,6,11,6],[10,7,11,7],[10,8,11,8],[10,9,11,9],[10,10,11,10]]}
["APPENDIX E"]
["Phil-IRI Form 4, Page 1"]
["Individual Summary Record (ISR)"]
["Talaan ng Indibidwal na Pagbabasa (TIP)"]
["SECTION     FAITH"]
["School: Sitero FranciscoMNHS     Teacher:   Ms. Hazel Anne J. Lopez"]
["English: "]
["Filipino: "]
[]
[null,"Level Started","Level","Set","Word Reading",null,null,"Comprehension",null,null,"Date Taken"]
[null,"Mark with an *",null,"Indicate if A. B. ","Ind","Ins","Frus","Ind","Ins","Frus",null,"READING PROFILE"]
[null,null,null,"C. or D"]
[1,"ADIZAS, JOHN NOEL MALTE",4,"A","/",null,null,null,"/",null,null,"INSTRUCTIONAL"]
[2,"AQUINO, ALEXIS RUSSEL LAURENTE",5,"A","/",null,null,null,"/",null,null,"INSTRUCTIONAL"]
[3,"BONCALES, MARK KEVIN",5,"A","/",null,null,null,"/",null,null,"INSTRUCTIONAL"]
[4,"CARILLO, CHRISTIAN ",5,"A","/",null,null,null,"/",null,null,"INSTRUCTIONAL"]
[5,"ECAMINA, JOHN GERHON PAYTON",5,"A","/",null,null,"/",null,null,null,"INDEPENDENT"]
[6,"GARCIA, AARON",5,"A","/",null,null,null,"/",null,null,"INSTRUCTIONAL"]
[7,"GARET, ROCKY VEN PINEDA",4,"A","/",null,null,null,"/",null,null,"INSTRUCTIONAL"]
[8,"GUBANTES, DUSTIN CLINT CORDERO",4,"A","/",null,null,null,"/",null,null,"INSTRUCTIONAL"]
[9,"LAGSUB, CHESTER GREGORIO",4,"A","/",null,null,null,"/",null,null,"INSTRUCTIONAL"]
[10,"LAURETO, ABENJIE DIADOLE",4,"A","/",null,null,null,"/",null,null,"INSTRUCTIONAL"]
[11,"LIMPIADA, CLEMEN JAY PUNZALAN",5,"A","/",null,null,null,"/",null,null,"INSTRUCTIONAL"]
[12,"MARAHAY, JOHNZEL C.",4,"A",null,"/",null,null,"/",null,null,"INSTRUCTIONAL"]
[13,"MONTERO, ALDRIN OLAJAY",4,"A","/",null,null,null,"/",null,null,"INSTRUCTIONAL"]
[14,"OLESCO, ARIES JR. RODRIGUEZ",4,"A","/",null,null,null,"/",null,null,"INSTRUCTIONAL"]
[15,"ONG, MARTIN LIAN DIAZ",5,"A","/",null,null,null,"/",null,null,"INSTRUCTIONAL"]
[16,"PEPE, RON JANDEL D.",4,"A",null,"/",null,null,null,"/",null,"FRUSTRATION"]
[17,"RAYMUNDO, ABELARDO III CORONAS",5,"A","/",null,null,null,"/",null,null,"INSTRUCTIONAL"]
[18,"RAYOS, JAYMIER M.",5,"A","/",null,null,null,"/",null,null,"INSTRUCTIONAL"]
[19,"REDUBAN, GABRIEL ALEXIS LEYSON",4,"A","/",null,null,null,"/",null,null,"INSTRUCTIONAL"]
[20,"REYES, J-CEN TANOLA",4,"A","/",null,null,"/",null,"/",null,"INDEPENDENT"]
[21,"ROJAS, LORD GARD ENEL R.",4,"A","/",null,null,null,"/",null,null,"INSTRUCTIONAL"]
[22,"SALON, ROMAR LODANA",4,"A","/",null,null,"/",null,null,null,"INDEPENDENT"]
[23,"TUPAZ, GILBERT L.",4,"A","/",null,null,"/",null,null,null,"INDEPENDENT"]
[24,"VALENZUELA, RAIZEN LUCAGAN",4,"A","/",null,null,null,"/",null,null,"INDEPENDENT"]
[25,"VILLEGAS, RIZALITO",4,"A","/",null,null,null,"/",null,null,"INSTRUCTIONAL"]
[26,"ABONG, HAZZEL LATONIO",4,"A","/",null,null,null,"/",null,null,"INSTRUCTIONAL"]
[27,"AGAPITO, ROCHELLE R.",4,"A","/",null,null,null,"/",null,null,"INSTRUCTIONAL"]
[28,"ANDALAHAW, JENNY MAE TAMBIGA",4,"A","/",null,null,null,"/",null,null,"INSTRUCTIONAL"]
[29,"BABON, MERIANEL T.",5,"A","/",null,null,null,"/",null,null,"INSTRUCTIONAL"]
[30,"BALILO, CHELSEA ORIL",4,"A","/",null,null,null,"/",null,null,"INSTRUCTIONAL"]
[31,"CANTA, HANNA MANONGSONG",4,"A","/",null,null,null,"/",null,null,"INSTRUCTIONAL"]
[32,"CAPUNONG, MARIA JOY M.",4,"A","/",null,null,null,"/",null,null,"INSTRUCTIONAL"]
[33,"CARIQUEZ, JHOANA MAE DELACRUZ",4,"A","/",null,null,null,"/",null,null,"INSTRUCTIONAL"]
[34,"CASTELO, PRINCESS JOY P.",5,"A","/",null,null,"/",null,null,null,"INDEPENDENT"]
[35,"CUBOL, JENILYN P.",4,"A","/",null,null,null,"/",null,null,"INSTRUCTIONAL"]
[36,"DELOS REYES, CHRISTINE T.",5,"A","/",null,null,null,"/",null,null,"INSTRUCTIONAL"]
[37," DELOS SANTOS, MARIA CELINA V.",4,"A","/",null,null,null,"/",null,null,"INSTRUCTIONAL"]
[38,"ESTIMADA, TIFFANY KATE DELA CRUZ",4,"A","/",null,null,null,"/",null,null,"INSTRUCTIONAL"]
[39,"GUITIERREZ, ELLA JOY SAPON",4,"A","/",null,null,null,"/",null,null,"INSTRUCTIONAL"]
[40,"JAMISOLLA, BERNALYN CABALLES",5,"A","/",null,null,null,"/",null,null,"INSTRUCTIONAL"]
[41,"JUNIO, REYNALYN",5,"A",null,"/",null,null,"/",null,null,"INSTRUCTIONAL"]
[42,"LAROGA, JUNAIGA PEREZ",4,"A",null,"/",null,null,"/",null,null,"INSTRUCTIONAL"]
[43,"LEJARDE, ARABELLA KATE O.",4,"A","/",null,null,null,"/",null,null,"INSTRUCTIONAL"]
[44,"MARTINEZ, ELLIEJAH JAYE",4,"A","/",null,null,"/",null,null,null,"INDEPENDENT"]
[45,"MALACIDO, JESSICA",5,"A","/",null,null,null,"/",null,null,"INSTRUCTIONAL"]
[46,"NONOD, CHRISTINE DUMAGUIN",4,"A","/",null,null,"/",null,null,null,"INDEPENDENT"]
[47,"PONCE, JENNELYN CAPATI",5,"A","/",null,null,"/",null,null,null,"INDEPENDENT"]
[48,"REQUEJO, HANNAH NICOLE MACAM",4,"A","/",null,null,null,"/",null,null,"INSTRUCTIONAL"]
[49,"RODRIGUEZ, IRA MAE ANTIGUA",4,"A","/",null,null,null,"/",null,null,"INSTRUCTIONAL"]
[50,"SABUSAP, JEMMICA JORIAL",4,"A","/",null,null,null,"/",null,null,"INSTRUCTIONAL"]
[51,"TALINIO, MARY JOYCE OLLERO",4,"A",null,"/",null,null,null,"/",null,"FRUSTRATION"]
[52,"VALERIANO, AVIGAEL SANTOS",4,"A","/",null,null,null,"/",null,null,"INSTRUCTIONAL"]
[53,"VILLANUEVA, RACY JOY O.",4,"A","/",null,null,null,"/",null,null,"INSTRUCTIONAL"]
[54,"VITOR, RIENA FAYE TORLAO",4,"A","/",null,null,null,"/",null,null,"INSTRUCTIONAL"]
[]
[null,"INDEPENDENT",9]
[null,"INSTRUCTIONAL",43]
[null,"FRUSTRATION",2]
[null,null,{"$f":"SUM(C69,C68,C70)","v":54}]
[null,"GST PASSER",0]

{"sheet":"7-SUMMARY PRE TEST","index":15,"n_rows":37,"n_cols":22,"rows_kept":37,"cut":false,"hidden":false,"merged":[[2,0,2,21],[3,1,3,21],[6,0,6,21],[11,4,11,9],[11,10,11,15],[11,16,11,21],[12,4,12,6],[12,7,12,9],[12,10,12,12],[12,13,12,15],[12,16,12,18],[12,19,12,21],[35,1,35,3],[35,7,35,10],[36,7,36,10],[36,13,36,14],[36,16,36,20],[12,0,13,3]]}
[]
[]
["SITERO FRANCISCO MEMORIAL NATIONAL HIGH SCHOOL"]
[null,"Sta. Monica Subd, Ugong, Valenzuela City"]
[]
[]
["SUMMARY OF PRE TEST AND POST TEST"]
[]
[]
[]
[]
[null,"SECTION","No. of Students who took the Exam","NO. of Students who Passed the GST","WORD READING LEVEL",{"$nulls":5},"COMPREHENSION READING LEVEL",{"$nulls":5},"OVER-ALL READING LEVEL"]
["GRADE 7",null,null,null,"PRE-TEST",null,null,"POST TEST",null,null,"PRE-TEST",null,null,"POST TEST",null,null,"PRE-TEST",null,null,"POST TEST"]
[{"$nulls":4},"IND","INS","FRUS","IND","INS","FRUS","IND","INS","FRUS","IND","INS","FRUS","IND","INS","FRUS","IND","INS","FRUS"]
[1,"WISDOM",52,1,37,15,1,null,null,null,47,6,0,null,null,null,35,18,1]
[2,"HUMILITY",51,10,39,2,0,null,null,null,41,0,0,null,null,null,39,2,0]
[3,"DIGNITY",47,0,27,18,7,null,null,null,21,29,2,null,null,null,9,40,2]
[4,"HOPE",53,0,15,36,4,null,null,null,12,25,16,null,null,null,3,32,18]
[5,"CHARITY",47,0,24,9,10,null,null,null,27,16,2,null,null,null,16,25,4]
[6,"FAITH",53,0,51,5,0,null,null,null,8,45,3,null,null,null,9,43,2]
[7,"DILIGENCE",46,0,19,21,5,null,null,null,29,12,4,null,null,null,14,28,3]
[8,"HONESTY",52,1,48,6,1,null,null,null,2,42,11,null,null,null,3,39,11]
[9,"GENEROSITY",50,0,45,8,0,null,null,null,8,42,3,null,null,null,8,42,3]
[10,"INTEGRITY",50,2,49,4,0,null,null,null,12,41,0,null,null,null,13,42,0]
[11,"PERSEVERANCE",51,0,24,21,3,null,null,null,16,15,17,null,null,null,8,21,19]
[12,"PEACE",54,0,23,26,1,null,null,null,11,14,25,null,null,null,5,20,25]
[13,"LOVE",53,0,24,23,3,null,null,null,16,17,17,null,null,null,11,20,19]
[14,"LOYALTY",55,0,43,2,0,null,null,null,19,16,10,null,null,null,19,17,9]
[15,"PATIENCE",54,0,36,7,1,null,null,null,22,11,10,null,null,null,21,14,9]
[null,"TOTAL",{"$f":"SUM(C15:C29)","v":768},14,504,203,36,null,null,null,{"$f":"SUM(K15:K29)","v":291},331,120,null,null,null,{"$f":"SUM(Q15:Q29)","v":213},403,125]
[]
[]
[]
["Prepared by:",{"$nulls":6},"Checked by:",{"$nulls":7},"Noted by:"]
[]
["                ","ABEGAIL D. GRENCIO",{"$nulls":5},"     MARIEL  M. ZIPAGAN",{"$nulls":8},"                MA. CHRISTINA C. SALONGGA"]
["                                  Reading Coordinator",{"$nulls":6},"      Head Teacher III- Filipino",{"$nulls":8},"Principal III"]

{"sheet":"AQUAMARINE","index":16,"n_rows":68,"n_cols":12,"rows_kept":68,"cut":false,"hidden":false,"merged":[[0,0,0,11],[1,0,1,11],[2,0,2,11],[3,0,3,11],[4,0,4,11],[5,0,5,11],[6,0,6,11],[7,0,7,11],[9,4,9,6],[9,7,9,9],[10,1,11,1],[10,2,11,2],[10,4,11,4],[10,5,11,5],[10,6,11,6],[10,7,11,7],[10,8,11,8],[10,9,11,9],[10,10,11,10],[10,11,11,11]]}
["APPENDIX E"]
["Phil-IRI Form 4, Page 1"]
["Individual Summary Record (ISR)"]
["Talaan ng Indibidwal na Pagbabasa (TIP)"]
["SECTION     AQUAMARINE"]
["School: Sitero FranciscoMNHS   Teacher:   Gng. Germie dP. Castillo"]
["English: "]
["Filipino: "]
[]
[null,"Level Started","Level","Set","Word Reading",null,null,"Comprehension",null,null,"Date Taken"]
[null,"Mark with an *",null,"Indicate if A. B. ","Ind","Ins","Frus","Ind","Ins","Frus","July 18, 2019","READING PROFILE"]
[null,null,null,"C. or D"]
[1,"Abad, Anthony V.",4,"C",{"$nulls":7},"INSTRUCTIONAL"]
[2,"Agote, Angelo D.",4,"C",{"$nulls":7},"INSTRUCTIONAL"]
[3,"Besin, John Bryan",5,"C",{"$nulls":7},"INDEPENDENT"]
[4,"Bito- onon, Ryan Christian I.",4,"C",{"$nulls":7},"INDEPENDENT"]
[5,"Borbe, Khaile P.",4,"C",{"$nulls":7},"INSTRUCTIONAL"]
[6,"Caballero, Aaron Y.",4,"C",{"$nulls":7},"INSTRUCTIONAL"]
[7,"David, Johnivan D.",4,"C",{"$nulls":7},"FRUSTRATION"]
[8,"Dela Cruz, Fielbert D.",5,"C",{"$nulls":7},"FRUSTRATION"]
[9,"Delantar, Sean Gil C.",4,"C",{"$nulls":7},"INSTRUCTIONAL"]
[10,"Dulay, Jan Rey A.",4,"C",{"$nulls":7},"INSTRUCTIONAL"]
[11,"Francisco, Adrian P.",4,"C",{"$nulls":7},"INDEPENDENT"]
[12,"Gapasin, Melvin P.",4,"C",{"$nulls":7},"INSTRUCTIONAL"]
[13,"Laguerta, Romer C.",4,"C",{"$nulls":7},"INSTRUCTIONAL"]
[14,"Lleno, Christian Jay O.",4,"C",{"$nulls":7},"INSTRUCTIONAL"]
[15,"Logatoc, Justine S.",5,"C",{"$nulls":7},"INDEPENDENT"]
[16,"Maetim, Mark Denfiel A.",4,"C",{"$nulls":7},"INSTRUCTIONAL"]
[17,"Marcos, Sean Carlo",4,"C",{"$nulls":7},"FRUSTRATION"]
[18,"Molina, John Carlo D.",4,"C",{"$nulls":7},"INSTRUCTIONAL"]
[19,"Mongcal, John Francis L.",5,"C",{"$nulls":7},"INSTRUCTIONAL"]
[20,"Narciso, Charlie C.",5,"C",{"$nulls":7},"INSTRUCTIONAL"]
[21,"Quizon, Mark Bryan",4,"C",{"$nulls":7},"INSTRUCTIONAL"]
[22,"Rodriguez, Jerickson A.",5,"C",{"$nulls":7},"INSTRUCTIONAL"]
[23,"Ruiz, Vhan Jayson J.",4,"C",{"$nulls":7},"INSTRUCTIONAL"]
[24,"Sedutan, Jhian- Lei S.",4,"C",{"$nulls":7},"INDEPENDENT"]
[25,"Suarez, John Mark M.",5,"C",{"$nulls":7},"INDEPENDENT"]
[26,"Victoriano, Joris A.",5,"C",{"$nulls":7},"INSTRUCTIONAL"]
[]
[1,"Alsado, Mitch- Ann B.",5,"C",{"$nulls":7},"INSTRUCTIONAL"]
[2,"Anere, Justine F.",4,"C",{"$nulls":7},"INSTRUCTIONAL"]
[3,"Balisco, Ivylen Mae O.",4,"C",{"$nulls":7},"INSTRUCTIONAL"]
[4,"Bandilla, Cristina",4,"C",{"$nulls":7},"INSTRUCTIONAL"]
[5,"Bascuna, Ellandra Grace L.",4,"C",{"$nulls":7},"INDEPENDENT"]
[6,"Bergonia, Lovely ",4,"C",{"$nulls":7},"INSTRUCTIONAL"]
[7,"Castro, Jennibie B.",4,"C",{"$nulls":7},"INSTRUCTIONAL"]
[8,"Conde, Kazandra Kate A.",4,"C",{"$nulls":7},"INSTRUCTIONAL"]
[9,"Ferrer, Felisitty M.","-","-"]
[10,"Forto, Angelica Mea B.",5,"C",{"$nulls":7},"INDEPENDENT"]
[11,"Garcia, Laarnie Jane D.",5,"C",{"$nulls":7},"INSTRUCTIONAL"]
[12,"Herrera, Johannah Paula E.",4,"C",{"$nulls":7},"INSTRUCTIONAL"]
[13,"Jaramillos, Daniela D.",5,"C",{"$nulls":7},"FRUSTRATION"]
[14,"Mendoza, Nicole T.",4,"C",{"$nulls":7},"FRUSTRATION"]
[15,"Milan, Merry Grace M.",4,"C",{"$nulls":7},"INSTRUCTIONAL"]
[16,"Munda, Zabel F.",5,"C",{"$nulls":7},"INDEPENDENT"]
[17,"Osa, Ayla Jane D.",5,"C",{"$nulls":7},"INSTRUCTIONAL"]
[18,"Palapar, Daisy Jean M.",4,"C",{"$nulls":7},"INDEPENDENT"]
[19,"Resuello, Diana Rose M.",4,"C",{"$nulls":7},"INDEPENDENT"]
[20,"Ricafrente, Elisha Anne P.",5,"C",{"$nulls":7},"INSTRUCTIONAL"]
[21,"Salazar, Vaneza T.",4,"C",{"$nulls":7},"FRUSTRATION"]
[22,"Sedicta, Kristine Maria B.",5,"C",{"$nulls":7},"FRUSTRATION"]
[23,"Villafana, Alliah Kyle F.",4,"C",{"$nulls":7},"INSTRUCTIONAL"]
[]
[null,"INDEPENDENT",11]
[null,"INSTRUCTIONAL",30]
[null,"FRUSTRATION",7]
[null,null,{"$f":"SUM(C64:C66)","v":48}]
[null,"GST PASSER",1,null,null,null,"                                                                                                                                                                                                                                                                                                                                                                                                                                                                                                                                                                                                                                                                                                                                                                                                                                                                                                                                                                                                                                                                                                                                                                                                                                                                                                                                                                                                                                                                                                                                                                                                                                                                                                                                                                                                                                                                                                                                                                                                                                                                                                                                                                                                                                                                                                                                                                                                                                                                                                                                                                                                                                                                                                                                                                                                                                                                                                                                                                                                                                                                                                                                                                                                                                                                                                                                                                                                                                                                                                                                                                                                                                                              "]

{"sheet":"ORANGE","index":17,"n_rows":64,"n_cols":12,"rows_kept":64,"cut":false,"hidden":false,"merged":[[0,0,0,11],[1,0,1,11],[2,0,2,11],[3,0,3,11],[4,0,4,11],[5,0,5,11],[6,0,6,11],[7,0,7,11],[9,4,9,6],[9,7,9,9],[10,1,11,1],[10,2,11,2],[10,4,11,4],[10,5,11,5],[10,6,11,6],[10,7,11,7],[10,8,11,8],[10,9,11,9],[10,10,11,10],[10,11,11,11]]}
["APPENDIX E"]
["Phil-IRI Form 4, Page 1"]
["Individual Summary Record (ISR)"]
["Talaan ng Indibidwal na Pagbabasa (TIP)"]
["SECTION     ORANGE"]
["School: Sitero FranciscoMNHS   Teacher:   Gng. Germie dP. Castillo"]
["English: "]
["Filipino: "]
[]
[null,"Level Started","Level","Set","Word Reading",null,null,"Comprehension",null,null,"Date Taken"]
[null,"Mark with an *",null,"Indicate if A. B. ","Ind","Ins","Frus","Ind","Ins","Frus","July 18, 2019","READING PROFILE"]
[null,null,null,"C. or D"]
[1,"Artizuela, Joshua L.",4,"C",{"$nulls":7},"INSTRUCTIONAL"]
[2,"Baniel,Justine G.",4,"C",{"$nulls":7},"INDEPENDENT"]
[3,"Barrientos,Richmond N.",4,"C",{"$nulls":7},"INSTRUCTIONAL"]
[4,"Calisnao,Trazie Jake L.",5,"C",{"$nulls":7},"INSTRUCTIONAL"]
[5,"Ciabu, Henry Anthony S.",4,"C",{"$nulls":7},"INSTRUCTIONAL"]
[6,"Curiba ,Shan Themes S.",5,"C",{"$nulls":7},"INSTRUCTIONAL"]
[7,"Eulalio, Ivan B.",5,"C",{"$nulls":7},"INSTRUCTIONAL"]
[8,"Gabay, Rico L.",4,"C",{"$nulls":7},"INSTRUCTIONAL"]
[9,"Galangue, Raizen G.",4,"C",{"$nulls":7},"INDEPENDENT"]
[10,"Jayme, Dustin Sam R.",5,"C",{"$nulls":7},"INSTRUCTIONAL"]
[11,"Juico, Randy T.",4,"C",{"$nulls":7},"FRUSTRATION"]
[12,"Legaspi, Carlo Luis A. ",5,"C",{"$nulls":7},"INSTRUCTIONAL"]
[13,"Lumagbas, Vincent C.",5,"C",{"$nulls":7},"INSTRUCTIONAL"]
[14,"Magbanua, Renel",4,"C",{"$nulls":7},"INDEPENDENT"]
[15,"Malazarte, Andrey C.",4,"C",{"$nulls":7},"INDEPENDENT"]
[16,"Manlapig, Jayson M. ",4,"C",{"$nulls":7},"FRUSTRATION"]
[17,"Marcos, Martin N.",5,"C",{"$nulls":7},"INDEPENDENT"]
[18,"Martinez, Bryan James S.",4,"C",{"$nulls":7},"INDEPENDENT"]
[19,"Maurico, Francis Khian",5,"C",{"$nulls":7},"INDEPENDENT"]
[20,"Mendavia, Marvin V.",4,"C",{"$nulls":7},"INDEPENDENT"]
[21,"Perfas, Fritz Daryl L.",4,"C",{"$nulls":7},"INDEPENDENT"]
[22,"Planas, Carie Elison S.",4,"C",{"$nulls":7},"INSTRUCTIONAL"]
[23,"Ritanan, Jhon Freid A.",4,"C",{"$nulls":7},"INDEPENDENT"]
[24,"Romeo, John Cyrill R.",5,"C",{"$nulls":7},"INDEPENDENT"]
[25,"See, Jacob L.",5,"C",{"$nulls":7},"INSTRUCTIONAL"]
[26,"Tupaz, Gale L.",4,"C",{"$nulls":7},"INSTRUCTIONAL"]
[]
[1,"Agno,Debbie-Ann D.",4,"C",{"$nulls":7},"INSTRUCTIONAL"]
[2,"Alarcon, Josephine P.",5,"C",{"$nulls":7},"INSTRUCTIONAL"]
[3,"Arcedas,Marian Mae T.",4,"C",{"$nulls":7},"INSTRUCTIONAL"]
[4,"Cajelo,  Elieza Marie C.",4,"C",{"$nulls":7},"INSTRUCTIONAL"]
[5,"Carvajal, Clarence",4,"C",{"$nulls":7},"INDEPENDENT"]
[6,"Claros,Sherena May F.",4,"C",{"$nulls":7},"INSTRUCTIONAL"]
[7,"Compendio, Angel I.",5,"C",{"$nulls":7},"INSTRUCTIONAL"]
[8,"Esplago, Lea Lien R.",4,"C",{"$nulls":7},"INSTRUCTIONAL"]
[9,"Garcia, Alliya Nicole S.",4,"C",{"$nulls":7},"INSTRUCTIONAL"]
[10,"Garet, Miguela C.",4,"C",{"$nulls":7},"INDEPENDENT"]
[11,"Gonzales, Mariane Kate M.",4,"C",{"$nulls":7},"INSTRUCTIONAL"]
[12,"Lazaro,Emery Laine C.",4,"C",{"$nulls":7},"INDEPENDENT"]
[13,"Mabingnay, Rose Marie E.","-","-"]
[14,"Monterola ,Rechel A.",4,"C",{"$nulls":7},"INDEPENDENT"]
[15,"Perfas, Faith Dannielle L.",4,"C",{"$nulls":7},"INDEPENDENT"]
[16,"Rafael, Elaiza May M.",4,"C",{"$nulls":7},"FRUSTRATION"]
[17,"Regayas, Ailyn C.",4,"C",{"$nulls":7},"INDEPENDENT"]
[18,"Seda, Kianna R.",4,"C",{"$nulls":7},"INSTRUCTIONAL"]
[19,"Uy, Lheann C.",5,"C",{"$nulls":7},"INSTRUCTIONAL"]
[]
[null,"INDEPENDENT",17]
[null,"INSTRUCTIONAL",24]
[null,"FRUSTRATION",3]
[null,null,{"$f":"SUM(C60:C62)","v":44}]
[null,"GST PASSER",1,null,null,null,"                                                                                                                                                                                                                                                                                                                                                                                                                                                                                                                                                                                                                                                                                                                                                                                                                                                                                                                                                                                                                                                                                                                                                                                                                                                                                                                                                                                                                                                                                                                                                                                                                                                                                                                                                                                                                                                                                                                                                                                                                                                                                                                                                                                                                                                                                                                                                                                                                                                                                                                                                                                                                                                                                                                                                                                                                                                                                                                                                                                                                                                                                                                                                                                                                                                                                                                                                                                                                                                                                                                                                                                                                                                              "]

{"sheet":"YELLOW","index":18,"n_rows":70,"n_cols":12,"rows_kept":70,"cut":false,"hidden":false,"merged":[[0,0,0,11],[1,0,1,11],[2,0,2,11],[3,0,3,11],[4,0,4,11],[5,0,5,11],[6,0,6,11],[7,0,7,11],[9,4,9,6],[9,7,9,9],[10,1,11,1],[10,2,11,2],[10,4,11,4],[10,5,11,5],[10,6,11,6],[10,7,11,7],[10,8,11,8],[10,9,11,9],[10,10,11,10],[10,11,11,11]]}
["APPENDIX E"]
["Phil-IRI Form 4, Page 1"]
["Individual Summary Record (ISR)"]
["Talaan ng Indibidwal na Pagbabasa (TIP)"]
["SECTION     YELLOW"]
["School: Sitero FranciscoMNHS   Teacher:   Gng. Germie dP. Castillo"]
["English: "]
["Filipino: "]
[]
[null,"Level Started","Level","Set","Word Reading",null,null,"Comprehension",null,null,"Date Taken"]
[null,null,null,"Indicate if A. B. ","Ind","Ins","Frus","Ind","Ins","Frus","July 22, 2019","READING PROFILE"]
[null,null,null,"C. or D"]
[1,"Anternor,Pearl Paul P.","-","-"]
[2,"Aquino, Andrei B.",5,"C",{"$nulls":7},"INDEPENDENT"]
[3,"Bogasan, Jaybie P.",5,"C",{"$nulls":7},"INSTRUCTIONAL"]
[4,"Buer, Keneniah Joshua S.",5,"C",{"$nulls":7},"INDEPENDENT"]
[5,"Capati, Cassidy C.",5,"C",{"$nulls":7},"INSTRUCTIONAL"]
[6,"Castillo, Russel J.",5,"C",{"$nulls":7},"INSTRUCTIONAL"]
[7,"Catan, Richmar L.",5,"C",{"$nulls":7},"INDEPENDENT"]
[8,"Embudo, Jimuel C.","-","-"]
[9,"Galicto, John Benedict P.",5,"C",{"$nulls":7},"INDEPENDENT"]
[10,"Gaw, Kyle Vincent B.","-","-"]
[11,"Genares, Al Kristian N.","-","-"]
[12,"Halasan, Justin Kian L.",5,"C",{"$nulls":7},"INDEPENDENT"]
[13,"Licup, John Lance U.",5,"C",{"$nulls":7},"INSTRUCTIONAL"]
[14,"Paguio, John Calvin O.","-","-"]
[15,"Pajarillo, Johnric M.",4,"C",{"$nulls":7},"INDEPENDENT"]
[16,"Requez, Ralph Christian P.","-","-"]
[17,"Serdena, John Jimhuel M.","-","-"]
[]
[1,"Alima, Shekinah Jedidian M.",5,"C",{"$nulls":7},"INDEPENDENT"]
[2,"Almarines, Dorothy Jane S.",5,"C",{"$nulls":7},"INDEPENDENT"]
[3,"Antigua,Kristine Jane C.","-","-"]
[4,"Arangco,Resah Mae R.",5,"C",{"$nulls":7},"INSTRUCTIONAL"]
[5,"Baguios, Tracy Jane Castro","-","-"]
[6,"Balbalosa,Mary Ann C.","-","-"]
[7,"Bartolome, Jamilla Mae CO.",5,"C",{"$nulls":7},"INDEPENDENT"]
[8,"Bazar, Jandra J.",5,"C",{"$nulls":7},"INDEPENDENT"]
[9,"Calimutan, Trixxie S.","-","-"]
[10,"Cruz, Mary Joy D.",5,"C",{"$nulls":7},"INSTRUCTIONAL"]
[11,"Cuadra, Leila Janelle J.",5,"C",{"$nulls":7},"INDEPENDENT"]
[12,"Delfin, Richellyn B.","-","-"]
[13,"Dimalanta, Marjorie B.","-","-"]
[14,"Ditablan, Mhariss B.",5,"C",{"$nulls":7},"INDEPENDENT"]
[15,"Dizon, Roxane Nicole B.","-","-"]
[16,"Dupilas, Annalyn T.",4,"C",{"$nulls":7},"INSTRUCTIONAL"]
[17,"Ecamina, Samriana Myrin P.",5,"C",{"$nulls":7},"INSTRUCTIONAL"]
[18,"Encarnado, Kate C.",5,"C",{"$nulls":7},"INDEPENDENT"]
[19,"Gabay, Ricamae L.",5,"C",{"$nulls":7},"INSTRUCTIONAL"]
[20,"Galicia, Precious Loren Mae M.",5,"C",{"$nulls":7},"INDEPENDENT"]
[21,"Ganon, Rochelle Anne V.",5,"C",{"$nulls":7},"INDEPENDENT"]
[22,"Hugo, Ben Annedy P.","-","-"]
[23,"Kileste, Jhanelle Chin D.","-","-"]
[24,"Mabilangan, Lyka Liezel",5,"C",{"$nulls":7},"INDEPENDENT"]
[25,"Manalo, Celine A.",5,"C",{"$nulls":7},"INDEPENDENT"]
[26,"Mejia, Julie Ann A.","-","-"]
[27,"Miranda, Samantha De Paz","-","-"]
[28,"Pabelona, Mary Joy M.",5,"C",{"$nulls":7},"INDEPENDENT"]
[29,"Purisima, Hazel C.",5,"C",{"$nulls":7},"INDEPENDENT"]
[30,"Ramos, Angela P.",5,"C",{"$nulls":7},"INDEPENDENT"]
[31,"Robledo, Azumi S.",5,"C",{"$nulls":7},"INDEPENDENT"]
[32,"Sapanta, Nicole D.",5,"C",{"$nulls":7},"INSTRUCTIONAL"]
[33,"Sueno, Jenielle",5,"C",{"$nulls":7},"INSTRUCTIONAL"]
[34,"Trigueros, Junstarlyte P.",5,"C",{"$nulls":7},"INDEPENDENT"]
[]
[null,"INDEPENDENT",22]
[null,"INSTRUCTIONAL",11]
[null,"FRUSTRATION"]
[null,null,{"$f":"SUM(C66:C68)","v":33}]
[null,"GST PASSER",18,null,null,null,"                                                                                                                                                                                                                                                                                                                                                                                                                                                                                                                                                                                                                                                                                                                                                                                                                                                                                                                                                                                                                                                                                                                                                                                                                                                                                                                                                                                                                                                                                                                                                                                                                                                                                                                                                                                                                                                                                                                                                                                                                                                                                                                                                                                                                                                                                                                                                                                                                                                                                                                                                                                                                                                                                                                                                                                                                                                                                                                                                                                                                                                                                                                                                                                                                                                                                                                                                                                                                                                                                                                                                                                                                                                              "]

{"sheet":"BROWN","index":19,"n_rows":67,"n_cols":12,"rows_kept":67,"cut":false,"hidden":false,"merged":[[0,0,0,11],[1,0,1,11],[2,0,2,11],[3,0,3,11],[4,0,4,11],[5,0,5,11],[6,0,6,11],[7,0,7,11],[9,4,9,6],[9,7,9,9],[10,1,11,1],[10,2,11,2],[10,4,11,4],[10,5,11,5],[10,6,11,6],[10,7,11,7],[10,8,11,8],[10,9,11,9],[10,10,11,10],[10,11,11,11]]}
["APPENDIX E"]
["Phil-IRI Form 4, Page 1"]
["Individual Summary Record (ISR)"]
["Talaan ng Indibidwal na Pagbabasa (TIP)"]
["SECTION    BROWN"]
["School: Sitero FranciscoMNHS   Teacher:   Gng. Germie dP. Castillo"]
["English: "]
["Filipino: "]
[]
[null,"Level Started","Level","Set","Word Reading",null,null,"Comprehension",null,null,"Date Taken"]
[null,"Mark with an *",null,"Indicate if A. B. ","Ind","Ins","Frus","Ind","Ins","Frus","July 18, 2019","READING PROFILE"]
[null,null,null,"C. or D"]
[1,"Butalid, Rhandell M.",5,"C",{"$nulls":7},"INSTRUCTIONAL"]
[2,"Caballero, Jay Mark N.",4,"C",{"$nulls":7},"INSTRUCTIONAL"]
[3,"Carbonell Jr., Gerardo Y.",4,"C",{"$nulls":7},"INDEPENDENT"]
[4,"Cofuentes, Nelson A.",5,"C",{"$nulls":7},"INSTRUCTIONAL"]
[5,"Estimada, Leonardo B.",4,"C",{"$nulls":7},"INSTRUCTIONAL"]
[6,"Galela, Carl Razzel D.",4,"C",{"$nulls":7},"INSTRUCTIONAL"]
[7,"Gilbuena, John Laurence D.",5,"C",{"$nulls":7},"INDEPENDENT"]
[8,"Hubilla, Cyrus Jade B.",4,"C",{"$nulls":7},"INSTRUCTIONAL"]
[9,"Huit, John Axl M.",4,"C",{"$nulls":7},"INDEPENDENT"]
[10,"Layola, Jay Lord R.",5,"C",{"$nulls":7},"INSTRUCTIONAL"]
[11,"Lejarde, Jefferson J.",4,"C",{"$nulls":7},"INSTRUCTIONAL"]
[12,"Llanilo, Mark V.",4,"C",{"$nulls":7},"INSTRUCTIONAL"]
[13,"Lozada, Janoah F.",5,"C",{"$nulls":7},"INSTRUCTIONAL"]
[14,"Martin, Christian James Q.",4,"C",{"$nulls":7},"INSTRUCTIONAL"]
[15,"Mintac, Gabriel A.",4,"C",{"$nulls":7},"INSTRUCTIONAL"]
[16,"Molano, Jefferson P.",4,"C",{"$nulls":7},"INSTRUCTIONAL"]
[17,"Moya, Kevin S.",5,"C",{"$nulls":7},"FRUSTRATION"]
[18,"Noblefranca, John Lester P.",4,"C",{"$nulls":7},"INSTRUCTIONAL"]
[19,"Pedroso, Christian Jay A. ",4,"C",{"$nulls":7},"INDEPENDENT"]
[20,"Pineda, Gabriel C.",4,"C",{"$nulls":7},"INDEPENDENT"]
[21,"Portabes, Jennel",4,"C",{"$nulls":7},"INSTRUCTIONAL"]
[22,"Sison, Justine Drew",{"$nulls":9},"INSTRUCTIONAL"]
[23,"Villagomez, Benjamin Jr. A.",4,"C",{"$nulls":7},"INSTRUCTIONAL"]
[24,"Yu, Mark Cyrus R.",5,"C",{"$nulls":7},"INDEPENDENT"]
[]
[1,"Abando, Jane B.",5,"C",{"$nulls":7},"INSTRUCTIONAL"]
[2,"Abenoja, Danissa R.",4,"C",{"$nulls":7},"FRUSTRATION"]
[3,"Adio, Michiel C.",4,"C",{"$nulls":7},"FRUSTRATION"]
[4,"Aniceto, Doralyn T.",4,"C",{"$nulls":7},"INSTRUCTIONAL"]
[5,"Balbas, Angel Mae D.",4,"C",{"$nulls":7},"INSTRUCTIONAL"]
[6,"Batolina, Channel Khrisdy S.",5,"C",{"$nulls":7},"INDEPENDENT"]
[7,"Bayani, Janna Pauline M.",5,"C",{"$nulls":7},"INDEPENDENT"]
[8,"Borromeo, Daniella Marie A.",5,"C",{"$nulls":7},"INDEPENDENT"]
[9,"Caballa, Airis Joy P.",4,"C",{"$nulls":7},"INSTRUCTIONAL"]
[10,"Caldona, Patricia Ashelene B.",4,"C",{"$nulls":7},"INSTRUCTIONAL"]
[11,"Caneso, Jessa D.",4,"C",{"$nulls":7},"FRUSTRATION"]
[12,"Codina, Iivram Yoj L.",4,"C",{"$nulls":7},"INSTRUCTIONAL"]
[13,"Conde, Melyrose M.",5,"C",{"$nulls":7},"INDEPENDENT"]
[14,"Crisol, Stephanie Angel R. ",5,"C",{"$nulls":7},"INSTRUCTIONAL"]
[15,"Currameng, Dhanna Pauleen Mae",4,"C",{"$nulls":7},"FRUSTRATION"]
[16,"Floresca, Islash Yane F.",5,"C",{"$nulls":7},"INDEPENDENT"]
[17,"Fuentes, Hazel U.",4,"C",{"$nulls":7},"INSTRUCTIONAL"]
[18,"Gacis, Ge ann B.",4,"C",{"$nulls":7},"INSTRUCTIONAL"]
[19,"Leonor, Maridel Y.",5,"C",{"$nulls":7},"INDEPENDENT"]
[20,"Ramos, Trisha Mae L.",4,"C",{"$nulls":7},"INSTRUCTIONAL"]
[21,"Restum, Mary Caila C.",4,"C",{"$nulls":7},"INDEPENDENT"]
[22,"Santos, Criselda O.",4,"C",{"$nulls":7},"INSTRUCTIONAL"]
[23,"Yambot, Dhenniella B. ",4,"C",{"$nulls":7},"INSTRUCTIONAL"]
[24,"Zantua, Veronica R. ",4,"C",{"$nulls":7},"INDEPENDENT"]
[]
[null,"INDEPENDENT",14]
[null,"INSTRUCTIONAL",29]
[null,"FRUSTRATION",5]
[null,null,{"$f":"SUM(C63:C65)","v":48}]
[null,"GST PASSER",0,null,null,null,"                                                                                                                                                                                                                                                                                                                                                                                                                                                                                                                                                                                                                                                                                                                                                                                                                                                                                                                                                                                                                                                                                                                                                                                                                                                                                                                                                                                                                                                                                                                                                                                                                                                                                                                                                                                                                                                                                                                                                                                                                                                                                                                                                                                                                                                                                                                                                                                                                                                                                                                                                                                                                                                                                                                                                                                                                                                                                                                                                                                                                                                                                                                                                                                                                                                                                                                                                                                                                                                                                                                                                                                                                                                              "]

{"sheet":"BLUE","index":20,"n_rows":68,"n_cols":12,"rows_kept":68,"cut":false,"hidden":false,"merged":[[0,0,0,11],[1,0,1,11],[2,0,2,11],[3,0,3,11],[4,0,4,11],[5,0,5,11],[6,0,6,11],[7,0,7,11],[9,4,9,6],[9,7,9,9],[10,1,11,1],[10,2,11,2],[10,4,11,4],[10,5,11,5],[10,6,11,6],[10,7,11,7],[10,8,11,8],[10,9,11,9],[10,10,11,10],[10,11,11,11]]}
["APPENDIX E"]
["Phil-IRI Form 4, Page 1"]
["Individual Summary Record (ISR)"]
["Talaan ng Indibidwal na Pagbabasa (TIP)"]
["SECTION     BLUE"]
["School: Sitero FranciscoMNHS   Teacher:   Gng. Germie dP. Castillo"]
["English: "]
["Filipino: "]
[]
[null,"Level Started","Level","Set","Word Reading",null,null,"Comprehension",null,null,"Date Taken"]
[null,"Mark with an *",null,"Indicate if A. B. ","Ind","Ins","Frus","Ind","Ins","Frus","July 18, 2019","READING PROFILE"]
[null,null,null,"C. or D"]
[1,"Ablaza, Gian George S.",5,"C",{"$nulls":7},"INSTRUCTIONAL"]
[2,"Alamag, Marvin G.",4,"C",{"$nulls":7},"INSTRUCTIONAL"]
[3,"Algarme, Dave Mark F.",5,"C",{"$nulls":7},"INDEPENDENT"]
[4,"Amante, Denzel Dave S.",4,"C",{"$nulls":7},"INDEPENDENT"]
[5,"Amoguiz, Dave G. ",4,"C",{"$nulls":7},"INSTRUCTIONAL"]
[6,"Apita, Aeron Dominic N.",4,"C",{"$nulls":7},"INSTRUCTIONAL"]
[7,"Barcelon, Norman Jr P.",4,"C",{"$nulls":7},"INSTRUCTIONAL"]
[8,"Barrameda,Jullian Hanz A.",5,"C",{"$nulls":7},"INDEPENDENT"]
[9,"Buencibillo, Leniel D.",5,"C",{"$nulls":7},"INDEPENDENT"]
[10,"Calderon, Adrian P.",4,"C",{"$nulls":7},"INSTRUCTIONAL"]
[11,"Concepcion, Jonas R.",5,"C",{"$nulls":7},"INSTRUCTIONAL"]
[12,"Edea, Billy T.",5,"C",{"$nulls":7},"INDEPENDENT"]
[13,"Enciso, Jade Ervan D. ",4,"C",{"$nulls":7},"FRUSTRATION"]
[14,"Ferrer, Scott Andrew B.",4,"C",{"$nulls":7},"INSTRUCTIONAL"]
[15,"Lazaro, John Axell U.",5,"C",{"$nulls":7},"INDEPENDENT"]
[16,"Lima, Charls Darwin C.",4,"C",{"$nulls":7},"INSTRUCTIONAL"]
[17,"Lopet, Jastine N.",4,"C",{"$nulls":7},"INSTRUCTIONAL"]
[18,"Malinao, Kyle Andrei G.",5,"C",{"$nulls":7},"INDEPENDENT"]
[19,"Morales, Clifford Jon Edward A.",5,"C",{"$nulls":7},"INSTRUCTIONAL"]
[20,"Mutia, John Danniel A.",4,"C",{"$nulls":7},"INSTRUCTIONAL"]
[21,"Nadera, John Aldred G.",4,"C",{"$nulls":7},"INSTRUCTIONAL"]
[22,"Olinar, Arnel M.",4,"C",{"$nulls":7},"INDEPENDENT"]
[23,"Rojas, Raymart S.",4,"C",{"$nulls":7},"INSTRUCTIONAL"]
[24,"Samaco, Chad Marky C.",5,"C",{"$nulls":7},"INSTRUCTIONAL"]
[25,"San Diego, Jhondel Marc M.",4,"C",{"$nulls":7},"INDEPENDENT"]
[26,"Sirco, Mico U.",4,"C",{"$nulls":7},"INSTRUCTIONAL"]
[27,"Suarez, Sergio R.",4,"C",{"$nulls":7},"INSTRUCTIONAL"]
[28,"Sumeguin, Ben G.",4,"C",{"$nulls":7},"INSTRUCTIONAL"]
[29,"Valera, John Joferd A.",5,"C",{"$nulls":7},"INSTRUCTIONAL"]
[]
[1,"Ancheta, Romelyn O.",4,"C",{"$nulls":7},"INDEPENDENT"]
[2,"Baco, Thriexshe",5,"C",{"$nulls":7},"INDEPENDENT"]
[3,"Basas, Glydel D.",4,"C",{"$nulls":7},"INSTRUCTIONAL"]
[4,"Cabero, Angel Dianne  P.",5,"C",{"$nulls":7},"INDEPENDENT"]
[5,"Cabrito, Noreen Mae Angel L.",4,"C",{"$nulls":7},"INSTRUCTIONAL"]
[6,"Canibel, Katherine I.",5,"C",{"$nulls":7},"INSTRUCTIONAL"]
[7,"Dela Torre, Lhiza B.",4,"C",{"$nulls":7},"INDEPENDENT"]
[8,"Lucio, Angeline PA.",4,"C",{"$nulls":7},"INSTRUCTIONAL"]
[9,"Macaranas, Zyrhil L.",5,"C",{"$nulls":7},"INSTRUCTIONAL"]
[10,"Madrigal, Angel Ann B.",4,"C",{"$nulls":7},"INDEPENDENT"]
[11,"Mandani, Pauline Kate N.",5,"C",{"$nulls":7},"INDEPENDENT"]
[12,"Merca, Jean Heart M.",5,"C",{"$nulls":7},"INSTRUCTIONAL"]
[13,"Munez, Mary Jane M.",4,"C",{"$nulls":7},"INSTRUCTIONAL"]
[14,"Obal, Hannah Kim M.",5,"C",{"$nulls":7},"INDEPENDENT"]
[15,"Lacayanga, Jialyn R. ",4,"C",{"$nulls":7},"INSTRUCTIONAL"]
[16,"RIivara, Mary- Jane M.",4,"C",{"$nulls":7},"INSTRUCTIONAL"]
[17,"Sanchez, Aaliyah Mae A.",4,"C",{"$nulls":7},"INSTRUCTIONAL"]
[18,"Surio, Ronaliza A.",4,"C",{"$nulls":7},"FRUSTRATION"]
[19,"Valenzuela, Jenny lyn  C.",5,"C",{"$nulls":7},"INSTRUCTIONAL"]
[20,"Yco, Shane Tracy",5,"C",{"$nulls":7},"INSTRUCTIONAL"]
[]
[null,"INDEPENDENT",16]
[null,"INSTRUCTIONAL",31]
[null,"FRUSTRATION",2]
[null,null,{"$f":"SUM(C64:C66)","v":49}]
[null,"GST PASSER",0,null,null,null,"                                                                                                                                                                                                                                                                                                                                                                                                                                                                                                                                                                                                                                                                                                                                                                                                                                                                                                                                                                                                                                                                                                                                                                                                                                                                                                                                                                                                                                                                                                                                                                                                                                                                                                                                                                                                                                                                                                                                                                                                                                                                                                                                                                                                                                                                                                                                                                                                                                                                                                                                                                                                                                                                                                                                                                                                                                                                                                                                                                                                                                                                                                                                                                                                                                                                                                                                                                                                                                                                                                                                                                                                                                                              "]

{"sheet":"WHITE","index":21,"n_rows":70,"n_cols":12,"rows_kept":70,"cut":false,"hidden":false,"merged":[[0,0,0,11],[1,0,1,11],[2,0,2,11],[3,0,3,11],[4,0,4,11],[5,0,5,11],[6,0,6,11],[7,0,7,11],[9,4,9,6],[9,7,9,9],[10,1,11,1],[10,2,11,2],[10,4,11,4],[10,5,11,5],[10,6,11,6],[10,7,11,7],[10,8,11,8],[10,9,11,9],[10,10,11,10],[10,11,11,11]]}
["APPENDIX E"]
["Phil-IRI Form 4, Page 1"]
["Individual Summary Record (ISR)"]
["Talaan ng Indibidwal na Pagbabasa (TIP)"]
["SECTION: WHITE"]
["School: Sitero FranciscoMNHS   Teacher:   Gng. Mylyne P. Abeleda"]
["English: "]
["Filipino: "]
[]
[null,"Level Started","Level","Set","Word Reading",null,null,"Comprehension",null,null,"Date Taken"]
[null,"Mark with an *",null,"Indicate if A. B. ","Ind","Ins","Frus","Ind","Ins","Frus","2019-07-29","READING PROFILE"]
[null,null,null,"C. or D"]
[1,"Adriano, Anthony",4,"C",{"$nulls":7},"FRUSTRATION"]
[2,"Almosara, Mark",4,"C",{"$nulls":7},"INSTRUCTIONAL"]
[3,"Andres, John Carlo",5,"C",{"$nulls":7},"INSTRUCTIONAL"]
[4,"Cañas, Jemer",4,"C",{"$nulls":7},"INSTRUCTIONAL"]
[5,"Conersio, Joshua",5,"C",{"$nulls":7},"INSTRUCTIONAL"]
[6,"Correa, Ralf Justin",5,"C",{"$nulls":7},"INSTRUCTIONAL"]
[7,"Deleon, Augostin",4,"C",{"$nulls":7},"INSTRUCTIONAL"]
[8,"Dilla, Jayrard Bryce",5,"C",{"$nulls":7},"FRUSTRATION"]
[9,"Dimaano, Arcel Ivan",5,"C",{"$nulls":7},"FRUSTRATION"]
[10,"Dimaiwat, Honlendel",4,"C",{"$nulls":7},"INSTRUCTIONAL"]
[11,"Dumencel, Jermaine",5,"C",{"$nulls":7},"INSTRUCTIONAL"]
[12,"Duque, Rafael",4,"C",{"$nulls":7},"INSTRUCTIONAL"]
[13,"Fabro, Carl Christian",4,"C",{"$nulls":7},"INSTRUCTIONAL"]
[14,"Famillaran, Roydave",4,"C",{"$nulls":7},"INSTRUCTIONAL"]
[15,"Lagasca, Rey",5,"C",{"$nulls":7},"INSTRUCTIONAL"]
[16,"Lato, Alvin",4,"C",{"$nulls":7},"INSTRUCTIONAL"]
[17,"Malazarte, Reyjen",4,"C",{"$nulls":7},"INSTRUCTIONAL"]
[18,"Mercolesia, Joel",4,"C",{"$nulls":7},"INSTRUCTIONAL"]
[19,"Patayan, Gerald",4,"C",{"$nulls":7},"INDEPENDENT"]
[20,"Peralta, Jay-P",4,"C",{"$nulls":7},"INDEPENDENT"]
[21,"Rebamuntan, Mike",4,"C"]
[22,"Riñen, Joshua","-","-"]
[23,"Romero, Jude",5,"C",{"$nulls":7},"INSTRUCTIONAL"]
[24,"Salas, Julio",5,"C",{"$nulls":7},"INSTRUCTIONAL"]
[25,"Silapan, Edrian",4,"C",{"$nulls":7},"INSTRUCTIONAL"]
[26,"Villamente, Jervin",4,"C",{"$nulls":7},"INDEPENDENT"]
[27,"Villotica, Leo Carlo",4,"C",{"$nulls":7},"FRUSTRATION"]
[]
[1,"Abonada, Lyndie",5,"C",{"$nulls":7},"INSTRUCTIONAL"]
[2,"Balwit, Jennelyn",4,"C",{"$nulls":7},"INDEPENDENT"]
[3,"Candido, Daniella",4,"C",{"$nulls":7},"INSTRUCTIONAL"]
[4,"Clave, Caren Joy",5,"C",{"$nulls":7},"INDEPENDENT"]
[5,"Decepida, Tiffany Kay",5,"C",{"$nulls":7},"INDEPENDENT"]
[6,"Francisco, Ricabel",5,"C",{"$nulls":7},"INDEPENDENT"]
[7,"Garet, Francheska",4,"C",{"$nulls":7},"INSTRUCTIONAL"]
[8,"Gonzales, Ashley Nieven",4,"C",{"$nulls":7},"INSTRUCTIONAL"]
[9,"Honrubia, Joyce Ann",4,"C",{"$nulls":7},"FRUSTRATION"]
[10,"Honrubia, Novelyn",4,"C",{"$nulls":7},"INSTRUCTIONAL"]
[11,"Icuspit, Elaine Joy",5,"C",{"$nulls":7},"INSTRUCTIONAL"]
[12,"Lee, Sofia",4,"C",{"$nulls":7},"INSTRUCTIONAL"]
[13,"Lauherta, Jasmin",5,"C",{"$nulls":7},"INSTRUCTIONAL"]
[14,"Malit, Jennelyn",4,"C",{"$nulls":7},"INSTRUCTIONAL"]
[15,"Manalo, Jamela",5,"C",{"$nulls":7},"INSTRUCTIONAL"]
[16,"Mina, Freya",5,"C",{"$nulls":7},"INSTRUCTIONAL"]
[17,"Pacios, Erika",5,"C",{"$nulls":7},"INSTRUCTIONAL"]
[18,"Padilla, Carla",4,"C",{"$nulls":7},"INDEPENDENT"]
[19,"Panuelos, Jephsay",4,"C",{"$nulls":7},"INDEPENDENT"]
[20,"Robles, Bernadete",5,"C",{"$nulls":7},"INSTRUCTIONAL"]
[21,"Roxas, Jannah",4,"C",{"$nulls":7},"FRUSTRATION"]
[22,"Santino, Nimwela",5,"C",{"$nulls":7},"INDEPENDENT"]
[23,"Traspaderme, Jannah",4,"C",{"$nulls":7},"INDEPENDENT"]
[]
[null,"NO  ORAL READING ASSESSMENT",1]
[null,"INDEPENDENT",11]
[null,"INSTRUCTIONAL",31]
[null,"FRUSTRATION",6]
[null,null,{"$f":"SUM(C66:C68)","v":48}]
[null,"GST PASSER",1]

{"sheet":"MAROON","index":22,"n_rows":70,"n_cols":12,"rows_kept":70,"cut":false,"hidden":false,"merged":[[0,0,0,11],[1,0,1,11],[2,0,2,11],[3,0,3,11],[4,0,4,11],[5,0,5,11],[6,0,6,11],[7,0,7,11],[9,4,9,6],[9,7,9,9],[10,1,11,1],[10,2,11,2],[10,4,11,4],[10,5,11,5],[10,6,11,6],[10,7,11,7],[10,8,11,8],[10,9,11,9],[10,10,11,10],[10,11,11,11]]}
["APPENDIX E"]
["Phil-IRI Form 4, Page 1"]
["Individual Summary Record (ISR)"]
["Talaan ng Indibidwal na Pagbabasa (TIP)"]
["SECTION : MAROON"]
["School: Sitero FranciscoMNHS   Teacher:   Gng. Mylyne P. Abeleda"]
["English: "]
["Filipino: "]
[]
[null,"Level Started","Level","Set","Word Reading",null,null,"Comprehension",null,null,"Date Taken"]
[null,"Mark with an *",null,"Indicate if A. B. ","Ind","Ins","Frus","Ind","Ins","Frus","2019-07-29","READING PROFILE"]
[null,null,null,"C. or D"]
[1,"Advincula, Jose Freddy Junior Galang",5,"C",{"$nulls":7},"FRUSTRATION"]
[2,"Aure, Delmark Orogan",4,"C",{"$nulls":7},"INDEPENDENT"]
[3,"Bedio, Jezreel C",4,"C",{"$nulls":7},"FRUSTRATION"]
[4,"Bolinas, John Mark ",5,"C",{"$nulls":7},"INDEPENDENT"]
[5,"Bua, Melchor Magno",4,"C",{"$nulls":7},"INSTRUCTIONAL"]
[6,"Buyain, Aron Jade",5,"C",{"$nulls":7},"INSTRUCTIONAL"]
[7,"Cabillo, Mac Laurence Arian",5,"C",{"$nulls":7},"INSTRUCTIONAL"]
[8,"Castelo, Oliver Tristan Paulo","-","-"]
[9,"Collera Jr. Rann Jay Viray",5,"C",{"$nulls":7},"INSTRUCTIONAL"]
[10,"Dela Cruz, James Duque",5,"C",{"$nulls":7},"INDEPENDENT"]
[11,"Delequiña, Lester Cagas",4,"C",{"$nulls":7},"INSTRUCTIONAL"]
[12,"Dialino, Carl Justin Dagohoy",4,"C",{"$nulls":7},"INDEPENDENT"]
[13,"Dulay, Jonson F",5,"C",{"$nulls":7},"INSTRUCTIONAL"]
[14,"Falguera, Mike Andrew",4,"C",{"$nulls":7},"INSTRUCTIONAL"]
[15,"Flores, Jonnel Lauzon",4,"C",{"$nulls":7},"INDEPENDENT"]
[16,"Garduce, John Deo Blancaflor",4,"C",{"$nulls":7},"FRUSTRATION"]
[17,"Lawas, John Rey R. ",4,"C",{"$nulls":7},"FRUSTRATION"]
[18,"Mahinay, Adriel Dignadice",4,"C",{"$nulls":7},"INSTRUCTIONAL"]
[19,"Mangubat, Rave Dayego",4,"C",{"$nulls":7},"INSTRUCTIONAL"]
[20,"Nunez, Kevin Morris Reyes",5,"C"]
[21,"Omelin, Jat-Ar Borbo",4,"C",{"$nulls":7},"INSTRUCTIONAL"]
[22,"Orcine, Renz Mateo Polido",4,"C",{"$nulls":7},"INSTRUCTIONAL"]
[23,"Pepito, Aljohn Progoso",4,"C",{"$nulls":7},"INSTRUCTIONAL"]
[24,"Pumantoc, Samuel D",4,"C",{"$nulls":7},"FRUSTRATION"]
[25,"Rivera, Eugene Alastra",5,"C",{"$nulls":7},"INSTRUCTIONAL"]
[26,"Roxas, Ric John Garciano",5,"C",{"$nulls":7},"INDEPENDENT"]
[27,"Sosoban, Raven Payod",5,"C",{"$nulls":7},"INDEPENDENT"]
[28,"Torrenueva, Sean Carlo Rima",5,"C",{"$nulls":7},"INSTRUCTIONAL"]
[29,"Villanueva, Mark Anthony Salonga",5,"C",{"$nulls":7},"INSTRUCTIONAL"]
[30,"Zantua, Oliver Ramas",4,"C",{"$nulls":7},"INSTRUCTIONAL"]
[]
[1,"Agno, Ashley Danaya Doldol",5,"C",{"$nulls":7},"INSTRUCTIONAL"]
[2,"Biendima, Jasmine Castro",5,"C",{"$nulls":7},"INSTRUCTIONAL"]
[3,"Diaz, Andrea Jade Dumale",5,"C"]
[4,"Dispo, Daniella Palermo",5,"C",{"$nulls":7},"INSTRUCTIONAL"]
[5,"Feliciano, Aravela Nicole Fulgencio",5,"C",{"$nulls":7},"INDEPENDENT"]
[6,"Hipolito, Jhenie Anne Pacibe",4,"C",{"$nulls":7},"INSTRUCTIONAL"]
[7,"Jusay, Vanessa Rosel",5,"C",{"$nulls":7},"INSTRUCTIONAL"]
[8,"Lucena, Jennifer Moya",5,"C",{"$nulls":7},"INSTRUCTIONAL"]
[9,"Morillo, Roxanne Fortunado",4,"C",{"$nulls":7},"FRUSTRATION"]
[10,"Pandan, Rodjel Vargas",4,"C",{"$nulls":7},"INSTRUCTIONAL"]
[11,"Patayan, Anyssa Dhayle Guande",4,"C",{"$nulls":7},"INSTRUCTIONAL"]
[12,"Polvorido, Angel Jade Oronan",4,"C",{"$nulls":7},"INSTRUCTIONAL"]
[13,"Reserva, Jacjielyn",4,"C",{"$nulls":7},"INSTRUCTIONAL"]
[14,"Silvestre, Cristel Jhen Sambile",4,"C",{"$nulls":7},"INSTRUCTIONAL"]
[15,"Somera, Kim Guenevere Francisco",5,"C",{"$nulls":7},"INDEPENDENT"]
[16,"Sulmayor, Rica Acala",4,"C",{"$nulls":7},"INSTRUCTIONAL"]
[17,"Sumalinog, Lyca Jane B",4,"C",{"$nulls":7},"INSTRUCTIONAL"]
[18,"Tawagon, Angela Karla Halili",4,"C",{"$nulls":7},"INDEPENDENT"]
[19,"Tayros, Cristy Bagood",4,"C",{"$nulls":7},"FRUSTRATION"]
[20,"Vistal, Lovely Joy Luzon",4,"C",{"$nulls":7},"INDEPENDENT"]
[]
[null,"NO  ORAL READING ASSESSMENT",2]
[null,"INDEPENDENT",11]
[null,"INSTRUCTIONAL",29]
[null,"FRUSTRATION",7]
[null,null,{"$f":"SUM(C66:C68)","v":47}]
[null,"GST PASSER",1]

{"sheet":"VIOLET","index":23,"n_rows":71,"n_cols":12,"rows_kept":71,"cut":false,"hidden":false,"merged":[[0,0,0,11],[1,0,1,11],[2,0,2,11],[3,0,3,11],[4,0,4,11],[5,0,5,11],[6,0,6,11],[7,0,7,11],[9,4,9,6],[9,7,9,9],[10,1,11,1],[10,2,11,2],[10,4,11,4],[10,5,11,5],[10,6,11,6],[10,7,11,7],[10,8,11,8],[10,9,11,9],[10,10,11,10],[10,11,11,11]]}
["APPENDIX E"]
["Phil-IRI Form 4, Page 1"]
["Individual Summary Record (ISR)"]
["Talaan ng Indibidwal na Pagbabasa (TIP)"]
["SECTION: VIOLET"]
["School: Sitero FranciscoMNHS   Teacher:   Gng. Mylyne P. Abeleda"]
["English: "]
["Filipino: "]
[]
[null,"Level Started","Level","Set","Word Reading",null,null,"Comprehension",null,null,"Date Taken"]
[null,null,null,"Indicate if A. B. ","Ind","Ins","Frus","Ind","Ins","Frus","2019-07-29","READING PROFILE"]
[null,null,null,"C. or D"]
[1,"Aquino, Lester Bautista",5,"C",{"$nulls":7},"FRUSTRATION"]
[2,"Arangco, Jayson Robante ",4,"C",{"$nulls":7},"INDEPENDENT"]
[3,"Arejola, Anthony Labrador",5,"C",{"$nulls":7},"INDEPENDENT"]
[4,"Belista, Ranz De Mata",5,"C",{"$nulls":7},"INSTRUCTIONAL"]
[5,"Cahayag, Ronel Garces",5,"C",{"$nulls":7},"INSTRUCTIONAL"]
[6,"Castañeda, Jervin Bryan Andaya",5,"C",{"$nulls":7},"INDEPENDENT"]
[7,"Cortez, Euane Rich Murillo",5,"C",{"$nulls":7},"INSTRUCTIONAL"]
[8,"Dungao, Art Jansen Sayson",5,"C",{"$nulls":7},"INDEPENDENT"]
[9,"Feliciano, Cyrell Aquino",5,"C",{"$nulls":7},"INDEPENDENT"]
[10,"Fernandez, Dave Michael Bangayan",5,"C",{"$nulls":7},"INDEPENDENT"]
[11,"Jose, E-Mar Cabarrubias",4,"C",{"$nulls":7},"INDEPENDENT"]
[12,"Magbago, Christopher Roque",5,"C",{"$nulls":7},"INSTRUCTIONAL"]
[13,"Moreno, Rico Uriarte",5,"C",{"$nulls":7},"INSTRUCTIONAL"]
[14,"Obias, Jan Mathew Delos Santos",4,"C",{"$nulls":7},"FRUSTRATION"]
[15,"Olaguer, Adrian Empleo",4,"C",{"$nulls":7},"FRUSTRATION"]
[16,"Parreño, Carl Joshua Bayangos",5,"C",{"$nulls":7},"INDEPENDENT"]
[17,"Rodriguez, Ralph Jayson Magtuto",4,"C",{"$nulls":7},"INSTRUCTIONAL"]
[18,"Sarto, Iverson Ojeda",4,"C",{"$nulls":7},"INSTRUCTIONAL"]
[19,"Soriano, Emman Julius Dimayuga",5,"C",{"$nulls":7},"INSTRUCTIONAL"]
[20,"Valisno, Peter Philip Manero",5,"C",{"$nulls":7},"INDEPENDENT"]
[21,"Villegas, Arjay Omega",5,"C",{"$nulls":7},"INDEPENDENT"]
[]
[1,"Balicat, Wendy Engo",5,"C",{"$nulls":7},"INDEPENDENT"]
[2,"Bolos, Leahmarie Simon",5,"C",{"$nulls":7},"INDEPENDENT"]
[3,"Cabaltera, Sheena Catibag",4,"C",{"$nulls":7},"INDEPENDENT"]
[4,"De Castro, Kathleen Napoles",4,"C",{"$nulls":7},"INDEPENDENT"]
[5,"Dema-ala, Trisha Louraine Tyquico",4,"C",{"$nulls":7},"INDEPENDENT"]
[6,"Dominguez, Jamaeca Taoingan",5,"C",{"$nulls":7},"INDEPENDENT"]
[7,"Duque, Kristina Cassandra Icawalo",5,"C",{"$nulls":7},"INDEPENDENT"]
[8,"Escototo, Avegale Pabrudina",6,"C",{"$nulls":7},"INDEPENDENT"]
[9,"Ladac, Wednesday Joy Bravo",5,"C",{"$nulls":7},"INSTRUCTIONAL"]
[10,"Lagueras, Maenel Crisol",4,"C",{"$nulls":7},"INDEPENDENT"]
[11,"Laurete, Ericka Enomar",5,"C",{"$nulls":7},"INSTRUCTIONAL"]
[12,"Lindog, Ruffa Arnan",5,"C",{"$nulls":7},"INSTRUCTIONAL"]
[13,"Mahusay, Trisha May Pun-an",4,"C",{"$nulls":7},"INSTRUCTIONAL"]
[14,"Mandap, Jade Nicole Madrigal",4,"C",{"$nulls":7},"INDEPENDENT"]
[15,"Martinez, Cerelina Arguta",4,"C",{"$nulls":7},"INSTRUCTIONAL"]
[16,"Mina, Lucy Mae Briones",5,"C",{"$nulls":7},"INSTRUCTIONAL"]
[17,"Moreno, Mikaela Obias",5,"C",{"$nulls":7},"INSTRUCTIONAL"]
[18,"Oxina, Sofhia Alexis Dela Cruz",5,"C",{"$nulls":7},"INSTRUCTIONAL"]
[19,"Rallos, Kristina Manga",5,"C",{"$nulls":7},"INDEPENDENT"]
[20,"Ramirez, Shamra Basqui Macalinao","-","-"]
[21,"Reblando, Shena Mae Coloma",5,"C",{"$nulls":7},"INDEPENDENT"]
[22,"Red, Katherine Doma",5,"C",{"$nulls":7},"INDEPENDENT"]
[23,"Rica, Athena Paws Abejero",4,"C",{"$nulls":7},"INSTRUCTIONAL"]
[26,"Rodriguez, Jingki Quijano",5,"C",{"$nulls":7},"INSTRUCTIONAL"]
[27,"Sagana, Christine Ann Leonor",5,"C",{"$nulls":7},"INDEPENDENT"]
[28,"Sanguenza, Jillian Sandoval",5,"C",{"$nulls":7},"INDEPENDENT"]
[29,"Santiago, Angelica Igama",5,"C",{"$nulls":7},"INDEPENDENT"]
[30,"Sayang, Andrea Kate Bersano",4,"C",{"$nulls":7},"INSTRUCTIONAL"]
[31,"Tiña, Naiome Lim",4,"C",{"$nulls":7},"INDEPENDENT"]
[32,"Torino, Queenie Grace Pepito","-","-"]
[33,"Yabis, Reijn Alfa Velasco",5,"C",{"$nulls":7},"INSTRUCTIONAL"]
[]
[null,"INDEPENDENT",27]
[null,"INSTRUCTIONAL",20]
[null,"FRUSTRATION",3]
[null,null,{"$f":"SUM(C67:C69)","v":50}]
[null,"GST PASSER",2]

{"sheet":"IVORY","index":24,"n_rows":69,"n_cols":12,"rows_kept":69,"cut":false,"hidden":false,"merged":[[0,0,0,11],[1,0,1,11],[2,0,2,11],[3,0,3,11],[4,0,4,11],[5,0,5,11],[6,0,6,11],[7,0,7,11],[9,4,9,6],[9,7,9,9],[10,1,11,1],[10,2,11,2],[10,4,11,4],[10,5,11,5],[10,6,11,6],[10,7,11,7],[10,8,11,8],[10,9,11,9],[10,10,11,10],[10,11,11,11]]}
["APPENDIX E"]
["Phil-IRI Form 4, Page 1"]
["Individual Summary Record (ISR)"]
["Talaan ng Indibidwal na Pagbabasa (TIP)"]
["SECTION: IVORY"]
["School: Sitero FranciscoMNHS   Teacher:   Gng. Mylyne P. Abeleda"]
["English: "]
["Filipino: "]
[]
[null,"Level Started","Level","Set","Word Reading",null,null,"Comprehension",null,null,"Date Taken"]
[null,"Mark with an *",null,"Indicate if A. B. ","Ind","Ins","Frus","Ind","Ins","Frus","2019-07-31","READING PROFILE"]
[null,null,null,"C. or D"]
[1,"Alumbro , Eden Atutubo",4,"C",{"$nulls":7},"INSTRUCTIONAL"]
[2,"Alvarez, Prince Justine Mark Malco",5,"C",{"$nulls":7},"INDEPENDENT"]
[3,"Arancillo, Joshua Corpuz",5,"C",{"$nulls":7},"INSTRUCTIONAL"]
[4,"Cambe, Rey Mark Maglente",5,"C",{"$nulls":7},"INSTRUCTIONAL"]
[5,"Dela Cruz, John Jerick Mistica",4,"C",{"$nulls":7},"INSTRUCTIONAL"]
[6,"Dogayo, Jerry Aries Gonzales",4,"C",{"$nulls":7},"INDEPENDENT"]
[7,"Estioco, Mark Davis",4,"C",{"$nulls":7},"INSTRUCTIONAL"]
[8,"Fabia, Jan-jan Baylon",5,"C",{"$nulls":7},"INDEPENDENT"]
[9,"Flora, Mark Anthony Galay",4,"C",{"$nulls":7},"INSTRUCTIONAL"]
[10,"Gabonada, Kurt Rhaily T.",4,"C",{"$nulls":7},"INSTRUCTIONAL"]
[11,"Garcia, Adrian Camilon",4,"C",{"$nulls":7},"INSTRUCTIONAL"]
[12,"Geraldino, Giovanni Tamblique",4,"C",{"$nulls":7},"INSTRUCTIONAL"]
[13,"Gorospe, Alexander Jacob Duque",5,"C",{"$nulls":7},"INSTRUCTIONAL"]
[14,"Gutierrez, Ezekiel Sapon",4,"C",{"$nulls":7},"INSTRUCTIONAL"]
[15,"Johnson, Nash Aldrin Zo",4,"C",{"$nulls":7},"INSTRUCTIONAL"]
[16,"Malunjao, Billy Dioso",4,"C",{"$nulls":7},"INDEPENDENT"]
[17,"Mantala, Vince Paolo Gatchalian",5,"C",{"$nulls":7},"INDEPENDENT"]
[18,"Morales, Joross Bancoro",5,"C",{"$nulls":7},"INSTRUCTIONAL"]
[19,"Noiza, Arthur Gutierrez",4,"C",{"$nulls":7},"INSTRUCTIONAL"]
[20,"San Juan, Dan Edcel Baetiong",4,"C",{"$nulls":7},"INSTRUCTIONAL"]
[21,"Olesco, Mark Andrei Licuanan",4,"C",{"$nulls":7},"INDEPENDENT"]
[22,"Ortega, Melicio",5,"C",{"$nulls":7},"FRUSTRATION"]
[23,"Paunillan, Brandon Mark P.",4,"C",{"$nulls":7},"INDEPENDENT"]
[24,"Taguifranca, Lester Alicer",5,"C",{"$nulls":7},"INSTRUCTIONAL"]
[25,"Villanueva, Mark Lordy Serrano",5,"C",{"$nulls":7},"INDEPENDENT"]
[]
[1,"Abello, Daynielle Kehryssha Dineros",4,"C",{"$nulls":7},"INDEPENDENT"]
[2,"Alvarez, Merry Rose Sumalinog",4,"C",{"$nulls":7},"INDEPENDENT"]
[3,"Amigleo, Ma.Vicky Gameng",4,"C",{"$nulls":7},"INDEPENDENT"]
[4,"Atun, Jaleine Asia",4,"C",{"$nulls":7},"INDEPENDENT"]
[5,"Balani, Nea Tabuena",4,"C",{"$nulls":7},"INSTRUCTIONAL"]
[6,"Baloyo, Andrea Nicole Lotino",4,"C",{"$nulls":7},"INSTRUCTIONAL"]
[7,"Besca, Tricia Khey Cumaling",5,"C",{"$nulls":7},"INDEPENDENT"]
[8,"Collado, Jennylyn Martinez",5,"C",{"$nulls":7},"INDEPENDENT"]
[9,"De leon, Sweet Fatima Villamor",4,"C",{"$nulls":7},"INDEPENDENT"]
[10,"De Ocampo, Roscelle Castillejos","-","-"]
[11,"Floralde, Cassandra Mae",5,"C"]
[12,"Lazarra, Dea Eirisia Nolasco",5,"C",{"$nulls":7},"INSTRUCTIONAL"]
[13,"Llenarizas, Danica Joy Abong",4,"C",{"$nulls":7},"INDEPENDENT"]
[14,"Malonzo, Clarisse kHeyl  Casipe",4,"C",{"$nulls":7},"INDEPENDENT"]
[15,"Manalo, Jiecel Velarde",4,"C",{"$nulls":7},"INDEPENDENT"]
[16,"Manuel, Alyssa Padua",5,"C",{"$nulls":7},"INDEPENDENT"]
[17,"Melican, Marjorie Sison",5,"C",{"$nulls":7},"FRUSTRATION"]
[18,"Querijero, Ma. asshley Claire Bigtas",4,"C",{"$nulls":7},"INDEPENDENT"]
[19,"Ramos, Hershey Penamante",4,"C",{"$nulls":7},"INDEPENDENT"]
[20,"Rosaldo, Abegail Go",4,"C",{"$nulls":7},"FRUSTRATION"]
[21,"Sarmiento, Stephanie Ubaldo",4,"C",{"$nulls":7},"INSTRUCTIONAL"]
[22,"Solomon, Ashley Padilla",4,"C",{"$nulls":7},"INSTRUCTIONAL"]
[23,"Vaflor, Karen Estifano",4,"C",{"$nulls":7},"INSTRUCTIONAL"]
[24,"Zendo, Rachelle Galos",5,"C",{"$nulls":7},"INSTRUCTIONAL"]
[]
[null,"NO  ORAL READING ASSESSMENT",1,null,null,null,"                                                                                                                                                                                                                                                                                                                                                                                                                                                                                                                                                                                                                                                                                                                                                                                                                                                                                                                                                                                                                                                                                                                                                                                                                                                                                                                                                                                                                                                                                                                                                                                                                                                                                                                                                                                                                                                                                                                                                                                                                                                                                                                                                                                                                                                                                                                                                                                                                                                                                                                                                                                                                                                                                                                                                                                                                                                                                                                                                                                                                                                                                                                                                                                                                                                                                                                                                                                                                                                                                                                                                                                                                                                              "]
[null,"INDEPENDENT",21]
[null,"INSTRUCTIONAL",23]
[null,"FRUSTRATION",3]
[null,null,{"$f":"SUM(C64:C67)","v":48}]
[null,"GST PASSER",1]

{"sheet":"GRAY","index":25,"n_rows":70,"n_cols":12,"rows_kept":70,"cut":false,"hidden":false,"merged":[[0,0,0,11],[1,0,1,11],[2,0,2,11],[3,0,3,11],[4,0,4,11],[5,0,5,11],[6,0,6,11],[7,0,7,11],[9,4,9,6],[9,7,9,9],[10,1,11,1],[10,2,11,2],[10,4,11,4],[10,5,11,5],[10,6,11,6],[10,7,11,7],[10,8,11,8],[10,9,11,9],[10,10,11,10],[10,11,11,11]]}
["APPENDIX E"]
["Phil-IRI Form 4, Page 1"]
["Individual Summary Record (ISR)"]
["Talaan ng Indibidwal na Pagbabasa (TIP)"]
["SECTION: GRAY"]
["School: Sitero FranciscoMNHS   Teacher:   Gng. Mylyne P. Abeleda"]
["English: "]
["Filipino: "]
[]
[null,"Level Started","Level","Set","Word Reading",null,null,"Comprehension",null,null,"Date Taken"]
[null,"Mark with an *",null,"Indicate if A. B. ","Ind","Ins","Frus","Ind","Ins","Frus","2019-07-31","READING PROFILE"]
[null,null,null,"C. or D"]
[1,"AGRIPA,MARK JUSTINE EDUARD ANDAYA",5,"C",{"$nulls":7},"INSTRUCTIONAL"]
[2,"BARNIZO,JOHN CLARK",4,"C",{"$nulls":7},"FRUSTRATION"]
[3,"BAYLON,REYNIER OXINA",4,"C",{"$nulls":7},"INDEPENDENT"]
[4,"CARANZA,BERNARD FRANCIS BABINA",5,"C",{"$nulls":7},"INDEPENDENT"]
[5,"CASTOR,CHRISTOPHER MATOL","-","-"]
[6,"CUADRA,RICO EMMANUEL MERCAIDA",5,"C",{"$nulls":7},"INDEPENDENT"]
[7,"CUETO, JUSTIN A.",4,"C",{"$nulls":7},"INDEPENDENT"]
[8,"CUEVA,AJ BOY BAGOLOS",4,"C",{"$nulls":7},"INSTRUCTIONAL"]
[9,"DE GUZMAN,DOMINIC MUÑOZ",4,"C",{"$nulls":7},"INDEPENDENT"]
[10,"DELOS SANTOS, JUSTINE A",4,"C",{"$nulls":7},"INDEPENDENT"]
[11,"DELOS SANTOS,AXCEL NAVIA",5,"C",{"$nulls":7},"INSTRUCTIONAL"]
[12,"DIANO, JERALD LOPEZ",4,"C",{"$nulls":7},"INDEPENDENT"]
[13,"GARCIA, ARMANDO C.",5,"C",{"$nulls":7},"INSTRUCTIONAL"]
[14,"GOLEZ,HUPERT BRYAN LEJARDE",4,"C",{"$nulls":7},"INSTRUCTIONAL"]
[15,"HONDRADO, VICTOR ROM",5,"C",{"$nulls":7},"INDEPENDENT"]
[16,"LARESMA, MARK ERIC",5,"C",{"$nulls":7},"INSTRUCTIONAL"]
[17,"MARAYA,RENZJAYE MERCED",4,"C",{"$nulls":7},"INDEPENDENT"]
[18,"MASOTES,CLERK CHESTER MADALIPAY",4,"C",{"$nulls":7},"INSTRUCTIONAL"]
[19,"MERCOLESIA, JONATHAN R.",5,"C",{"$nulls":7},"FRUSTRATION"]
[20,"MILAN,JEFFERSON CARREON",4,"C",{"$nulls":7},"INDEPENDENT"]
[21,"MIRAFLOR,JUNEL LIGANZA",4,"C",{"$nulls":7},"INDEPENDENT"]
[22,"MONTOJO, DANIEL B.",4,"C",{"$nulls":7},"INDEPENDENT"]
[23,"PABILLO, DANLOYD SARMIENTO",5,"C",{"$nulls":7},"INDEPENDENT"]
[24,"RAMA,CYRUS AQUILL GRIMALDO",5,"C",{"$nulls":7},"INSTRUCTIONAL"]
[25,"ROSARIO,RENIER JHAY OCAMPO",5,"C",{"$nulls":7},"INDEPENDENT"]
[26,"SOMOOK,MARK CHRISTIAN MENDEZ",4,"C",{"$nulls":7},"INSTRUCTIONAL"]
[27,"TAMBONG,RAVEN M",4,"C"]
[28,"VILLA,CHARLES AARON MENDOZA",4,"C",{"$nulls":7},"INSTRUCTIONAL"]
[]
[1,"ASAYAS, KHAZEL R.",4,"C",{"$nulls":7},"INDEPENDENT"]
[2,"BONITE,JAMAIKA CALUNOD",5,"C",{"$nulls":7},"INSTRUCTIONAL"]
[3,"BONITE,JOCELYN CALUNOD",4,"C"]
[4,"BRONDIAL,MAUREEN OLOYA",4,"C",{"$nulls":7},"FRUSTRATION"]
[5,"BUCCAT,ALYSSA JEAN CABALE",5,"C",{"$nulls":7},"INSTRUCTIONAL"]
[6,"BUGTO,CRIS ANN LOVERNY VILLAMAS",5,"C",{"$nulls":7},"INSTRUCTIONAL"]
[7,"CANTA,JANET MANONGSONG",4,"C",{"$nulls":7},"INSTRUCTIONAL"]
[8,"CLAVERIA,IMIKO NAUMI SAPNO",4,"C",{"$nulls":7},"INSTRUCTIONAL"]
[9,"DANTES,KYLA SUBA",4,"C",{"$nulls":7},"INSTRUCTIONAL"]
[10,"DELA CRUZ, GLAIZAMAE",4,"C",{"$nulls":7},"INSTRUCTIONAL"]
[11,"EGAR, ARLYN",4,"C",{"$nulls":7},"INSTRUCTIONAL"]
[12,"GUARIN,CYRA BALAWING",4,"C",{"$nulls":7},"INSTRUCTIONAL"]
[13,"JEBULAN,MIKAELLA FLORES","-","-"]
[14,"KIPTE,JINKY APORTO",5,"C",{"$nulls":7},"INDEPENDENT"]
[15,"MOREŇO, NICHOLE V.",5,"C",{"$nulls":7},"INDEPENDENT"]
[16,"PACIOS,RHAZZEL GARGAR",4,"C",{"$nulls":7},"INSTRUCTIONAL"]
[17,"PONILAS,KIMBERLY NICOLE VICENTE",4,"C",{"$nulls":7},"INDEPENDENT"]
[18,"RADOVAN, MARY JOY L.",4,"C",{"$nulls":7},"INSTRUCTIONAL"]
[19,"SANDOVAL,BIENLYN FERNANDEZ",4,"C",{"$nulls":7},"INSTRUCTIONAL"]
[20,"SOLIVEN, ASHLEE NICOLE RAVAGO",4,"C",{"$nulls":7},"INDEPENDENT"]
[21,"TENIO,MARGARET ASADA",4,"C",{"$nulls":7},"FRUSTRATION"]
[22,"VILLARIÑA,ANGELA GAJUNERA",5,"C",{"$nulls":7},"INSTRUCTIONAL"]
[{"$nulls":6},"                                                                                                                                                                                                                                                                                                                                                                                                                                                                                                                                                                                                                                                                                                                                                                                                                                                                                                                                                                                                                                                                                                                                                                                                                                                                                                                                                                                                                                                                                                                                                                                                                                                                                                                                                                                                                                                                                                                                                                                                                                                                                                                                                                                                                                                                                                                                                                                                                                                                                                                                                                                                                                                                                                                                                                                                                                                                                                                                                                                                                                                                                                                                                                                                                                                                                                                                                                                                                                                                                                                                                                                                                                                              "]
[null,"NO  ORAL READING ASSESSMENT",2]
[null,"INDEPENDENT",19]
[null,"INSTRUCTIONAL",23]
[null,"FRUSTRATION",4]
[null,null,{"$f":"SUM(C65:C68)","v":48}]
[null,"GST PASSER",2]

{"sheet":"GREEN","index":26,"n_rows":62,"n_cols":12,"rows_kept":62,"cut":false,"hidden":false,"merged":[[0,1,0,10],[1,1,1,10],[2,1,2,10],[3,1,3,10],[4,1,4,10],[5,1,5,10],[6,1,6,10],[7,1,7,10],[8,4,8,6],[8,7,8,9],[9,1,10,1],[9,2,10,2],[9,4,10,4],[9,5,10,5],[9,6,10,6],[9,7,10,7],[9,8,10,8],[9,9,10,9],[9,10,10,10],[9,11,10,11]]}
[null,"APPENDIX E"]
[null,"Phil-IRI Form 4, Page 1"]
[null,"Individual Summary Record (ISR)"]
[null,"Talaan ng Indibidwal na Pagbabasa (TIP)"]
[null,"SECTION     GREEN"]
[null,"APPENDIX E"]
[null,"English: "]
[null,"Filipino: "]
[null,"Level Started","Level","Set","Word Reading",null,null,"Comprehension",null,null,"Date Taken","READING PROFILE"]
[null,"Mark with an *",null,"Indicate if A. B. ","Ind","Ins","Frus","Ind","Ins","Frus"]
[null,null,null,"C. or D"]
[1,"ABELLA, CHRISTIAN B.",4,"C"," /",null,null," /",null,null,"8/201/2019","INDEPENDENT"]
[2,"ABIT, JHONO VILLANUEVA",null,"C"]
[3,"ALMOSARA,RANGEL NICOLAS",4,"C",null," /",null," /",null,null,null,"INSTRUCTIONAL"]
[4,"ARSOLON JR.,ROMEO VIDALLO",4,"C",null," /",null," /",null,null,null,"INSTRUCTIONAL"]
[5,"BAUTISTA,ALEMAR JR MONTEVERDE",4,"C",null,null," /"," /",null,null,null,"FRUSTRATION"]
[6,"BAWINGAN, JENVER CABANTAC",4,"C",null," /",null," /",null,null,null,"INSTRUCTIONAL"]
[7,"BOHOL,JOHN JOSUA GERSON",4,"C",null,null," /"," /",null,null,null,"FRUSTRATION"]
[8,"COCHON,CLARENCE ZAMUDIO",5,"C"," /",null,null," /",null,null,null,"INDEPENDENT"]
[9,"DANTES, HOWARD ANTHONY J.",4,"C"," /",null,null,null," /",null,null,"INSTRUCTIONAL"]
[10,"GANARA,CARLOS ALBERTO ESTIFANO",5,"C",null," /",null," /",null,null,null,"INSTRUCTIONAL"]
[11,"GENERALAO,MARK LAWRENCE AREGLADO",5,"C"," /",null,null,null," /",null,null,"INSTRUCTIONAL"]
[12,"HOSMILLO,DANREB CART DELA CRUZ",5,"C",null,"  /",null,null,null," /",null,"FRUSTRATION"]
[13,"LABONG,ADRIAN LINDAYAO",5,"C"," /",null,null," /",null,null,null,"INDEPENDENT"]
[14,"LLANERA,JOHN LLOYD SARENO",null,"C"," /",null,null," /",null,null,null,"INDEPENDENT"]
[15,"MANALO,PAULO GABRIEL MAGBANUA",5,"C"]
[16,"MARFIL,GERALD DELA CRUZ",4,"C"]
[17,"MUECA, JOHN CHRISLYNE J.",4,"C"]
[18,"PACIOS, ROMNICK DE STO.TOMAS",5,"C"]
[19,"PECSON,MARK JUSTIN DELA CRUZ",null,"C"]
[20,"RIAMON,KENT BRYAN GACOSTA",null,"C"]
[21,"SAN PASCUAL,JHONELLE MENEZ",null,"C"]
[22,"SANTIAGO, ER DIEGO B.",null,"C"," /",null,null," /",null,null,null,"INDEPENDENT"]
[23,"VALENZUELA,RAIVEN LUCASAN",4,"C"," /",null,null," /",null,null,null,"INDEPENDENT"]
[24,"ALBINO,RUSSEL ORCAJADA",4,"C"," /  ",null,null," /",null,null,null,"INDEPENDENT"]
[25,"ANTONIO,KYLA MAE MORCOSO",5,"C"," /  ",null,null,null," /",null,null,"INSTRUCTIONAL"]
[26,"AWA, MONICA B.",4,"C"," /  ",{"$nulls":4}," /",null,"FRUSTRATION"]
[27,"BUEZON,JESABEL TADONG",4,"C"," /  ",null,null,null," /",null,null,"INSTRUCTIONAL"]
[28,"CAMPILAN,KRISSHANE SOPHIA DELA CRUZ",5,"C"," /  ",null,null," /",null,null,null,"INDEPENDENT"]
[29,"DEL ROSARIO,JULYAN FAITH LAUREL",4,"C"," /  ",null,null,null," /",null,null,"INSTRUCTIONAL"]
[30,"FRANK,DANA ABBEY SANTOS",4,"C"]
[31,"GUTABA, SHELLA MAE ROSALES",4,"C"," /  ",null,null,null," /",null,null,"INSTRUCTIONAL"]
[32,"JARABA, PRINCESS MENDOZA",5,"C"," /  ",null,null," /",null,null,null,"INDEPENDENT"]
[33,"LLENO,DHEVINE CABREZA",4,"C"]
[34,"LUCENA, SHAINA DUQUE",5,"C"," /  ",{"$nulls":4}," /",null,"FRUSTRATION"]
[35,"MANLAPIG,XHAIRA BOQUEO",4,"C"]
[36,"MARIANO, QUEEN DIANA DEGUZMAN",5,"C"]
[37,"MATIBAG,NICOLE AVILA",5,"C"," /  ",null,null," /",null,null,null,"INDEPENDENT"]
[38,"MEDALLO, SIERRA ROSE CABUGA",5,"C"]
[39,"METRAN,PRINCES SARAH JANE SOLINA",4,"C"]
[40,"PORRAS,AMIFYE ZABALA",5,"C"," /  ",null,null," /",null,null,null,"INDEPENDENT"]
[41,"QUIERRE,SALVANNA MARIE JOLO",5,"C"," /  ",null,null," /",null,null,null,"INDEPENDENT"]
[42,"SEVILLA,RYZA LOZADA",5,"C"," /  ",null,null," /",null,null,null,"INDEPENDENT"]
[43,"TONACAO,JENICA ROSELLO",null,"C"]
[44,"VELASCO,MANILYN OUANO",4,"C"," /  ",null,null," /",null,null,null,"INDEPENDENT"]
[]
[null,"INDEPENDENT",14]
[null,"INSTRUCTIONAL",10]
[null,"FRUSTRATION",5]
[null,null,{"$f":"SUM(C56:C59)","v":29}]
[null,"GST PASSER"]
[{"$nulls":6},"                                                                                                                                                                                                                                                                                                                                                                                                                                                                                                                                                                                                                                                                                                                                                                                                                                                                                                                                                                                                                                                                                                                                                                                                                                                                                                                                                                                                                                                                                                                                                                                                                                                                                                                                                                                                                                                                                                                                                                                                                                                                                                                                                                                                                                                                                                                                                                                                                                                                                                                                                                                                                                                                                                                                                                                                                                                                                                                                                                                                                                                                                                                                                                                                                                                                                                                                                                                                                                                                                                                                                                                                                                                              "]

{"sheet":"PEACH","index":27,"n_rows":63,"n_cols":11,"rows_kept":63,"cut":false,"hidden":false,"merged":[[0,0,0,9],[1,0,1,9],[2,0,2,9],[3,0,3,9],[4,0,4,9],[5,0,5,9],[6,0,6,9],[7,0,7,9],[9,3,9,5],[9,6,9,8],[10,0,11,0],[10,1,11,1],[10,3,11,3],[10,4,11,4],[10,5,11,5],[10,6,11,6],[10,7,11,7],[10,8,11,8],[10,9,11,9],[9,10,10,10]]}
["APPENDIX E"]
["Phil-IRI Form 4, Page 1"]
["Individual Summary Record (ISR)"]
["Talaan ng Indibidwal na Pagbabasa (TIP)"]
["SECTION     PEACH"]
["School: Sitero FranciscoMNHS                                               Teacher:   Mr. Roberto Celeste Jr.                                                 "]
["English: "]
["Filipino: "]
[]
["Level Started","Level","Set","Word Reading",null,null,"Comprehension",null,null,"Date Taken","READING PROFILE"]
["Mark with an *",null,"Indicate if A. B. ","Ind","Ins","Frus","Ind","Ins","Frus"]
[null,null,"C. or D"]
["AGALOOS,JOHN MICHAEL ESPINOSA,  ",5,"D",null,null," /",null," /",null,null,"FRUSTRATION"]
["AGOTE,BHOWIN DAGUINOTAS,  ",4,"D",null," /",null,null," /",null,null,"INSTRUCTIONAL"]
["BABINA,JOSHUA VINCENT DOMA,  ",5,"D",null," /",null,null," /",null,null,"INSTRUCTIONAL"]
["BARCELO,AIVAN VICENTE,  ",4,"D",null,null," /",null," /",null,null,"FRUSTRATION"]
["CABACUNGAN, NATHANIEL OBERO,  ",4,"D",null," /",null,null," /",null,null,"INSTRUCTIONAL"]
["CHUA,CLARENZ SILVESTRE,  ",4,"D",null," /",null,null,null," /",null,"FRUSTRATION"]
["DENOLO, KEN JASPER F.",4,"D",null,null," /",null,null," /",null,"FRUSTRATION"]
["DINEGA,JOHN LLOYD AMARANTE,  ",4,"D"," /",{"$nulls":4}," /",null,"FRUSTRATION"]
["LUGSANAY, JOHN LLOYD C.,  ",4,"D",null,null," /",null," /",null,null,"FRUSTRATION"]
["MACABANTE,CHRISTIAN JAE NAVALES,  ",4,"D"," /",null,null,null," /",null,null,"INSTRUCTIONAL"]
["NARVASA,JOHN KEN CO,  ",5,"D","        /",null,null,null," /",null,null,"INSTRUCTIONAL"]
["OCAMPO,JOHN IVAN DE LEON,  ",4,"D",null,null," /",null,null," /",null,"FRUSTRATION"]
["PAGLINAWAN,MICHAEL OXINA,  ",5,"D",null," /",null,null," /",null,null,"INSTRUCTIONAL"]
["RAMAS,ZYRUS REY FORTE,  ",5,"D","       /",null,null,null," /",null,null,"INSTRUCTIONAL"]
["SANGCAP,JHON ARON QUIZON,  ",4,"D"," /",null,null,null," /",null,null,"INSTRUCTIONAL"]
["SIA, DAN EUGENIO,  ",5,"D"," /",null,null,null," /",null,null,"INSTRUCTIONAL"]
["SUBSUBAN, MELCHOR JAY M.,  ",4,"D",null," /",null,null," /",null,null,"INSTRUCTIONAL"]
["UNTALAN, ANGELO JR. C.,  ",5,"D",null," /",null,null," /",null,null,"INSTRUCTIONAL"]
["VENTURA JR,RICKY PEDRIALVA,  ",4,"D",null,null," /",null,null," /",null,"FRUSTRATION"]
["YALUNG,JAN DANTE VALENCE,  ",4,"D"," /",null,null,null," /",null,null,"INSTRUCTIONAL"]
["ANDALIS,LERMA CAING,  ",4,"D",null,"/",null,null," /",null,null,"INSTRUCTIONAL"]
["ANDRADE,RAILYN DENZO,  ",4,"D",null," /",null,null,null," /",null,"FRUSTRATION"]
["BABINA, FRANCHESCA ALEXIS M.",5,"D",null,null,"/",null," /",null,null,"INSTRUCTIONAL"]
["BAÑAS,JOVELIN LOKISIO,  ",4,"D","/",null,null,null," /",null,null,"INSTRUCTIONAL"]
["BARRACA,ALEAH FAYE DINEROS,  ",4,"D",null," /",null," /",null,null,null,"INSTRUCTIONAL"]
["BAUTISTA, MARIELLE JARADAL,  ",5,"D",null," /",null,null," /",null,null,"INSTRUCTIONAL"]
["CABERO, JULIANNA MAY MORDIDO,  ",4,"D",null,null," /"," /",null,null,null,"FRUSTRATION"]
["CATANDIJAN,CHEALZY RAICA GACILOS,  ",5,"D",null," /",null," /",null,null,null,"INSTRUCTIONAL"]
["CLEOFAS,JULIANA MARI MELON,  ",4,"D",null,null," /"," /",null,null,null,"FRUSTRATION"]
["COBRE, LYKA MAE M.",5,"D",null," /",null," /",null,null,null,"INSTRUCTIONAL"]
["DARLUCIO,JUSTINE NICOLE ENOC,  ",5,"D",null," /",null,null," /",null,null,"INSTRUCTIONAL"]
["FERNANDEZ,BEA DENNISE RODELIS,  ",5,"D"," /",null,null," /",null,null,null,"INSTRUCTIONAL"]
["GAJOPO,MARY LOLLY BORIGAS,  ",4,"D"," /",null,null," /",null,null,null,"INSTRUCTIONAL"]
["HANDIG, ROXANNE V.,  ",4,"D",null,null," /"," /",null,null,null,"INSTRUCTIONAL"]
["LAROGA,APRIL DENISSE DESPI,  ",4,"D"," /",null,null,null," /",null,null,"INSTRUCTIONAL"]
["MALLA,JESSA MAE PICO,  ",5,"D",null," /",null," /",null,null,null,"INSTRUCTIONAL"]
["MANLAPIG,XHYRA BOQUEO,  ",4,"D"," /",null,null," /",null,null,null,"INSTRUCTIONAL"]
["MARIANO,SHIELA MAE HERNANDEZ,  ",5,"D"," /",null,null,null," /",null,null,"INSTRUCTIONAL"]
["PANTO,MARY DIVINE JOY TORREMOCHA,  ",5,"D"," /",null,null," /",null,null,null,"INDEPENDENT"]
["RAMOS,ANNALYN HERRERO,  ",5,"D"," /",null,null," /",null,null,null,"INDEPENDENT"]
["ROQUE,ALEXANDRA MARIEA ESPIÑA,  ",4,"D","/",{"$nulls":4}," /",null,"FRUSTRATION"]
["SORIA,MARY GRACE,  ",5,"D",null," /",null,null," /",null,null,"INSTRUCTIONAL"]
["VAILOSES, FRANCES ANGIE P.,  ",4,"D","/",null,null,null," /",null,null,"INSTRUCTIONAL"]
[]
[]
[]
["INDEPENDENT",2]
["INSTRUCTIONAL",29]
["FRUSTRATION",12]
[null,{"$f":"SUM(B58:B61)","v":43}]
["GST PASSER",1,null,null,null,"                                                                                                                                                                                                                                                                                                                                                                                                                                                                                                                                                                                                                                                                                                                                                                                                                                                                                                                                                                                                                                                                                                                                                                                                                                                                                                                                                                                                                                                                                                                                                                                                                                                                                                                                                                                                                                                                                                                                                                                                                                                                                                                                                                                                                                                                                                                                                                                                                                                                                                                                                                                                                                                                                                                                                                                                                                                                                                                                                                                                                                                                                                                                                                                                                                                                                                                                                                                                                                                                                                                                                                                                                                                              "]

{"sheet":"PINK","index":28,"n_rows":70,"n_cols":11,"rows_kept":70,"cut":false,"hidden":false,"merged":[[0,0,0,9],[1,0,1,9],[2,0,2,9],[3,0,3,9],[4,0,4,9],[5,0,5,9],[6,0,6,9],[7,0,7,9],[9,3,9,5],[9,6,9,8],[10,0,11,0],[10,1,11,1],[10,3,11,3],[10,4,11,4],[10,5,11,5],[10,6,11,6],[10,7,11,7],[10,8,11,8],[10,9,11,9],[9,10,10,10]]}
["APPENDIX E"]
["Phil-IRI Form 4, Page 1"]
["Individual Summary Record (ISR)"]
["Talaan ng Indibidwal na Pagbabasa (TIP)"]
["SECTION     PEACH"]
["School: Sitero FranciscoMNHS                                               Teacher:   Mr. Roberto Celeste Jr.                                                 "]
["English: "]
["Filipino: "]
[]
["Level Started","Level","Set","Word Reading",null,null,"Comprehension",null,null,"Date Taken","READING PROFILE"]
["Mark with an *",null,"Indicate if A. B. ","Ind","Ins","Frus","Ind","Ins","Frus"]
[null,null,"C. or D"]
["ABAGON,JHON ANTHONY VACUNAWA,  ",5,"D","/",{"$nulls":4},"/",null,"FRUSTRATION"]
["AGUDO, DUSTIN"]
["ALFABETO,CHRISTIAN JOSEPH BUO,  "]
["ARRIESGADO, JAMES"]
["CALDERON, JOSHUA PHILIP",5,"D","/",null,null,"/",null,null,null,"INDEPENDENT"]
["CARPIO,RAM JERCYN CABAWATAN,  ",5,"D","/",null,null,"/",null,null,null,"INDEPENDENT"]
["CELINO, NOEL",5,"D","/",null,null,null,"/",null,null,"INSTRUCTIONAL"]
["DELA CRUZ,CHRISTIAN JAMES FRANCISCO,  ",5,"D","/",null,null,null,"/",null,null,"INSTRUCTIONAL"]
["GAPOL, DAVID JOEL",4,"D","/"]
["GARCIA,CARL PATRICK JIMENO,  ",4,"D","/",null,null,"/",null,null,null,"INDEPENDENT"]
["HERMOSO,MARTIN DESALISA,  ",null,"D",null,"/",null,null,"/",null,null,"INSTRUCTIONAL"]
["LEGASPI, JERICK0T 5 HAROLD N.,  ",5,"D","/",null,null,null,"/",null,null,"INSTRUCTIONAL"]
["MATUOG,REY PACULANANG,  ",4,"D","/",null,null,"/",null,null,null,"INDEPENDENT"]
["PATENIA,CARL JEROME CUSTODIO,  ",4,"D","/",null,null,"/",null,null,null,"INDEPENDENT"]
["PIAÑAR JR,EUSLY ESPARAGUERRA,  ",4,"D","/",null,null,null,"/",null,null,"INSTRUCTIONAL"]
["PRIETO,CYRUS JAY PAEZ,  ",5,"D","/",null,null,"/",null,null,null,"INDEPENDENT"]
["ROXAS,ADRIAN DIAZ,  ",4,"D","/",null,null,"/",null,null,null,"INDEPENDENT"]
["SAGATINTO,CJ OBAL,  ",4,"D",null,"/",null,null,null,"/",null,"FRUSTRATION"]
["SALVADOR,GAVIN PHAUL SANTIAGO,  ",5,"D","/",null,null,null,"/",null,null,"INSTRUCTIONAL"]
["SALVAJAN, ANTHONY COLINAYO,  ",5,"D","/",null,null,"/",null,null,null,"INDEPENDENT"]
["SANDOVAL,FRANCIS PACIOS,  ",5,"D","/",null,null,"/",null,null,null,"INDEPENDENT"]
["SARROSA, NICOJAY,  ",null,"D"]
["VENDIL,MARCK ORIO,  ",5,"D",null,"/",null,null,"/",null,null,"INSTRUCTIONAL"]
["TAN, JOHN NICKO",4,"D","/",null,null,"/",null,null,null,"INDEPENDENT"]
["ARCINAL, ARAJEAN B.,  ",5,"D","/",null,null,null,"/",null,null,"INSTRUCTIONAL"]
["BENDO, RUBY ANN BAGAS,  ",5,"D","/",null,null,"/",null,null,null,"INDEPENDENT"]
["BENEDICTO,MARY JOYCE NM,  ",5,"D","/",{"$nulls":4},"/",null,"FRUSTRATION"]
["BORJA,LORELYN CASTAÑEDA,  ",5,"D","/",null,null,"/",null,null,null,"INDEPENDENT"]
["CONTRERAS,ROSE ANN CAYAGO,  ",4,"D","/",null,null,"/",null,null,null,"INDEPENDENT"]
["DELA CRUZ, PAULA JANE M.,  ",5,"D","/",null,null,"/",null,null,null,"INDEPENDENT"]
["DELA CRUZ,NICOLE GONZALES,  ",4,"D","/",null,null,"/",null,null,null,"INDEPENDENT"]
["DELOS SANTOS, ANGELA C.,  ",4,"D","/",null,null,"/",null,null,null,"INDEPENDENT"]
["FERNANDEZ,HILARY SEGUISABAL,  ",4,"D","/",null,null,"/",null,null,null,"INDEPENDENT"]
["JALECO, CHOLYNE",5,"D","/",null,null,null,"/",null,null,"INSTRUCTIONAL"]
["LABRO,BIANCA BRADECINA,  ",4,"D","/",null,null,null,"/",null,null,"INSTRUCTIONAL"]
["LELINA, LEA",5,"D","/",null,null,null,"/",null,null,"INSTRUCTIONAL"]
["LLENO,SHELLA MAE CABREZA,  ",4,"D","/",null,null,"/",null,null,null,"INDEPENDENT"]
["LUEGO,MARLIANNE RUIZ,  ",7,"D"]
["MABINGNAY, RHIA E.,  ",4,"D","/",null,null,"/",null,null,null,"INDEPENDENT"]
["MORENO, JOENA",5,"D","/",null,null,null,"/",null,null,"INSTRUCTIONAL"]
["NIONES,AYA BUÑI,  ",4,"D","/",null,null,"/",null,null,null,"INDEPENDENT"]
["PAQUERA,MA. BEATRIZ GAMBOA,  ",5,"D","/",null,null,"/",null,null,null,"INDEPENDENT"]
["PORRAS,AMIFYE ZABALA,  ",4,"D","/",null,null,"/",null,null,null,"INDEPENDENT"]
["RAMOS,DAZHEL SACLAY,  ",5,"D","/",null,null,"/",null,null,null,"INDEPENDENT"]
["RUFIN, ANGELA MAE",7,"D"]
["SAGAO,LIEZEL CAÑAVERAL,  ",5,"D","/",null,null,"/",null,null,null,"INDEPENDENT"]
["SALON,ANDREA PARAAT,  ",5,"D","/",null,null,"/",null,null,null,"INDEPENDENT"]
["SARCILLA,ALYSSA CONTAWE,  ",4,"D","/",null,null,"/",null,null,null,"INDEPENDENT"]
["SERGIO, ENA SANORIA,  ",5,"D","/",null,null,null,"/",null,null,"INSTRUCTIONAL"]
["TAGOLINO, MILDRED V.,  ",4,"D","/",{"$nulls":4},"/",null,"FRUSTRATION"]
["TRINIDAD,NICOLE BERNADITH RAYOS",5,"D","/",null,null,"/",null,null,null,"INDEPENDENT"]
["YURTAS,ALYNNA QUIRONG,  ",5,"D","/",null,null,null,"/",null,null,"INSTRUCTIONAL"]
[]
["INDEPENDENT",27]
["INSTRUCTIONAL",14]
["FRUSTRATION",4]
[null,{"$f":"SUM(B65:B68)","v":45}]
["GST PASSER",3]

{"sheet":"RED","index":29,"n_rows":69,"n_cols":11,"rows_kept":69,"cut":false,"hidden":false,"merged":[[0,0,0,9],[1,0,1,9],[2,0,2,9],[3,0,3,9],[4,0,4,9],[5,0,5,9],[6,0,6,9],[7,0,7,9],[9,3,9,5],[9,6,9,8],[10,0,11,0],[10,1,11,1],[10,3,11,3],[10,4,11,4],[10,5,11,5],[10,6,11,6],[10,7,11,7],[10,8,11,8],[10,9,11,9],[9,10,10,10]]}
["APPENDIX E"]
["Phil-IRI Form 4, Page 1"]
["Individual Summary Record (ISR)"]
["Talaan ng Indibidwal na Pagbabasa (TIP)"]
["SECTION     PEACH"]
["School: Sitero FranciscoMNHS                                               Teacher:   Mr. Roberto Celeste Jr.                                                 "]
["English: "]
["Filipino: "]
[]
["Level Started","Level","Set","Word Reading",null,null,"Comprehension",null,null,"Date Taken","READING PROFILE"]
["Mark with an *",null,"Indicate if A. B. ","Ind","Ins","Frus","Ind","Ins","Frus"]
[null,null,"C. or D"]
["ANALA,JAMES LUNA",4,"D","/",null,null,"/",null,null,null,"INDEPENDENT"]
["BELTRAN,ZYRUS RUFERT CHICO",5,"D","/",null,null,"/",null,null,null,"INDEPENDENT"]
["CABRERA, MARCUS CRISOSTOMO",5,"D","/",null,null,null,"/",null,null,"INDEPENDENT"]
["CAÑAVERAS,RALPH CASIÑARES",5,"D","/",null,null,"/",null,null,null,"INDEPENDENT"]
["CENTINO, REYNAN ESCALDERON",4,"D","/",null,null,null,"/",null,null,"INDEPENDENT"]
["CHATO, JR.,RONALD MONTILLA",4,"D","/",null,null,"/",null,null,null,"INDEPENDENT"]
["COLOSO,ANGELO JOSH MARTINEZ",4,"D","/",null,null,"/",null,null,null,"INDEPENDENT"]
["DABU,DARREN PADO",5,"D",null,"/",null,null,null,"/",null,"FRUSTRATION"]
["DAGUIO, VINCE KEZER CASALAMITAO",4,"D","/",null,null,"/",null,null,null,"INDEPENDENT"]
["DALISAY, CHARLIE MAHINAY",4,"D","/",null,null,"/",null,null,null,"INDEPENDENT"]
["DELA PEÑA,EMJAY",5,"D","/",null,null,"/",null,null,null,"INDEPENDENT"]
["DEYRO, CHRISTIAN LUIS ECHAVEZ",5,"D","/",null,null,"/",null,null,null,"INDEPENDENT"]
["ESPIRITU,MARK CLEMENCE DELA CRUZ",5,"D",null,"/",null,null,"/",null,null,"INSTRUCTIONAL"]
["GAGUI,RAYDRIC KEITH LOPEZ",4,"D",null,"/",null,"/",null,null,null,"INSTRUCTIONAL"]
["GAPASIN,DAVE JOHN CARLO AMAZONA",4,"D","/",null,null,null,"/",null,null,"INSTRUCTIONAL"]
["IRINCO,ENRIQUE JR GUMARAO",4,"D","/",null,null,"/",null,null,null,"INDEPENDENT"]
["LAGRIMAS,JOHN MARK PRADEZ",4,"D","/",null,null,"/",null,null,null,"INDEPENDENT"]
["MAGLASANG, RAM JAY AQUINDE",5,"D","/",null,null,"/",null,null,null,"INDEPENDENT"]
["PIAMONTE,LUIS MARIO CATADIJAN",4,"D","/",null,null,"/",null,null,null,"INDEPENDENT"]
["PROXIMO, JOHN LLOYD BUENAVENTE",5,"D","/",null,null,null,"/",null,null,"INSTRUCTIONAL"]
["REYES,GIAN CEA",4,"D","/",null,null,"/",null,null,null,"INDEPENDENT"]
["RINGCODO,JESSIE JAMES LAURENTE",5,"D",null,"/",null,null,null,"/",null,"FRUSTRATION"]
["ROGANDO,MICO ANGELO SIRINGAN",5,"D","/",null,null,null,"/",null,null,"INSTRUCTIONAL"]
["TANO, JOHN MHARWIN HINDANG",4,"D","/",null,null,null,"/",null,null,"INSTRUCTIONAL"]
["VIOLATA,JOHN ACE BETCHER",5,"D",null,"/",null,null,null,"/",null,"FRUSTRATION"]
["BALCUEVA,IRENE MANANGAN",4,"D","/",null,null,null,"/",null,null,"INSTRUCTIONAL"]
["CASTILLO,DARA KRIS REMEDIOS FUENTES",4,"D","/",null,null,"/",null,null,null,"INDEPENDENT"]
["DAVID,JONALYN YANELA",5,"D","/",null,null,null,"/",null,null,"INSTRUCTIONAL"]
["DELA CRUZ,ARIANA LEAD",5,"D","/",null,null,null,"/",null,null,"INSTRUCTIONAL"]
["FLORES,RHEYCELL LANZAROTE"]
["GLORIA,JANELLA MARIEL MALONZO",5,"D","/",null,null,"/",null,null,null,"INDEPENDENT"]
["KIAMKO,GWEN PEREZ",4,"D","/",null,null,null,"/",null,null,"INSTRUCTIONAL"]
["LALIC,KRISSARY PADAWAN",5,"D",null,"/",null,null,"/",null,null,"INSTRUCTIONAL"]
["LATONIO,BABY JANE GORILLO",5,"D","/",null,null,"/",null,null,null,"INDEPENDENT"]
["MARILAG, DAIZELLE MENOLA"]
["MIGUEL, RIZZA MAE ESPIRITU",4,"D","/",null,null,"/",null,null,null,"INDEPENDENT"]
["MIZUELA,PRECIOUS NICOLE ESTIMADA"]
["MUYANO,JIANNE IRISH MONTE",4,"D","/",null,null,"/",null,null,null,"INDEPENDENT"]
["PASCUA, ANABEL R.",4,"D","/",null,null,null,"/",null,null,"INSTRUCTIONAL"]
["PASCUAL,EMEE ROSE ENOC",5,"D","/",null,null,"/",null,null,null,"INDEPENDENT"]
["PRIETO,KYLA NICOLE CORNELIO",4,"D",null,"/",null,null,null,"/",null,"FRUSTRATION"]
["QUIZON, MARGARETTE MASAMOC",5,"D","/",null,null,"/",null,null,null,"INDEPENDENT"]
["REYES, RICA ESCOBIDO",5,"D","/",null,null,null,"/",null,null,"INSTRUCTIONAL"]
["SAHAGUN,ISABEL REGINE BALIQUIA",5,"D","/",null,null,"/",null,null,null,"INDEPENDENT"]
["SALUCAN,SHIELLA BALONDO",5,"D","/",{"$nulls":4},"/",null,"FRUSTRATION"]
["SIOCO,ALMAE PUBLICO",5,"D","/",null,null,"/",null,null,null,"INDEPENDENT"]
["TAÑEZA, SWEET TONY MAE O.",4,"D","/",null,null,null,"/",null,null,"INSTRUCTIONAL"]
["VALENCIA,SHELLA MAE MANONDO"]
["TAÑEZA, SWEET TONY MAE O."]
["VALENCIA,SHELLA MAE MANONDO",5,"D","/",null,null,"/",null,null,null,"INDEPENDENT"]
["VILLANUEVA,ANNE LORAINE",5,"D","/",null,null,"/",null,null,null,"INDEPENDENT"]
[]
["INDEPENDENT",28]
["INSTRUCTIONAL",14]
["FRUSTRATION",5]
[null,{"$f":"SUM(B64:B67)","v":47}]
["GST PASSER",0]

{"sheet":"SUMMARY- 8","index":30,"n_rows":36,"n_cols":22,"rows_kept":36,"cut":false,"hidden":false,"merged":[[1,0,1,21],[2,1,2,21],[5,0,5,21],[10,4,10,9],[10,10,10,15],[10,16,10,21],[11,4,11,6],[11,7,11,9],[11,10,11,12],[11,13,11,15],[11,16,11,18],[11,19,11,21],[34,1,34,3],[34,7,34,10],[35,1,35,3],[35,7,35,10],[35,13,35,14],[35,16,35,20],[11,0,12,3]]}
[]
["SITERO FRANCISCO MEMORIAL NATIONAL HIGH SCHOOL"]
[null,"Sta. Monica Subd, Ugong, Valenzuela City"]
[]
[]
["SUMMARY OF PRE TEST AND POST TEST"]
[]
[]
[]
[]
[null,"SECTION","No. of Students who took the Exam","NO. of Students who Passed the GST","WORD READING LEVEL",{"$nulls":5},"COMPREHENSION READING LEVEL",{"$nulls":5},"OVER-ALL READING LEVEL"]
["GRADE 8",null,null,null,"PRE-TEST",null,null,"POST TEST",null,null,"PRE-TEST",null,null,"POST TEST",null,null,"PRE-TEST",null,null,"POST TEST"]
[{"$nulls":4},"IND","INS","FRUS","IND","INS","FRUS","IND","INS","FRUS","IND","INS","FRUS","IND","INS","FRUS","IND","INS","FRUS"]
[1,"YELLOW",51,18,43,8,0,null,null,null,47,4,0,null,null,null,22,11,0]
[2,"VIOLET",31,2,31,19,0,null,null,null,43,4,3,null,null,null,27,20,3]
[3,"WHITE",50,1,17,27,4,null,null,null,26,17,5,null,null,null,11,31,6]
[4,"ORANGE",45,1,19,22,3,null,null,null,33,11,0,null,null,null,17,24,3]
[5,"AQUAMARINE",49,1,17,27,4,null,null,null,27,17,4,null,null,null,11,30,7]
[6,"BLUE",49,0,17,31,1,null,null,null,37,10,2,null,null,null,16,31,2]
[7,"BROWN",49,0,26,22,0,null,null,null,21,22,5,null,null,null,14,29,5]
[8,"GRAY",48,2,31,18,1,null,null,null,33,13,4,null,null,null,19,23,4]
[9,"RED",48,0,39,7,0,null,null,null,26,15,5,null,null,null,24,12,4]
[10,"PEACH",44,1,17,16,10,null,null,null,12,24,7,null,null,null,2,29,12]
[11,"IVORY",45,0,26,21,0,null,null,null,37,7,3,null,null,null,21,23,3]
[12,"PINK",50,3,42,3,0,null,null,null,27,14,4,null,null,null,27,14,4]
[13,"MAROON",50,0,16,30,1,null,null,null,25,13,9,null,null,null,11,29,7]
[14,"GREEN",45,0,22,5,2,null,null,null,19,3,6,null,null,null,14,10,5]
[15,"INDIGO",46,5,37,7,2,null,null,null,25,21,1,null,null,null,21,22,3]
[null,"TOTAL",{"$f":"SUM(C14:C28)","v":700},34,400,263,28,null,null,null,{"$f":"SUM(K14:K28)","v":438},{"$f":"SUM(L14:L28)","v":195},58,null,null,null,{"$f":"SUM(Q14:Q28)","v":257},338,68]
[]
[]
[]
["Prepared by:",{"$nulls":6},"Checked by:",{"$nulls":7},"Noted by:"]
[]
["                ","ABEGAIL D. GRENCIO",{"$nulls":5},"     MARIEL  M. ZIPAGAN",{"$nulls":8},"                MA. CHRISTINA C. SALONGGA"]
["                                 ","Reading Coordinator",{"$nulls":5},"      Head Teacher III- Filipino",{"$nulls":8},"Principal III"]

{"sheet":"Sheet1","index":31,"n_rows":74,"n_cols":12,"rows_kept":74,"cut":false,"hidden":false,"merged":[[0,0,0,11],[1,0,1,11],[2,0,2,11],[3,0,3,11],[4,0,4,11],[5,0,5,11],[6,0,6,11],[7,0,7,11],[9,4,9,6],[9,7,9,9],[10,1,11,1],[10,2,11,2],[10,4,11,4],[10,5,11,5],[10,6,11,6],[10,7,11,7],[10,8,11,8],[10,9,11,9],[10,10,11,10],[10,11,11,11]]}
["APPENDIX E"]
["Phil-IRI Form 4, Page 1"]
["Individual Summary Record (ISR)"]
["Talaan ng Indibidwal na Pagbabasa (TIP)"]
["SECTION     INDIGO"]
["School: Sitero FranciscoMNHS   Teacher:   G. Brendo Huiso"]
["English: "]
["Filipino: "]
[]
[null,"Level Started","Level","Set","Word Reading",null,null,"Comprehension",null,null,"Date Taken"]
[null,"Mark with an *",null,"Indicate if A. B. ","Ind","Ins","Frus","Ind","Ins","Frus","July 18, 2019","READING PROFILE"]
[null,null,null,"C. or D"]
[1,"Alcazaren, Rhenz D."]
[2,"Alfaro, Bart Justin",5,"C",{"$nulls":7},"INSTRUCTIONAL"]
[3,"Armas, Nico Zeph B. ",5,"C",{"$nulls":7},"INDEPENDENT"]
[4,"De Ocampo, Adrian Samuelle S.",5,"C",{"$nulls":7},"INDEPENDENT"]
[5,"Diampuan, Abolkiah C. ",4,"C",{"$nulls":7},"INSTRUCTIONAL"]
[6,"Dineros, Philip Antonio DG.",4,"C",{"$nulls":7},"INDEPENDENT"]
[7,"Edoria, Sam F.",4,"C",{"$nulls":7},"INSTRUCTIONAL"]
[8,"Enostacion, Ryan B.",4,"C",{"$nulls":7},"INDEPENDENT"]
[9,"Galay, John Loid S.",5,"C",{"$nulls":7},"FRUSTRATION"]
[10,"Gonzales, Jason"]
[11,"Gozim, Mark Francis S."]
[12,"Hernandez, Symone James",4,"C",{"$nulls":7},"INDEPENDENT"]
[13,"Herrera, John Klide ",4,"C",{"$nulls":7},"INSTRUCTIONAL"]
[14,"Jamisola, Bernard Jr.",4,"C",{"$nulls":7},"INSTRUCTIONAL"]
[15,"Meneses, Jusryll C.",4,"C",{"$nulls":7},"INDEPENDENT"]
[16,"Mosquito, Jan Kurt I."]
[17,"Musni, JM P.",4,"C",{"$nulls":7},"INDEPENDENT"]
[18,"Notorio, Joshua F.",4,"C",{"$nulls":7},"INDEPENDENT"]
[19,"Orcine, Adrian B.",5,"C",{"$nulls":7},"INSTRUCTIONAL"]
[20,"Pascual, Akira Cedrick E.",5,"C",{"$nulls":7},"INDEPENDENT"]
[21,"Paura, Ivan S.",4,"C",{"$nulls":7},"INDEPENDENT"]
[22,"Ramos, John Vincent C.",4,"C",{"$nulls":7},"INSTRUCTIONAL"]
[23,"Saguenza, Tee Jay",4,"C",{"$nulls":7},"INDEPENDENT"]
[24,"San Jose, John Benedict I.",4,"C",{"$nulls":7},"INSTRUCTIONAL"]
[25,"San Juan, Lance Zieryl V."]
[26,"Sandoval, JC M.",5,"C",{"$nulls":7},"INSTRUCTIONAL"]
[27,"Severino, Daniel O.",4,"C",{"$nulls":7},"INSTRUCTIONAL"]
[28,"Simballa, Jhonrex U."]
[29,"Tamundong, John Paul"]
[30,"Valence, Enrique B. Jr."]
[31,"Victoriano, Christian B. "]
[]
[1,"Andrade, Ma Cristina R. ",5,"C",{"$nulls":7},"INSTRUCTIONAL"]
[2,"Bantilan, Angeline L.",4,"C",{"$nulls":7},"INSTRUCTIONAL"]
[3,"Candido, Allana Mae C.",5,"C",{"$nulls":7},"FRUSTRATION"]
[4,"Conchas, Roces V.",5,"C",{"$nulls":7},"INSTRUCTIONAL"]
[5,"Cuadra, Precious Faith C.",5,"C",{"$nulls":7},"INSTRUCTIONAL"]
[6,"Dalanon, Jerame C.",4,"C",{"$nulls":7},"INDEPENDENT"]
[7,"Decepida, Carmella H.",4,"C",{"$nulls":7},"INSTRUCTIONAL"]
[8,"Diendo, Izzy D.",4,"C",{"$nulls":7},"INSTRUCTIONAL"]
[9,"Duque, Gemmalyn C.",4,"C",{"$nulls":7},"INDEPENDENT"]
[10,"Duque, Mary Jane C.",4,"C",{"$nulls":7},"INSTRUCTIONAL"]
[11,"Esmitty, Kim Nicole",5,"C",{"$nulls":7},"INDEPENDENT"]
[12,"Espinosa, Mikaela Anne L.",4,"C",{"$nulls":7},"INSTRUCTIONAL"]
[13,"Felicano, Jhairy",5,"C",{"$nulls":7},"INSTRUCTIONAL"]
[14,"Lamoya, Abegail Owen L.",5,"C",{"$nulls":7},"FRUSTRATION"]
[15,"Marcial, Chilly Joy M.",4,"C",{"$nulls":7},"INDEPENDENT"]
[16,"Narca, Frankie Antonette",4,"C",{"$nulls":7},"INDEPENDENT"]
[17,"Panganiban, Melody C.",4,"C",{"$nulls":7},"INDEPENDENT"]
[18,"Rance, Aicelle F.",4,"C",{"$nulls":7},"INDEPENDENT"]
[19,"Rico, Jenny",4,"C",{"$nulls":7},"INSTRUCTIONAL"]
[20,"Roxas, Mary Rose J.",5,"C",{"$nulls":7},"INDEPENDENT"]
[21,"Sual, Kimberly N.",4,"C",{"$nulls":7},"INSTRUCTIONAL"]
[22,"Villanueva, Jamilah",5,"C",{"$nulls":7},"INDEPENDENT"]
[23,"Villazon, Ma. Isabel",5,"C",{"$nulls":7},"INSTRUCTIONAL"]
[24,"Zamora, Carissa",4,"C",{"$nulls":7},"INDEPENDENT"]
[]
[null,"INDEPENDENT",21]
[null,"INSTRUCTIONAL",22]
[null,"FRUSTRATION",3]
[null,null,{"$f":"SUM(C70:C72)","v":46}]
[null,"GST PASSER",5,null,null,null,"                                                                                                                                                                                                                                                                                                                                                                                                                                                                                                                                                                                                                                                                                                                                                                                                                                                                                                                                                                                                                                                                                                                                                                                                                                                                                                                                                                                                                                                                                                                                                                                                                                                                                                                                                                                                                                                                                                                                                                                                                                                                                                                                                                                                                                                                                                                                                                                                                                                                                                                                                                                                                                                                                                                                                                                                                                                                                                                                                                                                                                                                                                                                                                                                                                                                                                                                                                                                                                                                                                                                                                                                                                                              "]

{"sheet":"Sheet2","index":32,"n_rows":0,"n_cols":0,"rows_kept":0,"cut":false,"hidden":false,"merged":[]}